Workbook

Sheet Menu
A8: Date
A9: Mix #
A10: Lot # | G10: Sublot Designations: | L10: A | M10: B | N10: C | O10: D
A11: Contract | W11: Drum Plant
A12: Job | W12: Batch Plant
A13: Route
Y16: Sample Types
Y17: Name | Z17: Code
Y19: QA Quality Management | Z19: QA
Y20: QC Contractor Data | Z20: QCC
Y21: QC/QA Contractor and MoDOT Data | Z21: QCQA

Sheet Pick Lists
A1: Plant Identification | B1: =COUNTIF(A3:A400,"<> - ") -> 398 | H1: Mixture Types
H2: New | J2: Old
A3: =B3&" - "&C3 -> Producer Supplier Name - Plant ID | B3: Producer Supplier Name | C3: Plant ID | D3: Plant Type | E3: Producer Supplier Code | F3: Status | H3: Material Short Name | I3: Material Code | J3: Material Short NameO | K3: Material Code
A4: APAC - Asphalt Plants - Agency | B4: APAC - Asphalt Plants | C4: Agency | D4: 3176700025 | E4: DRUM | F4: A | H4: Asphalt Stab PB | I4: 0302PBAS | J4: Asphalt Stab PB | K4: 0302PBAS
A5: APAC - Asphalt Plants - Auxvasse | B5: APAC - Asphalt Plants | C5: Auxvasse | D5: 3176700025 | E5: DRUM | F5: A | H5: Comm Mix PMBB | I5: 0401BPCMBB | J5: Comm Mix PMBB | K5: 0401BPCMBB
A6: APAC - Asphalt Plants - Bear Hollow | B6: APAC - Asphalt Plants | C6: Bear Hollow | D6: 3176700025 | E6: DRUM | F6: A | H6: Comm Mix PMBP | I6: 0401BPCMBP | J6: Comm Mix PMBP | K6: 0401BPCMBP
A7: APAC - Asphalt Plants - Boonville | B7: APAC - Asphalt Plants | C7: Boonville | D7: 3176700025 | E7: DRUM | F7: A | H7: Micro-Surfacing T2 | I7: 0413MST2 | J7: Commercial Mix PMBP | K7: 0401BPCM
A8: APAC - Asphalt Plants - Branson | B8: APAC - Asphalt Plants | C8: Branson | D8: 3176700025 | E8: DRUM | F8: A | H8: Micro-Surfacing T3 | I8: 0413MST3 | J8: Plant Mix Bit Base | K8: 0301SBBI
A9: APAC - Asphalt Plants - Brookfield | B9: APAC - Asphalt Plants | C9: Brookfield | D9: 3176700025 | E9: DRUM | F9: A | H9: Plt Mix Bit Base | I9: 0401BPPMBB | J9: Plt Mix for BP-1 | K9: 0401BPPMBP..1
A10: APAC - Asphalt Plants - Butler | B10: APAC - Asphalt Plants | C10: Butler | D10: 3176700025 | E10: DRUM | F10: A | H10: Plt Mix for BP-1 | I10: 0401BPPMBP..1 | J10: Plt Mix for BP-2 | K10: 0401BPPMBP..2
A11: APAC - Asphalt Plants - Cameron | B11: APAC - Asphalt Plants | C11: Cameron | D11: 3176700025 | E11: DRUM | F11: A | H11: Plt Mix for BP-2 | I11: 0401BPPMBP..2 | J11: Plt Mix for BP-3 | K11: 0401BPPMBP..3
A12: APAC - Asphalt Plants - Chesapeake | B12: APAC - Asphalt Plants | C12: Chesapeake | D12: 3176700025 | E12: DRUM | F12: A | H12: Plt Mix for BP-3 | I12: 0401BPPMBP..3 | J12: Plt Mix for Surf Lev | K12: 0402SLPMSL
A13: APAC - Asphalt Plants - Cole Camp | B13: APAC - Asphalt Plants | C13: Cole Camp | D13: 3176700025 | E13: DRUM | F13: A | H13: Plt Mix for Surf Lev | I13: 0402SLPMSL | J13: Plt Mx Srf Lvl Slag | K13: 0402SLPMWS
A14: APAC - Asphalt Plants - Cole Camp-2 | B14: APAC - Asphalt Plants | C14: Cole Camp-2 | D14: 3176700025 | E14: DRUM | F14: A | H14: Plt Mx Srf Lvl Slag | I14: 0402SLPMWS | J14: SP125 HB | K14: 0403SP125HB
A15: APAC - Asphalt Plants - Danville | B15: APAC - Asphalt Plants | C15: Danville | D15: 3176700025 | E15: DRUM | F15: A | H15: SP048 F | I15: 0403SP048F | J15: SP125 HB - SM | K15: 0403SP125HBSM
A16: APAC - Asphalt Plants - Dresden | B16: APAC - Asphalt Plants | C16: Dresden | D16: 3176700025 | E16: DRUM | F16: A | H16: SP048 FLP | I16: 0403SP048FLP | J16: SP125 HB w/LP | K16: 0403SP125HBLP
A17: APAC - Asphalt Plants - Edina | B17: APAC - Asphalt Plants | C17: Edina | D17: 3176700025 | E17: DRUM | F17: A | H17: SP095 B | I17: 0403SP095B | J17: SP125 MC | K17: 0403SP125MC
A18: APAC - Asphalt Plants - El Dorado Sprng | B18: APAC - Asphalt Plants | C18: El Dorado Sprng | D18: 3176700025 | E18: DRUM | F18: A | H18: SP095 BSM | I18: 0403SP095BSM | J18: SP125 MC w/LP | K18: 0403SP125MCLP
A19: APAC - Asphalt Plants - Harrisonville | B19: APAC - Asphalt Plants | C19: Harrisonville | D19: 3176700025 | E19: DRUM | F19: A | H19: SP095 BSM R | I19: 0403SP095BSMR | J19: SP125 LD | K19: 0403SP125LD
A20: APAC - Asphalt Plants - Harrisonville-2 | B20: APAC - Asphalt Plants | C20: Harrisonville-2 | D20: 3176700025 | E20: DRUM | F20: A | H20: SP095 C | I20: 0403SP095C | J20: SP125 LD - SM | K20: 0403SP125LDSM
A21: APAC - Asphalt Plants - Higginsville | B21: APAC - Asphalt Plants | C21: Higginsville | D21: 3176700025 | E21: DRUM | F21: A | H21: SP095 C 80Gyro | I21: 0403SP095CLG | J21: SP125 LD w/LP | K21: 0403SP125LDLP
A22: APAC - Asphalt Plants - Holts Summit | B22: APAC - Asphalt Plants | C22: Holts Summit | D22: 3176700025 | E22: DRUM | F22: A | H22: SP095 CLP 80Gyro | I22: 0403SP095CLGLP | J22: SP125 MC | K22: 0403SP125MC
A23: APAC - Asphalt Plants - Jasper | B23: APAC - Asphalt Plants | C23: Jasper | D23: 3176700025 | E23: DRUM | F23: A | H23: SP095 E | I23: 0403SP095E | J23: SP125 MC - SM | K23: 0403SP125MCSM
A24: APAC - Asphalt Plants - Joplin | B24: APAC - Asphalt Plants | C24: Joplin | D24: 3176700025 | E24: DRUM | F24: A | H24: SP125 B | I24: 0403SP125B | J24: SP190 HB | K24: 0403SP190HB
A25: APAC - Asphalt Plants - Kirksville | B25: APAC - Asphalt Plants | C25: Kirksville | D25: 3176700025 | E25: DRUM | F25: A | H25: SP125 BLP | I25: 0403SP125BLP | J25: SP190 MC | K25: 0403SP190MC
A26: APAC - Asphalt Plants - Lamar | B26: APAC - Asphalt Plants | C26: Lamar | D26: 3176700025 | E26: DRUM | F26: A | H26: SP125 BSM | I26: 0403SP125BSM | J26: SP190 LE | K26: 0403SP190LE
A27: APAC - Asphalt Plants - Linn | B27: APAC - Asphalt Plants | C27: Linn | D27: 3176700025 | E27: DRUM | F27: A | H27: SP125 BSM R | I27: 0403SP125BSMR | J27: SP190 LD | K27: 0403SP190LD
A28: APAC - Asphalt Plants - Linn Creek | B28: APAC - Asphalt Plants | C28: Linn Creek | D28: 3176700025 | E28: DRUM | F28: A | H28: SP125 C | I28: 0403SP125C | J28: SP250 HB | K28: 0403SP250HB
A29: APAC - Asphalt Plants - Linn Creek #2 | B29: APAC - Asphalt Plants | C29: Linn Creek #2 | D29: 3176700025 | E29: DRUM | F29: A | H29: SP125 C 80Gyro | I29: 0403SP125CLG | J29: SP250 MC | K29: 0403SP250MC
A30: APAC - Asphalt Plants - Loose Creek | B30: APAC - Asphalt Plants | C30: Loose Creek | D30: 3176700025 | E30: DRUM | F30: A | H30: SP125 CLP | I30: 0403SP125CLP | J30: SP250 LE | K30: 0403SP250LE
A31: APAC - Asphalt Plants - Louisburg, KS | B31: APAC - Asphalt Plants | C31: Louisburg, KS | D31: 3176700025 | E31: DRUM | F31: A | H31: SP125 CLP 80Gyro | I31: 0403SP125CLGLP | J31: SP250 LD | K31: 0403SP250LD
A32: APAC - Asphalt Plants - Macon | B32: APAC - Asphalt Plants | C32: Macon | D32: 3176700025 | E32: DRUM | F32: A | H32: SP190 B | I32: 0403SP190B | J32: SP250 MC | K32: 0403SP250MC
A33: APAC - Asphalt Plants - Mansfield | B33: APAC - Asphalt Plants | C33: Mansfield | D33: 3176700025 | E33: DRUM | F33: A | H33: SP190 C | I33: 0403SP190C | J33: SP250 MD | K33: 0403SP250MD
A34: APAC - Asphalt Plants - Marshall | B34: APAC - Asphalt Plants | C34: Marshall | D34: 3176700025 | E34: DRUM | F34: A | H34: SP190 C 80Gyro | I34: 0403SP190CLG | J34: Ultra Thn Type A | K34: 0413UBWSACTA
A35: =B35&" - "&C35 -> APAC - Asphalt Plants - Millersb2 | B35: APAC - Asphalt Plants | C35: Millersb2 | D35: 3176700025 | E35: DRUM | F35: A | H35: SP190 E | I35: 0403SP190E | J35: Ultra Thn Type B | K35: 0413UBWSACTB
A36: APAC - Asphalt Plants - Montevallo | B36: APAC - Asphalt Plants | C36: Montevallo | D36: 3176700025 | E36: DRUM | F36: A | H36: SP250 B | I36: 0403SP250B | J36: Ultra Thn Type C | K36: 0413UBWSACTC
A37: APAC - Asphalt Plants - Mound City | B37: APAC - Asphalt Plants | C37: Mound City | D37: 3176700025 | E37: DRUM | F37: A | H37: SP250 C | I37: 0403SP250C
A38: APAC - Asphalt Plants - Mt. Airy | B38: APAC - Asphalt Plants | C38: Mt. Airy | D38: 3176700025 | E38: BATC | F38: A | H38: SP250 C 80Gyro | I38: 0403SP250CLG
A39: APAC - Asphalt Plants - Osage Beach | B39: APAC - Asphalt Plants | C39: Osage Beach | D39: 3176700025 | E39: DRUM | F39: A | H39: SP250 E | I39: 0403SP250E
A40: APAC - Asphalt Plants - Purdy | B40: APAC - Asphalt Plants | C40: Purdy | D40: 3176700025 | E40: DRUM | F40: A | H40: Ultra Thn Type A | I40: 0413UBWSACTA
A41: APAC - Asphalt Plants - Quinn | B41: APAC - Asphalt Plants | C41: Quinn | D41: 3176700025 | E41: DRUM | F41: A | H41: Ultra Thn Type B | I41: 0413UBWSACTB
A42: APAC - Asphalt Plants - Rayville | B42: APAC - Asphalt Plants | C42: Rayville | D42: 3176700025 | E42: DRUM | F42: A | H42: Ultra Thn Type C | I42: 0413UBWSACTC
A43: APAC - Asphalt Plants - Rocky Fork | B43: APAC - Asphalt Plants | C43: Rocky Fork | D43: 3176700025 | E43: DRUM | F43: A
A44: APAC - Asphalt Plants - Sereno | B44: APAC - Asphalt Plants | C44: Sereno | D44: 3176700025 | E44: DRUM | F44: A
A45: APAC - Asphalt Plants - Springfield | B45: APAC - Asphalt Plants | C45: Springfield | D45: 3176700025 | E45: DRUM | F45: A
A46: APAC - Asphalt Plants - Stanley, KS | B46: APAC - Asphalt Plants | C46: Stanley, KS | D46: 3176700025 | E46: DRUM | F46: A
A47: APAC - Asphalt Plants - Sugar Creek 430 | B47: APAC - Asphalt Plants | C47: Sugar Creek 430 | D47: 3176700025 | E47: DRUM | F47: A
A48: APAC - Asphalt Plants - Tipton | B48: APAC - Asphalt Plants | C48: Tipton | D48: 3176700025 | E48: DRUM | F48: A
A49: APAC - Asphalt Plants - Warsaw | B49: APAC - Asphalt Plants | C49: Warsaw | D49: 3176700025 | E49: DRUM | F49: A
A50: APAC - Asphalt Plants - Waverly | B50: APAC - Asphalt Plants | C50: Waverly | D50: 3176700025 | E50: DRUM | F50: A
A51: APAC - Asphalt Plants - Westphalia | B51: APAC - Asphalt Plants | C51: Westphalia | D51: 3176700025 | E51: DRUM | F51: A
A52: APAC - Asphalt Plants - Wheatland | B52: APAC - Asphalt Plants | C52: Wheatland | D52: 3176700025 | E52: DRUM | F52: A
A53: APAC - Asphalt Plants - Willard | B53: APAC - Asphalt Plants | C53: Willard | D53: 3176700025 | E53: DRUM | F53: A
A54: ASA Asphalt Inc. - Advance | B54: ASA Asphalt Inc. | C54: Advance | D54: 3241300220 | E54: DRUM | F54: A
A55: Apex Paving Co. (Girardeau Contractors) - Cape Girardeau | B55: Apex Paving Co. (Girardeau Contractors) | C55: Cape Girardeau | D55: 3200700120 | E55: BATC | F55: A
A56: Apex Paving Co. (Girardeau Contractors) - Dexter | B56: Apex Paving Co. (Girardeau Contractors) | C56: Dexter | D56: 3200700120 | E56: BATC | F56: A
A57: Apex Paving Co. (Girardeau Contractors) - PoplarBluff | B57: Apex Paving Co. (Girardeau Contractors) | C57: PoplarBluff | D57: 3200700120 | E57: DRUM | F57: A
A58: Blevins Asphalt Construction - Brookline | B58: Blevins Asphalt Construction | C58: Brookline | D58: 3132800027 | E58: DRUM | F58: A
A59: Blevins Asphalt Construction - Carmar | B59: Blevins Asphalt Construction | C59: Carmar | D59: 3132800027 | E59: DRUM | F59: A
A60: Blevins Asphalt Construction - Carthage | B60: Blevins Asphalt Construction | C60: Carthage | D60: 3132800027 | E60: DRUM | F60: A
A61: Blevins Asphalt Construction - Republic | B61: Blevins Asphalt Construction | C61: Republic | D61: 3132800027 | E61: DRUM | F61: A
A62: Bross Construction, Asphalt - Amazonia | B62: Bross Construction, Asphalt | C62: Amazonia | D62: 3008600023 | E62: DRUM | F62: A
A63: Bross Construction, Asphalt - Arcadia Valley | B63: Bross Construction, Asphalt | C63: Arcadia Valley | D63: 3008600023 | E63: DRUM | F63: A
A64: Bross Construction, Asphalt - Ashley | B64: Bross Construction, Asphalt | C64: Ashley | D64: 3008600023 | E64: DRUM | F64: A
A65: Bross Construction, Asphalt - Auburn | B65: Bross Construction, Asphalt | C65: Auburn | D65: 3008600023 | E65: DRUM | F65: A
A66: Bross Construction, Asphalt - Auxvasse | B66: Bross Construction, Asphalt | C66: Auxvasse | D66: 3008600023 | E66: DRUM | F66: A
A67: =B67&" - "&C67 -> Bross Construction, Asphalt - Barber | B67: Bross Construction, Asphalt | C67: Barber | D67: 3008600023 | E67: DRUM | F67: A
A68: Bross Construction, Asphalt - Bates City | B68: Bross Construction, Asphalt | C68: Bates City | D68: 3008600023 | E68: DRUM | F68: A
A69: Bross Construction, Asphalt - Bloomsdale | B69: Bross Construction, Asphalt | C69: Bloomsdale | D69: 3008600023 | E69: DRUM | F69: A
A70: Bross Construction, Asphalt - Blue Mound | B70: Bross Construction, Asphalt | C70: Blue Mound | D70: 3008600023 | E70: DRUM | F70: A
A71: Bross Construction, Asphalt - Boliver | B71: Bross Construction, Asphalt | C71: Boliver | D71: 3008600023 | E71: DRUM | F71: A
A72: Bross Construction, Asphalt - Bonne Terre | B72: Bross Construction, Asphalt | C72: Bonne Terre | D72: 3008600023 | E72: DRUM | F72: A
A73: Bross Construction, Asphalt - Boonville | B73: Bross Construction, Asphalt | C73: Boonville | D73: 3008600023 | E73: DRUM | F73: A
A74: Bross Construction, Asphalt - Butler | B74: Bross Construction, Asphalt | C74: Butler | D74: 3008600023 | E74: DRUM | F74: A
A75: Bross Construction, Asphalt - Canton | B75: Bross Construction, Asphalt | C75: Canton | D75: 3008600023 | E75: DRUM | F75: A
A76: Bross Construction, Asphalt - Concordia | B76: Bross Construction, Asphalt | C76: Concordia | D76: 3008600023 | E76: DRUM | F76: A
A77: Bross Construction, Asphalt - Cooper | B77: Bross Construction, Asphalt | C77: Cooper | D77: 3008600023 | E77: DRUM | F77: A
A78: Bross Construction, Asphalt - Corning | B78: Bross Construction, Asphalt | C78: Corning | D78: 3008600023 | E78: DRUM | F78: A
A79: Bross Construction, Asphalt - Danville | B79: Bross Construction, Asphalt | C79: Danville | D79: 3008600023 | E79: DRUM | F79: A
A80: Bross Construction, Asphalt - Edina | B80: Bross Construction, Asphalt | C80: Edina | D80: 3008600023 | E80: DRUM | F80: A
A81: Bross Construction, Asphalt - El Dorado | B81: Bross Construction, Asphalt | C81: El Dorado | D81: 3008600023 | E81: DRUM | F81: A
A82: Bross Construction, Asphalt - Elk Prair(Rolla | B82: Bross Construction, Asphalt | C82: Elk Prair(Rolla | D82: 3008600023 | E82: DRUM | F82: A
A83: Bross Construction, Asphalt - Elm | B83: Bross Construction, Asphalt | C83: Elm | D83: 3008600023 | E83: DRUM | F83: A
A84: Bross Construction, Asphalt - Ely | B84: Bross Construction, Asphalt | C84: Ely | D84: 3008600023 | E84: DRUM | F84: A
A85: Bross Construction, Asphalt - Ewing | B85: Bross Construction, Asphalt | C85: Ewing | D85: 3008600023 | E85: DRUM | F85: A
A86: Bross Construction, Asphalt - Fairplay | B86: Bross Construction, Asphalt | C86: Fairplay | D86: 3008600023 | E86: DRUM | F86: A
A87: Bross Construction, Asphalt - Fremont | B87: Bross Construction, Asphalt | C87: Fremont | D87: 3008600023 | E87: DRUM | F87: A
A88: Bross Construction, Asphalt - Gilliam | B88: Bross Construction, Asphalt | C88: Gilliam | D88: 3008600023 | E88: DRUM | F88: A
A89: Bross Construction, Asphalt - Higginsville | B89: Bross Construction, Asphalt | C89: Higginsville | D89: 3008600023 | E89: DRUM | F89: A
A90: Bross Construction, Asphalt - Houstonia | B90: Bross Construction, Asphalt | C90: Houstonia | D90: 3008600023 | E90: DRUM | F90: A
A91: Bross Construction, Asphalt - Huntington | B91: Bross Construction, Asphalt | C91: Huntington | D91: 3008600023 | E91: DRUM | F91: A
A92: Bross Construction, Asphalt - Independence | B92: Bross Construction, Asphalt | C92: Independence | D92: 3008600023 | E92: DRUM | F92: A
A93: Bross Construction, Asphalt - Jane | B93: Bross Construction, Asphalt | C93: Jane | D93: 3008600023 | E93: DRUM | F93: A
A94: Bross Construction, Asphalt - Laquey | B94: Bross Construction, Asphalt | C94: Laquey | D94: 3008600023 | E94: DRUM | F94: A
A95: Bross Construction, Asphalt - Lodi | B95: Bross Construction, Asphalt | C95: Lodi | D95: 3008600023 | E95: DRUM | F95: A
A96: Bross Construction, Asphalt - Martin Marietta | B96: Bross Construction, Asphalt | C96: Martin Marietta | D96: 3008600023 | E96: DRUM | F96: A
A97: Bross Construction, Asphalt - Millersburg | B97: Bross Construction, Asphalt | C97: Millersburg | D97: 3008600023 | E97: DRUM | F97: A
A98: Bross Construction, Asphalt - Moscow Mills | B98: Bross Construction, Asphalt | C98: Moscow Mills | D98: 3008600023 | E98: DRUM | F98: A
A99: =B99&" - "&C99 -> Bross Construction, Asphalt - Mount Airy | B99: Bross Construction, Asphalt | C99: Mount Airy | D99: 3008600023 | E99: DRUM | F99: A
A100: Bross Construction, Asphalt - Mt. Grove | B100: Bross Construction, Asphalt | C100: Mt. Grove | D100: 3008600023 | E100: DRUM | F100: A
A101: Bross Construction, Asphalt - New London | B101: Bross Construction, Asphalt | C101: New London | D101: 3008600023 | E101: DRUM | F101: A
A102: Bross Construction, Asphalt - Old Appleton | B102: Bross Construction, Asphalt | C102: Old Appleton | D102: 3008600023 | E102: DRUM | F102: A
A103: Bross Construction, Asphalt - Old Monroe | B103: Bross Construction, Asphalt | C103: Old Monroe | D103: 3008600023 | E103: DRUM | F103: A
A104: Bross Construction, Asphalt - Osceola | B104: Bross Construction, Asphalt | C104: Osceola | D104: 3008600023 | E104: DRUM | F104: A
A105: Bross Construction, Asphalt - Overton | B105: Bross Construction, Asphalt | C105: Overton | D105: 3008600023 | E105: DRUM | F105: A
A106: Bross Construction, Asphalt - Owensville | B106: Bross Construction, Asphalt | C106: Owensville | D106: 3008600023 | E106: DRUM | F106: A
A107: Bross Construction, Asphalt - Palmyra | B107: Bross Construction, Asphalt | C107: Palmyra | D107: 3008600023 | E107: DRUM | F107: A
A108: Bross Construction, Asphalt - Perry | B108: Bross Construction, Asphalt | C108: Perry | D108: 3008600023 | E108: DRUM | F108: A
A109: Bross Construction, Asphalt - Rayville | B109: Bross Construction, Asphalt | C109: Rayville | D109: 3008600023 | E109: DRUM | F109: A
A110: Bross Construction, Asphalt - Richmond | B110: Bross Construction, Asphalt | C110: Richmond | D110: 3008600023 | E110: DRUM | F110: A
A111: Bross Construction, Asphalt - Rt E & I-55 | B111: Bross Construction, Asphalt | C111: Rt E & I-55 | D111: 3008600023 | E111: DRUM | F111: A
A112: Bross Construction, Asphalt - Rte 210/291 | B112: Bross Construction, Asphalt | C112: Rte 210/291 | D112: 3008600023 | E112: DRUM | F112: A
A113: Bross Construction, Asphalt - Scott City | B113: Bross Construction, Asphalt | C113: Scott City | D113: 3008600023 | E113: DRUM | F113: A
A114: Bross Construction, Asphalt - Sedalia | B114: Bross Construction, Asphalt | C114: Sedalia | D114: 3008600023 | E114: DRUM | F114: A
A115: Bross Construction, Asphalt - Shelbina | B115: Bross Construction, Asphalt | C115: Shelbina | D115: 3008600023 | E115: DRUM | F115: A
A116: Bross Construction, Asphalt - Taylor | B116: Bross Construction, Asphalt | C116: Taylor | D116: 3008600023 | E116: DRUM | F116: A
A117: Bross Construction, Asphalt - Warrensburg | B117: Bross Construction, Asphalt | C117: Warrensburg | D117: 3008600023 | E117: DRUM | F117: A
A118: Bross Construction, Asphalt - Warsaw | B118: Bross Construction, Asphalt | C118: Warsaw | D118: 3008600023 | E118: DRUM | F118: A
A119: Bross Construction, Asphalt - Wayland | B119: Bross Construction, Asphalt | C119: Wayland | D119: 3008600023 | E119: DRUM | F119: A
A120: Bross Construction, Asphalt - Wheatland | B120: Bross Construction, Asphalt | C120: Wheatland | D120: 3008600023 | E120: DRUM | F120: A
A121: Bross Construction, Asphalt - Willow Springs | B121: Bross Construction, Asphalt | C121: Willow Springs | D121: 3008600023 | E121: DRUM | F121: A
A122: Christensen Asphalt Plant - Millersburg | B122: Christensen Asphalt Plant | C122: Millersburg | D122: 3402400125 | E122: DRUM | F122: A
A123: Delta Asphalt - Cape Girardeau | B123: Delta Asphalt | C123: Cape Girardeau | D123: 3012400020 | E123: BATC | F123: A
A124: Delta Asphalt - Caruthersville | B124: Delta Asphalt | C124: Caruthersville | D124: 3012400020 | E124: DRUM | F124: A
A125: Delta Asphalt - Dexter | B125: Delta Asphalt | C125: Dexter | D125: 3012400020 | E125: DRUM | F125: A
A126: Delta Asphalt - Dexter - 807 | B126: Delta Asphalt | C126: Dexter - 807 | D126: 3012400020 | E126: DRUM | F126: A
A127: Delta Asphalt - Luxora, AR | B127: Delta Asphalt | C127: Luxora, AR | D127: 3012400020 | E127: DRUM | F127: A
A128: Delta Asphalt - Marston | B128: Delta Asphalt | C128: Marston | D128: 3012400020 | E128: DRUM | F128: A
A129: Delta Asphalt - New Madrid | B129: Delta Asphalt | C129: New Madrid | D129: 3012400020 | E129: BATC | F129: A
A130: Delta Asphalt - Paragould, AR | B130: Delta Asphalt | C130: Paragould, AR | D130: 3012400020 | E130: BATC | F130: A
A131: =B131&" - "&C131 -> Delta Asphalt - Poplar Bluff | B131: Delta Asphalt | C131: Poplar Bluff | D131: 3012400020 | E131: BATC | F131: A
A132: Delta Asphalt - Sikeston | B132: Delta Asphalt | C132: Sikeston | D132: 3012400020 | E132: DRUM | F132: A
A133: ECO Recycling Inc. - Stockpile 1 | B133: ECO Recycling Inc. | C133: Stockpile 1 | D133: 3406900116 | E133: FOMR | F133: A
A134: Fahey Constr. - Asphalt Plants - Kansas -Holiday | B134: Fahey Constr. - Asphalt Plants | C134: Kansas -Holiday | D134: 3056600024 | E134: DRUM | F134: A
A135: Fahey Constr. - Asphalt Plants - Kansas City | B135: Fahey Constr. - Asphalt Plants | C135: Kansas City | D135: 3056600024 | E135: DRUM | F135: A
A136: G & M Asphalt - Troy | B136: G & M Asphalt | C136: Troy | D136: 3017000023 | E136: DRUM | F136: A
A137: Herzog Asphalt - Bethany | B137: Herzog Asphalt | C137: Bethany | D137: 3020400021 | E137: DRUM | F137: A
A138: Herzog Asphalt - Elwood Asphalt | B138: Herzog Asphalt | C138: Elwood Asphalt | D138: 3020400021 | E138: DRUM | F138: A
A139: Herzog Asphalt - Gallatin | B139: Herzog Asphalt | C139: Gallatin | D139: 3020400021 | E139: DRUM | F139: A
A140: Herzog Asphalt - Maryville | B140: Herzog Asphalt | C140: Maryville | D140: 3020400021 | E140: DRUM | F140: A
A141: Herzog Asphalt - Nettleton | B141: Herzog Asphalt | C141: Nettleton | D141: 3020400021 | E141: DRUM | F141: A
A142: Herzog Asphalt - Princeton | B142: Herzog Asphalt | C142: Princeton | D142: 3020400021 | E142: DRUM | F142: A
A143: Herzog Asphalt - Savannah | B143: Herzog Asphalt | C143: Savannah | D143: 3020400021 | E143: DRUM | F143: A
A144: Herzog Asphalt - Trenton | B144: Herzog Asphalt | C144: Trenton | D144: 3020400021 | E144: DRUM | F144: A
A145: Higgins Asphalt & Paving - Loose Creek | B145: Higgins Asphalt & Paving | C145: Loose Creek | D145: 3197300125 | E145: DRUM | F145: A
A146: Hilty Asphalt - Butler | B146: Hilty Asphalt | C146: Butler | D146: 3020600024 | E146: DRUM | F146: A
A147: Hilty Asphalt - Montrose | B147: Hilty Asphalt | C147: Montrose | D147: 3020600024 | E147: DRUM | F147: A
A148: Hilty Asphalt - Tightwad | B148: Hilty Asphalt | C148: Tightwad | D148: 3020600024 | E148: DRUM | F148: A
A149: Hilty Asphalt - Warrensburg | B149: Hilty Asphalt | C149: Warrensburg | D149: 3020600024 | E149: DRUM | F149: A
A150: Hutchens Asphalt plants - Bella Vista | B150: Hutchens Asphalt plants | C150: Bella Vista | D150: 3021500027 | E150: DRUM | F150: A
A151: Hutchens Asphalt plants - Gravette | B151: Hutchens Asphalt plants | C151: Gravette | D151: 3021500027 | E151: DRUM | F151: A
A152: Hutchens Asphalt plants - Purdy | B152: Hutchens Asphalt plants | C152: Purdy | D152: 3021500027 | E152: DRUM | F152: A
A153: Hutchens Asphalt plants - Shell Knob | B153: Hutchens Asphalt plants | C153: Shell Knob | D153: 3021500027 | E153: DRUM | F153: A
A154: Ideker Asphalt - Adrian | B154: Ideker Asphalt | C154: Adrian | D154: 3298500021 | E154: DRUM | F154: A
A155: Ideker Asphalt - Grandview | B155: Ideker Asphalt | C155: Grandview | D155: 3298500021 | E155: DRUM | F155: A
A156: Ideker Asphalt - Lake Lanawana | B156: Ideker Asphalt | C156: Lake Lanawana | D156: 3298500021 | E156: DRUM | F156: A
A157: Ideker Asphalt - Mosby | B157: Ideker Asphalt | C157: Mosby | D157: 3298500021 | E157: DRUM | F157: A
A158: Ideker Asphalt - Watson | B158: Ideker Asphalt | C158: Watson | D158: 3298500021 | E158: DRUM | F158: A
A159: Jefferson Asphalt/A.P.I. Asphalt Products. Inc. - Highway 54 | B159: Jefferson Asphalt/A.P.I. Asphalt Products. Inc. | C159: Highway 54 | D159: 3057100025 | E159: DRUM | F159: A
A160: Jefferson Asphalt/A.P.I. Asphalt Products. Inc. - Jefferson City | B160: Jefferson Asphalt/A.P.I. Asphalt Products. Inc. | C160: Jefferson City | D160: 3057100025 | E160: DRUM | F160: A
A161: Jefferson Asphalt/A.P.I. Asphalt Products. Inc. - Jerome | B161: Jefferson Asphalt/A.P.I. Asphalt Products. Inc. | C161: Jerome | D161: 3057100025 | E161: DRUM | F161: A
A162: Jefferson Asphalt/A.P.I. Asphalt Products. Inc. - Loose Creek | B162: Jefferson Asphalt/A.P.I. Asphalt Products. Inc. | C162: Loose Creek | D162: 3057100025 | E162: BATC | F162: A
A163: =B163&" - "&C163 -> Jefferson Asphalt/A.P.I. Asphalt Products. Inc. - Rolla-Drum | B163: Jefferson Asphalt/A.P.I. Asphalt Products. Inc. | C163: Rolla-Drum | D163: 3057100025 | E163: DRUM | F163: A
A164: Jefferson Asphalt/A.P.I. Asphalt Products. Inc. - Sullivan | B164: Jefferson Asphalt/A.P.I. Asphalt Products. Inc. | C164: Sullivan | D164: 3057100025 | E164: DRUM | F164: A
A165: Jokerst Paving & Contracting, Inc. - Bonne Terre | B165: Jokerst Paving & Contracting, Inc. | C165: Bonne Terre | D165: 3281200026 | E165: DRUM | F165: A
A166: Journagan Asphalt - Aldrich | B166: Journagan Asphalt | C166: Aldrich | D166: 3027400028 | E166: DRUM | F166: A
A167: Journagan Asphalt - Buffalo | B167: Journagan Asphalt | C167: Buffalo | D167: 3027400028 | E167: DRUM | F167: A
A168: Journagan Asphalt - Butler | B168: Journagan Asphalt | C168: Butler | D168: 3027400028 | E168: DRUM | F168: A
A169: Journagan Asphalt - Dever | B169: Journagan Asphalt | C169: Dever | D169: 3027400028 | E169: DRUM | F169: A
A170: Journagan Asphalt - Greenfield | B170: Journagan Asphalt | C170: Greenfield | D170: 3027400028 | E170: DRUM | F170: A
A171: Journagan Asphalt - Hilda | B171: Journagan Asphalt | C171: Hilda | D171: 3027400028 | E171: DRUM | F171: A
A172: Journagan Asphalt - Hollister | B172: Journagan Asphalt | C172: Hollister | D172: 3027400028 | E172: DRUM | F172: A
A173: Journagan Asphalt - Jane | B173: Journagan Asphalt | C173: Jane | D173: 3027400028 | E173: DRUM | F173: A
A174: Journagan Asphalt - Jasper | B174: Journagan Asphalt | C174: Jasper | D174: 3027400028 | E174: DRUM | F174: A
A175: Journagan Asphalt - Macks Creek | B175: Journagan Asphalt | C175: Macks Creek | D175: 3027400028 | E175: DRUM | F175: A
A176: Journagan Asphalt - Madry | B176: Journagan Asphalt | C176: Madry | D176: 3027400028 | E176: DRUM | F176: A
A177: Journagan Asphalt - Marshfield | B177: Journagan Asphalt | C177: Marshfield | D177: 3027400028 | E177: DRUM | F177: A
A178: Journagan Asphalt - McCracken | B178: Journagan Asphalt | C178: McCracken | D178: 3027400028 | E178: DRUM | F178: A
A179: Journagan Asphalt - Montevallo | B179: Journagan Asphalt | C179: Montevallo | D179: 3027400028 | E179: DRUM | F179: A
A180: Journagan Asphalt - Nemo | B180: Journagan Asphalt | C180: Nemo | D180: 3027400028 | E180: DRUM | F180: A
A181: Journagan Asphalt - Neosho | B181: Journagan Asphalt | C181: Neosho | D181: 3027400028 | E181: DRUM | F181: A
A182: Journagan Asphalt - Ozark | B182: Journagan Asphalt | C182: Ozark | D182: 3027400028 | E182: DRUM | F182: A
A183: Journagan Asphalt - Purdy | B183: Journagan Asphalt | C183: Purdy | D183: 3027400028 | E183: DRUM | F183: A
A184: Journagan Asphalt - Reeds | B184: Journagan Asphalt | C184: Reeds | D184: 3027400028 | E184: DRUM | F184: A
A185: Journagan Asphalt - Spencer | B185: Journagan Asphalt | C185: Spencer | D185: 3027400028 | E185: DRUM | F185: A
A186: Journagan Asphalt - Stockton | B186: Journagan Asphalt | C186: Stockton | D186: 3027400028 | E186: DRUM | F186: A
A187: Journagan Asphalt - Thayer | B187: Journagan Asphalt | C187: Thayer | D187: 3027400028 | E187: DRUM | F187: A
A188: Journagan Asphalt - Wheatland | B188: Journagan Asphalt | C188: Wheatland | D188: 3027400028 | E188: DRUM | F188: A
A189: Journagan Asphalt - Willow Springs | B189: Journagan Asphalt | C189: Willow Springs | D189: 3027400028 | E189: DRUM | F189: A
A190: Lead Belt Asphalt - Desloge | B190: Lead Belt Asphalt | C190: Desloge | D190: 3027000020 | E190: DRUM | F190: A
A191: Lead Belt Asphalt - Elvins | B191: Lead Belt Asphalt | C191: Elvins | D191: 3027000020 | E191: DRUM | F191: A
A192: Leavenworth Asphalt Materials, LLC - Kansas | B192: Leavenworth Asphalt Materials, LLC | C192: Kansas | D192: 3433100124 | E192: DRUM | F192: A
A193: Magruder Paving, LLC - Arab | B193: Magruder Paving, LLC | C193: Arab | D193: 3029700023 | E193: DRUM | F193: A
A194: Magruder Paving, LLC - Auxvasse | B194: Magruder Paving, LLC | C194: Auxvasse | D194: 3029700023 | E194: DRUM | F194: A
A195: Magruder Paving, LLC - Big Spring | B195: Magruder Paving, LLC | C195: Big Spring | D195: 3029700023 | E195: DRUM | F195: A
A196: Magruder Paving, LLC - BonneTerre | B196: Magruder Paving, LLC | C196: BonneTerre | D196: 3029700023 | E196: DRUM | F196: A
A197: Magruder Paving, LLC - Bourbon | B197: Magruder Paving, LLC | C197: Bourbon | D197: 3029700023 | E197: BATC | F197: A
A198: Magruder Paving, LLC - Brickey Stone | B198: Magruder Paving, LLC | C198: Brickey Stone | D198: 3029700023 | E198: DRUM | F198: A
A199: Magruder Paving, LLC - Desloge | B199: Magruder Paving, LLC | C199: Desloge | D199: 3029700023 | E199: DRUM | F199: A
A200: Magruder Paving, LLC - Eldon | B200: Magruder Paving, LLC | C200: Eldon | D200: 3029700023 | E200: BATC | F200: A
... 250 more rows

Sheet Plant Inspection
N1: MISSOURI DEPARTMENT OF TRANSPORTATION | AC1: =IF(Menu!I8=TRUE,"Warm Mix","") ->  | AF1: SHEET | AG1: =E5 -> 1 | AH1: OF | AI1: =H4 -> 1
C2: TYPE IN BLUE SPACES ONLY | N2: PLANT INSPECTOR'S WORKSHEET
A3: INSPECTOR | N3: Contract | P3: =Menu!B11 -> 0 | R3: Job Number | T3: =Menu!B12 -> 0 | W3: Route | X3: =Menu!B13 -> 0 | Z3: Bituminous Mix No. | AC3: =UPPER(Menu!B9) ->  | AG3: Report No. | AI3: =E4 -> 1
A4: REPORT NUMBER | E4: 1 | G4: Total Sheets | H4: 1 | N4: County | O4: =Menu!B14 -> 0 | R4: Plant & Location | U4: =Menu!B18 -> 0 | AB4: Date | AC4: =Menu!B8 -> 00:00:00 | AE4: Smpl ID | AF4: =UPPER(Menu!B7) ->  | AH4: Time | AI4: =E6 -> 0
A5: SHEET NUMBER | E5: 1
A6: TIME | N6: Gradation of Bin Materials | AA6: Gradation of Final Mix
A7: ASPHALT CEMENT SOURCE | O7: Bin No. 1 | Q7: Bin No. 2 | S7: Bin No. 3 | U7: Bin No. 4 | W7: =J23 -> RAP* | Y7: =IF($K$23="RAS","RAS",(IF($K$23="HydLim","Hydrated Lime",IF($K$23="MinFill","Mineral Filler","")))) -> RAS | AA7: Proportions (% Used)
A8: ASPHALT CEMENT GRADE | N8: Sieve | O8: Wt. | P8: Per- | Q8: Wt. | R8: Per- | S8: Wt. | T8: Per- | U8: Wt. | V8: Per- | W8: Wt. | X8: Per- | Y8: Wt. | Z8: Per- | AA8: Bin 1 | AB8: Bin 2 | AC8: Bin 3 | AD8: Bin 4 | AE8: =J23 -> RAP* | AF8: =IF($K$23="HydLim","Hyd.Lime",IF($K$23="MinFill","Min.Filler","")) -> Hyd.Lime | AG8: Combined | AH8: Combined | AI8: Deviation
A9: TOTAL AC % | N9: Size | O9: Grams | P9: cent | Q9: Grams | R9: cent | S9: Grams | T9: cent | U9: Grams | V9: cent | W9: Grams | X9: cent | Y9: Grams | Z9: cent | AA9: =B44 -> 0 | AB9: 0 | AC9: 0 | AD9: 0 | AE9: =IF(C44="",F44,"") -> 0 | AF9: 0 | AG9: Gradation | AH9: Job Mix
A10: MINERAL AGGRAGATE % | E10: =100-E9-J44 -> 100 | O10: =B24 -> 0 | Q10: =D24 -> 0 | S10: =F24 -> 0 | U10: =H24 -> 0 | W10: =J24 -> 0
A11: AC % IN RAP | N11: 1.5 | O11: =IF(O$35>0,(O35-O10)," ") ->  | P11: =IF($B$48>0,((O11/O$35)*100)," ") ->  | Q11: =IF(Q$35>0,(Q35-Q10)," ") ->  | R11: =IF(AND($B$48>0,$C$44>0),((Q11/Q$35)*100)," ") ->  | S11: =IF(S$35>0,(S35-S10)," ") ->  | T11: =IF(AND($B$48>0,$D$44>0),((S11/S$35)*100)," ") ->  | U11: =IF(U$35>0,(U35-U10)," ") ->  | V11: =IF(AND($B$48>0,$E$44>0),((U11/U$35)*100)," ") ->  | W11: =IF(W$35>0,(W35-W10)," ") ->  | X11: =IF(AND($B$48>0,$F$44>0),((W11/W$35)*100)," ") ->  | Y11: =IF($Y$35>0,(Y32-Y7)," ") ->  | Z11: =IF(AND($G$44>0,B48>0),$K24," ") ->  | AA11: =IF($O$35>0,(($AA$9/100)*P11)," ") ->  | AB11: =IF($Q$35>0,(($AB$9/100)*R11)," ") ->  | AC11: =IF($S$35>0,(($AC$9/100)*T11)," ") ->  | AD11: =IF($U$35>0,(($AD$9/100)*V11)," ") ->  | AE11: =IF($AE$9>0,(($AE$9/100)*X11)," ") ->  | AF11: =IF($AF$9>0,(($AF$9/100)*Z11)," ") ->  | AG11: =TRUNC(SUM(AA11:AF11),1) -> 0 | AH11: =B48 -> 0 | AI11: =IF(B48="","",IF(AG11-AH11<>0,AG11-AH11,"0.0")) -> 
A12: LBS. PER BATCH | O12: =B25 -> 0 | Q12: =D25 -> 0 | S12: =F25 -> 0 | U12: =H25 -> 0 | W12: =J25 -> 0
A13: Tons per Hour | N13: 1 | O13: =IF(O$35>0,(O35-O12)," ") ->  | P13: =IF($B$49>0,((O13/O$35)*100)," ") ->  | Q13: =IF(Q$35>0,(Q35-Q12)," ") ->  | R13: =IF(AND($B$49>0,$C$44>0),((Q13/Q$35)*100)," ") ->  | S13: =IF(S$35>0,(S35-S12)," ") ->  | T13: =IF(AND($B$49>0,$D$44>0),((S13/S$35)*100)," ") ->  | U13: =IF(U$35>0,(U35-U12)," ") ->  | V13: =IF(AND($B$49>0,$E$44>0),((U13/U$35)*100)," ") ->  | W13: =IF(W$35>0,(W35-W12)," ") ->  | X13: =IF(AND($B$49>0,$F$44>0),((W13/W$35)*100)," ") ->  | Y13: =IF($Y$35>0,(Y34-Y9)," ") ->  | Z13: =IF(AND($G$44>0,B49>0),$K25," ") ->  | AA13: =IF($O$35>0,(($AA$9/100)*P13)," ") ->  | AB13: =IF($Q$35>0,(($AB$9/100)*R13)," ") ->  | AC13: =IF($S$35>0,(($AC$9/100)*T13)," ") ->  | AD13: =IF($U$35>0,(($AD$9/100)*V13)," ") ->  | AE13: =IF($AE$9>0,(($AE$9/100)*X13)," ") ->  | AF13: =IF($AF$9>0,(($AF$9/100)*Z13)," ") ->  | AG13: =TRUNC(SUM(AA13:AF13),1) -> 0 | AH13: =B49 -> 0 | AI13: =IF(B49="","",IF(AG13-AH13<>0,AG13-AH13,"0.0")) -> 
A14: Gmm from JMF (leave blank for SP) | O14: =B26 -> 0 | Q14: =D26 -> 0 | S14: =F26 -> 0 | U14: =H26 -> 0 | W14: =J26 -> 0
A15: Sample Thickness | N15: 3/4 | O15: =IF(O$35>0,(O35-O14)," ") ->  | P15: =IF($B$50>0,((O15/O$35)*100)," ") ->  | Q15: =IF(Q$35>0,(Q35-Q14)," ") ->  | R15: =IF(AND($B$50>0,$C$44>0),((Q15/Q$35)*100)," ") ->  | S15: =IF(S$35>0,(S35-S14)," ") ->  | T15: =IF(AND($B$50>0,$D$44>0),((S15/S$35)*100)," ") ->  | U15: =IF(U$35>0,(U35-U14)," ") ->  | V15: =IF(AND($B$50>0,$E$44>0),((U15/U$35)*100)," ") ->  | W15: =IF(W$35>0,(W35-W14)," ") ->  | X15: =IF(AND($B$50>0,$F$44>0),((W15/W$35)*100)," ") ->  | Y15: =IF($Y$35>0,(Y13-Y14)," ") ->  | Z15: =IF(AND($G$44>0,B50>0),$K26," ") ->  | AA15: =IF($O$35>0,(($AA$9/100)*P15)," ") ->  | AB15: =IF($Q$35>0,(($AB$9/100)*R15)," ") ->  | AC15: =IF($S$35>0,(($AC$9/100)*T15)," ") ->  | AD15: =IF($U$35>0,(($AD$9/100)*V15)," ") ->  | AE15: =IF($AE$9>0,(($AE$9/100)*X15)," ") ->  | AF15: =IF($AF$9>0,(($AF$9/100)*Z15)," ") ->  | AG15: =TRUNC(SUM(AA15:AF15),1) -> 0 | AH15: =B50 -> 0 | AI15: =IF(B50="","",IF(AG15-AH15<>0,AG15-AH15,"0.0")) -> 
A16: Dry Wt. in Air ( "A" ) | I16: Use for Section 401 | O16: =B27 -> 0 | Q16: =D27 -> 0 | S16: =F27 -> 0 | U16: =H27 -> 0 | W16: =J27 -> 0
A17: Wet Wt. in H2O ("B") | I17: Mixtures. Individual or As | N17: 1/2 | O17: =IF(O$35>0,(O35-O16)," ") ->  | P17: =IF($B$51>0,((O17/O$35)*100)," ") ->  | Q17: =IF(Q$35>0,(Q35-Q16)," ") ->  | R17: =IF(AND($B$51>0,$C$44>0),((Q17/Q$35)*100)," ") ->  | S17: =IF(S$35>0,(S35-S16)," ") ->  | T17: =IF(AND($B$51>0,$D$44>0),((S17/S$35)*100)," ") ->  | U17: =IF(U$35>0,(U35-U16)," ") ->  | V17: =IF(AND($B$51>0,$E$44>0),((U17/U$35)*100)," ") ->  | W17: =IF(W$35>0,(W35-W16)," ") ->  | X17: =IF(AND($B$51>0,$F$44>0),((W17/W$35)*100)," ") ->  | Y17: =IF($Y$35>0,(Y15-Y16)," ") ->  | Z17: =IF(AND($G$44>0,B51>0),$K27," ") ->  | AA17: =IF($O$35>0,(($AA$9/100)*P17)," ") ->  | AB17: =IF($Q$35>0,(($AB$9/100)*R17)," ") ->  | AC17: =IF($S$35>0,(($AC$9/100)*T17)," ") ->  | AD17: =IF($U$35>0,(($AD$9/100)*V17)," ") ->  | AE17: =IF($AE$9>0,(($AE$9/100)*X17)," ") ->  | AF17: =IF($AF$9>0,(($AF$9/100)*Z17)," ") ->  | AG17: =TRUNC(SUM(AA17:AF17),1) -> 0 | AH17: =B51 -> 0 | AI17: =IF(B51="","",IF(AG17-AH17<>0,AG17-AH17,"0.0")) -> 
A18: Wet Wt. in Air ("C") | I18: One Sample. | O18: =B28 -> 0 | Q18: =D28 -> 0 | S18: =F28 -> 0 | U18: =H28 -> 0 | W18: =J28 -> 0
A19: Gmc | E19: =IF(E16="","",ROUND(E16/(E18-E17),3)) ->  | F19: =IF(F16="","",ROUND(F16/(F18-F17),3)) ->  | G19: =IF(G16="","",ROUND(G16/(G18-G17),3)) ->  | H19: =IF(H16="","",ROUND(H16/(H18-H17),3)) ->  | N19: 3/8 | O19: =IF(O$35>0,(O35-O18)," ") ->  | P19: =IF($B$52>0,((O19/O$35)*100)," ") ->  | Q19: =IF(Q$35>0,(Q35-Q18)," ") ->  | R19: =IF(AND($B$52>0,$C$44>0),((Q19/Q$35)*100)," ") ->  | S19: =IF(S$35>0,(S35-S18)," ") ->  | T19: =IF(AND($B$52>0,$D$44>0),((S19/S$35)*100)," ") ->  | U19: =IF(U$35>0,(U35-U18)," ") ->  | V19: =IF(AND($B$52>0,$E$44>0),((U19/U$35)*100)," ") ->  | W19: =IF(W$35>0,(W35-W18)," ") ->  | X19: =IF(AND($B$52>0,$F$44>0),((W19/W$35)*100)," ") ->  | Y19: =IF($Y$35>0,(Y17-Y18)," ") ->  | Z19: =IF(AND($G$44>0,B52>0),$K28," ") ->  | AA19: =IF($O$35>0,(($AA$9/100)*P19)," ") ->  | AB19: =IF($Q$35>0,(($AB$9/100)*R19)," ") ->  | AC19: =IF($S$35>0,(($AC$9/100)*T19)," ") ->  | AD19: =IF($U$35>0,(($AD$9/100)*V19)," ") ->  | AE19: =IF($AE$9>0,(($AE$9/100)*X19)," ") ->  | AF19: =IF($AF$9>0,(($AF$9/100)*Z19)," ") ->  | AG19: =TRUNC(SUM(AA19:AF19),1) -> 0 | AH19: =B52 -> 0 | AI19: =IF(B52="","",IF(AG19-AH19<>0,AG19-AH19,"0.0")) -> 
A20: Required Density | E20: 92% Min. | J20: Wts. | K20: Enter | O20: =B29 -> 0 | Q20: =D29 -> 0 | S20: =F29 -> 0 | U20: =H29 -> 0 | W20: =J29 -> 0
A21: Nuclear Gauge Serial # | J21: From | K21: Gradation | N21: 4 | O21: =IF(O$35>0,(O35-O20)," ") ->  | P21: =IF($B$53>0,((O21/O$35)*100)," ") ->  | Q21: =IF(Q$35>0,(Q35-Q20)," ") ->  | R21: =IF(AND($B$53>0,$C$44>0),((Q21/Q$35)*100)," ") ->  | S21: =IF(S$35>0,(S35-S20)," ") ->  | T21: =IF(AND($B$53>0,$D$44>0),((S21/S$35)*100)," ") ->  | U21: =IF(U$35>0,(U35-U20)," ") ->  | V21: =IF(AND($B$53>0,$E$44>0),((U21/U$35)*100)," ") ->  | W21: =IF(W$35>0,(W35-W20)," ") ->  | X21: =IF(AND($B$53>0,$F$44>0),((W21/W$35)*100)," ") ->  | Y21: =IF($Y$35>0,(Y19-Y20)," ") ->  | Z21: =IF(AND($G$44>0,B53>0),$K29," ") ->  | AA21: =IF($O$35>0,(($AA$9/100)*P21)," ") ->  | AB21: =IF($Q$35>0,(($AB$9/100)*R21)," ") ->  | AC21: =IF($S$35>0,(($AC$9/100)*T21)," ") ->  | AD21: =IF($U$35>0,(($AD$9/100)*V21)," ") ->  | AE21: =IF($AE$9>0,(($AE$9/100)*X21)," ") ->  | AF21: =IF($AF$9>0,(($AF$9/100)*Z21)," ") ->  | AG21: =TRUNC(SUM(AA21:AF21),1) -> 0 | AH21: =B53 -> 0 | AI21: =IF(B53="","",IF(AG21-AH21<>0,AG21-AH21,"0.0")) -> 
B22: Retained Weights | E22: Cumulative Gradation Spreadsheet | J22: Residue | K22: From JMF | O22: =B30 -> 0 | Q22: =D30 -> 0 | S22: =F30 -> 0 | U22: =H30 -> 0 | W22: =J30 -> 0
B23: Bin #1 | D23: Bin #2 | F23: Bin #3 | H23: Bin #4 | J23: RAP* | L23: HydLim | N23: 8 | O23: =IF(O$35>0,(O35-O22)," ") ->  | P23: =IF($B$54>0,((O23/O$35)*100)," ") ->  | Q23: =IF(Q$35>0,(Q35-Q22)," ") ->  | R23: =IF(AND($B$54>0,$C$44>0)>0,((Q23/Q$35)*100)," ") ->  | S23: =IF(S$35>0,(S35-S22)," ") ->  | T23: =IF(AND($B$54>0,$D$44>0)>0,((S23/S$35)*100)," ") ->  | U23: =IF(U$35>0,(U35-U22)," ") ->  | V23: =IF(AND($B$54>0,$E$44>0)>0,((U23/U$35)*100)," ") ->  | W23: =IF(W$35>0,(W35-W22)," ") ->  | X23: =IF(AND($B$54>0,$F$44>0)>0,((W23/W$35)*100)," ") ->  | Y23: =IF($Y$35>0,(Y21-Y22)," ") ->  | Z23: =IF(AND($G$44>0,B54>0),$K30," ") ->  | AA23: =IF($O$35>0,(($AA$9/100)*P23)," ") ->  | AB23: =IF($Q$35>0,(($AB$9/100)*R23)," ") ->  | AC23: =IF($S$35>0,(($AC$9/100)*T23)," ") ->  | AD23: =IF($U$35>0,(($AD$9/100)*V23)," ") ->  | AE23: =IF($AE$9>0,(($AE$9/100)*X23)," ") ->  | AF23: =IF($AF$9>0,(($AF$9/100)*Z23)," ") ->  | AG23: =TRUNC(SUM(AA23:AF23),1) -> 0 | AH23: =B54 -> 0 | AI23: =IF(B54="","",IF(AG23-AH23<>0,AG23-AH23,"0.0")) -> 
A24: 1 1/2" | K24: 100 | L24: MinFill | O24: =B31 -> 0 | Q24: =D31 -> 0 | S24: =F31 -> 0 | U24: =H31 -> 0 | W24: =J31 -> 0
A25: 1" | B25: 0 | C25: 0 | K25: 100 | L25: RAS | N25: 16 | O25: =IF(O$35>0,(O35-O24)," ") ->  | P25: =IF($B$55>0,((O25/O$35)*100)," ") ->  | Q25: =IF(Q$35>0,(Q35-Q24)," ") ->  | R25: =IF(AND($B$55>0,$C$44>0)>0,((Q25/Q$35)*100)," ") ->  | S25: =IF(S$35>0,(S35-S24)," ") ->  | T25: =IF(AND($B$55>0,$D$44>0)>0,((S25/S$35)*100)," ") ->  | U25: =IF(U$35>0,(U35-U24)," ") ->  | V25: =IF(AND($B$55>0,$E$44>0)>0,((U25/U$35)*100)," ") ->  | W25: =IF(W$35>0,(W35-W24)," ") ->  | X25: =IF(AND($B$55>0,$F$44>0)>0,((W25/W$35)*100)," ") ->  | Y25: =IF($Y$35>0,(Y23-Y24)," ") ->  | Z25: =IF(AND($G$44>0,B55>0),$K31," ") ->  | AA25: =IF($O$35>0,(($AA$9/100)*P25)," ") ->  | AB25: =IF($Q$35>0,(($AB$9/100)*R25)," ") ->  | AC25: =IF($S$35>0,(($AC$9/100)*T25)," ") ->  | AD25: =IF($U$35>0,(($AD$9/100)*V25)," ") ->  | AE25: =IF($AE$9>0,(($AE$9/100)*X25)," ") ->  | AF25: =IF($AF$9>0,(($AF$9/100)*Z25)," ") ->  | AG25: =TRUNC(SUM(AA25:AF25),1) -> 0 | AH25: =B55 -> 0 | AI25: =IF(B55="","",IF(AG25-AH25<>0,AG25-AH25,"0.0")) ->  | AO25: =100-F44 -> 100
A26: 3/4" | B26: 0 | H26: 0 | J26: 0 | K26: 100 | O26: =B32 -> 0 | Q26: =D32 -> 0 | S26: =F32 -> 0 | U26: =H32 -> 0 | W26: =J32 -> 0
A27: 1/2" | K27: 100 | N27: 30 | O27: =IF(O$35>0,(O35-O26)," ") ->  | P27: =IF($B$56>0,((O27/O$35)*100)," ") ->  | Q27: =IF(Q$35>0,(Q35-Q26)," ") ->  | R27: =IF(AND($B$56>0,$C$44>0),((Q27/Q$35)*100)," ") ->  | S27: =IF(S$35>0,(S35-S26)," ") ->  | T27: =IF(AND($B$56>0,$D$44>0),((S27/S$35)*100)," ") ->  | U27: =IF(U$35>0,(U35-U26)," ") ->  | V27: =IF(AND($B$56>0,$E$44>0),((U27/U$35)*100)," ") ->  | W27: =IF(W$35>0,(W35-W26)," ") ->  | X27: =IF(AND($B$56>0,$F$44>0),((W27/W$35)*100)," ") ->  | Y27: =IF($Y$35>0,(Y25-Y26)," ") ->  | Z27: =IF(AND($G$44>0,B56>0),$K32," ") ->  | AA27: =IF($O$35>0,(($AA$9/100)*P27)," ") ->  | AB27: =IF($Q$35>0,(($AB$9/100)*R27)," ") ->  | AC27: =IF($S$35>0,(($AC$9/100)*T27)," ") ->  | AD27: =IF($U$35>0,(($AD$9/100)*V27)," ") ->  | AE27: =IF($AE$9>0,(($AE$9/100)*X27)," ") ->  | AF27: =IF($AF$9>0,(($AF$9/100)*Z27)," ") ->  | AG27: =TRUNC(SUM(AA27:AF27),1) -> 0 | AH27: =B56 -> 0 | AI27: =IF(B56="","",IF(AG27-AH27<>0,AG27-AH27,"0.0")) -> 
A28: 3/8" | K28: 100 | O28: =B33 -> 0 | Q28: =D33 -> 0 | S28: =F33 -> 0 | U28: =H33 -> 0 | W28: =J33 -> 0
A29: #4 | K29: 100 | N29: 50 | O29: =IF(O$35>0,(O35-O28)," ") ->  | P29: =IF($B$57>0,((O29/O$35)*100)," ") ->  | Q29: =IF(Q$35>0,(Q35-Q28)," ") ->  | R29: =IF(AND($B$57>0,$C$44>0),((Q29/Q$35)*100)," ") ->  | S29: =IF(S$35>0,(S35-S28)," ") ->  | T29: =IF(AND($B$57>0,$D$44>0),((S29/S$35)*100)," ") ->  | U29: =IF(U$35>0,(U35-U28)," ") ->  | V29: =IF(AND($B$57>0,$E$44>0),((U29/U$35)*100)," ") ->  | W29: =IF(W$35>0,(W35-W28)," ") ->  | X29: =IF(AND($B$57>0,$F$44>0),((W29/W$35)*100)," ") ->  | Y29: =IF($Y$35>0,(Y27-Y28)," ") ->  | Z29: =IF(AND($G$44>0,B57>0),$K33," ") ->  | AA29: =IF($O$35>0,(($AA$9/100)*P29)," ") ->  | AB29: =IF($Q$35>0,(($AB$9/100)*R29)," ") ->  | AC29: =IF($S$35>0,(($AC$9/100)*T29)," ") ->  | AD29: =IF($U$35>0,(($AD$9/100)*V29)," ") ->  | AE29: =IF($AE$9>0,(($AE$9/100)*X29)," ") ->  | AF29: =IF($AF$9>0,(($AF$9/100)*Z29)," ") ->  | AG29: =TRUNC(SUM(AA29:AF29),1) -> 0 | AH29: =B57 -> 0 | AI29: =IF(B57="","",IF(AG29-AH29<>0,AG29-AH29,"0.0")) -> 
A30: #8 | K30: 100 | O30: =B34 -> 0 | Q30: =D34 -> 0 | S30: =F34 -> 0 | U30: =H34 -> 0 | W30: =J34 -> 0
A31: #16 | K31: 100 | N31: 100 | O31: =IF(O$35>0,(O35-O30)," ") ->  | P31: =IF($B$58>0,((O31/O$35)*100)," ") ->  | Q31: =IF(Q$35>0,(Q35-Q30)," ") ->  | R31: =IF(AND($B$58>0,$C$44>0),((Q31/Q$35)*100)," ") ->  | S31: =IF(S$35>0,(S35-S30)," ") ->  | T31: =IF(AND($B$58>0,$D$44>0),((S31/S$35)*100)," ") ->  | U31: =IF(U$35>0,(U35-U30)," ") ->  | V31: =IF(AND($B$58>0,$E$44>0),((U31/U$35)*100)," ") ->  | W31: =IF(W$35>0,(W35-W30)," ") ->  | X31: =IF(AND($B$58>0,$F$44>0),((W31/W$35)*100)," ") ->  | Y31: =IF($Y$35>0,(Y29-Y30)," ") ->  | Z31: =IF(AND($G$44>0,B58>0),$K34," ") ->  | AA31: =IF($O$35>0,(($AA$9/100)*P31)," ") ->  | AB31: =IF($Q$35>0,(($AB$9/100)*R31)," ") ->  | AC31: =IF($S$35>0,(($AC$9/100)*T31)," ") ->  | AD31: =IF($U$35>0,(($AD$9/100)*V31)," ") ->  | AE31: =IF($AE$9>0,(($AE$9/100)*X31)," ") ->  | AF31: =IF($AF$9>0,(($AF$9/100)*Z31)," ") ->  | AG31: =TRUNC(SUM(AA31:AF31),1) -> 0 | AH31: =B58 -> 0 | AI31: =IF(B58="","",IF(AG31-AH31<>0,AG31-AH31,"0.0")) -> 
A32: #30 | K32: 100 | O32: =B35 -> 0 | Q32: =D35 -> 0 | S32: =F35 -> 0 | U32: =H35 -> 0 | W32: =J35 -> 0
A33: #50 | K33: 100 | N33: 200 | O33: =IF(O$35>0,(O34+O37)," ") ->  | P33: =IF($B$59>0,((O33/O$35)*100)," ") ->  | Q33: =IF(Q$35>0,(Q35-Q32)," ") ->  | R33: =IF(AND($B$59>0,$C$44>0),((Q33/Q$35)*100)," ") ->  | S33: =IF(S$35>0,(S35-S32)," ") ->  | T33: =IF(AND($B$59>0,$D$44>0),((S33/S$35)*100)," ") ->  | U33: =IF(U$35>0,(U35-U32)," ") ->  | V33: =IF(AND($B$59>0,$E$44>0),((U33/U$35)*100)," ") ->  | W33: =IF(W$35>0,(W35-W32)," ") ->  | X33: =IF(AND($B$59>0,$F$44>0),((W33/W$35)*100)," ") ->  | Z33: =IF(AND($G$44>0,B59>0),$K35," ") ->  | AA33: =IF($O$35>0,(($AA$9/100)*P33)," ") ->  | AB33: =IF($Q$35>0,(($AB$9/100)*R33)," ") ->  | AC33: =IF($S$35>0,(($AC$9/100)*T33)," ") ->  | AD33: =IF($U$35>0,(($AD$9/100)*V33)," ") ->  | AE33: =IF($AE$9>0,(($AE$9/100)*X33)," ") ->  | AF33: =IF($AF$9>0,(($AF$9/100)*Z33)," ") ->  | AG33: =TRUNC(SUM(AA33:AF33),1) -> 0 | AH33: =B59 -> 0 | AI33: =IF(B59="","",IF(AG33-AH33<>0,AG33-AH33,"0.0")) -> 
A34: #100 | K34: 100 | N34: Pan | O34: =B36 -> 0 | Q34: =D36 -> 0 | S34: =F36 -> 0 | U34: =H36 -> 0 | W34: =J36 -> 0 | AA34: A.C.Grade | AC34: =E8 -> 0 | AE34: AC SOURCE | AG34: =E7 -> 0
A35: #200 | K35: 100 | N35: Dry Wt. | O35: =B38 -> 0 | Q35: =D38 -> 0 | S35: =F38 -> 0 | U35: =H38 -> 0 | W35: =J38 -> 0 | AA35: Date Rec'd. | AC35: Quantity(Tons) | AF35: Invoice No.
A36: Pan | N36: Wash Wt. | O36: =B39 -> 0 | P36: =IF(OR(B41>O36+10,B41<O36-10),B41,"") ->  | Q36: =D39 -> 0 | R36: =IF(OR(D41>Q36+10,D41<Q36-10),D41,"") ->  | S36: =F39 -> 0 | T36: =IF(OR(F41>S36+10,F41<S36-10),F41,"") ->  | U36: =H39 -> 0 | V36: =IF(OR(H41>U36+10,H41<U36-10),H41,"") ->  | W36: =J39 -> 0 | X36: =IF(OR(J41>W36+10,J41<W36-10),J41,"") ->  | AA36: =A64 -> 0 | AC36: =C64 -> 0 | AF36: =F64 -> 0
A37: Orig.Wt. | N37: P-200 | O37: =IF(O$35>0,(O35-O36)," ") ->  | Q37: =IF(Q$35>0,(Q35-Q36)," ") ->  | S37: =IF(S$35>0,(S35-S36)," ") ->  | U37: =IF(U$35>0,(U35-U36)," ") ->  | W37: =IF(W$35>0,(W35-W36)," ") ->  | AA37: =A65 -> 0 | AC37: =C65 -> 0 | AF37: =F65 -> 0
A38: Dry Wt. | N38: % Moisture of Aggregates | R38: =I77 ->  | U38: =IF(E11="","","Pecent AC in RAP") ->  | X38: =IF(E11="","",E11) ->  | AA38: 0 | AC38: 0 | AF38: 0
A39: Wsh.Wt. | X39: Tonnage of Mixture | AA39: 0 | AC39: 0 | AF39: 0
A40: %Moist. | B40: =IF(B37="","",ROUND((B37-B38)/B38*100,1)) ->  | D40: =IF(D37="","",ROUND((D37-D38)/D38*100,1)) ->  | F40: =IF(F37="","",ROUND((F37-F38)/F38*100,1)) ->  | H40: =IF(H37="","",ROUND((H37-H38)/H38*100,1)) ->  | J40: =IF(J37="","",ROUND((J37-J38)/J38*100,1)) ->  | N40: Field Density Test | X40: Tons/hr. | Z40: =E13 -> 0 | AA40: 0 | AC40: 0 | AF40: 0
B41: =B35+B36 -> 0 | D41: =D35+D36 -> 0 | F41: =F35+F36 -> 0 | H41: =H35+H36 -> 0 | J41: =J35+J36 -> 0 | P41: Dry Wt. | Q41: Wt. In | R41: Wet Wt. | S41: Sp. G | T41: Den. | X41: Lbs./Batch | Z41: =E12 -> 0 | AA41: 0 | AC41: 0 | AF41: 0
D42: Hot Bin or Cold Feed Percentages | J42: SMA Fibers | N42: Gmm = | O42: =E14 -> 0 | P42: In Air | Q42: Water | R42: In Air | S42: A | T42: Sp. G. | U42: Required | W42: Sample | X42: Previous | Z42: =C93 -> 0 | AA42: 0 | AC42: 0 | AF42: 0
B43: Bin #1 | C43: Bin #2 | D43: Bin #3 | E43: Bin #4 | F43: RAP* | G43: =K23 -> 0 | H43: Total | J43: Total Mixture | P43: "A" | Q43: "B" | R43: "C" | S43: C - B | T43: Gmm | U43: Compact | W43: Thick. | X43: Today | Z43: =F93 -> 0 | AA43: =A71 -> 0 | AC43: =C71 -> 0 | AF43: =F71 -> 0
H44: =IF(C44="",SUM(B44:G44),SUM(B44:E44,G44)) -> 0 | P44: =SUM(E16:H16) -> 0 | Q44: =SUM(E17:H17) -> 0 | R44: =SUM(E18:H18) -> 0 | S44: =IF($P$44>0,(P44/(R44-Q44))," ") ->  | T44: =TRUNC(IF($P$44>0,((S44/O42)*100)," "),1) -> 0 | U44: =E20 -> 92% Min. | W44: =IF(E15="","",AVERAGE(E15:H15)) ->  | X44: Total | Z44: =(C93+F93) -> 0 | AA44: Temperatures | AF44: Asphalt Content | AI44: =IF(E11=""," ","Virgin") -> 
B45: =IF(E11="","","* Percent RAP required for batch plants adding RAP to the hot elevator,") ->  | N45: Sample Locations: | Q45: =D80 -> 0 | AA45: Time | AB45: =B73 -> 0 | AC45: 0 | AD45: 0 | AE45: 0 | AF45: Count | AG45: % A.C. | AH45: BKG | AI45: =IF(E11=""," ","AC") -> 
B46: =IF(E11="","","however, gradation is included in hot bins.") ->  | N46: Density Sample Locations | P46: Core #1 | Q46: =D81 -> 0 | AA46: A.C. | AB46: 0 | AC46: 0 | AD46: 0 | AE46: 0 | AF46: =F74 -> 0 | AG46: 0 | AH46: 0 | AI46: =IF(E11=""," ",ROUND(((10000-(100-F44)*E11)*E9/100/(100-E11))-((100-(100-F44))*E11)/(100-E11),1)) -> 
B47: Job Mix / QC Comb. Grad. Deviation | P47: Core #2 | Q47: =D82 -> 0 | AA47: Mix | AB47: 0 | AC47: 0 | AD47: 0 | AE47: 0 | AF47: 0 | AG47: 0 | AH47: 0
A48: 1 1/2" | D48: =AG11 -> 0 | F48: =IF(D48="","",ROUND(AI11,1)) ->  | P48: Core #3 | Q48: =D83 -> 0 | AA48: Air | AB48: Min. | AC48: =C76 -> 0 | AD48: Max. | AE48: =E76 -> 0 | AF48: 0 | AG48: 0 | AH48: 0 | AL48: =SUM(AA51:AF51) -> 0
A49: 1" | D49: =AG13 -> 0 | F49: =IF(D49="","",ROUND(AI13,1)) ->  | G49: Gradation within Specification? (Y/N) | P49: Core #4 | Q49: =D84 -> 0 | Z49: % Moisture of Mixture | AD49: =D77 -> 0 | AE49: Gauge Sr.No. | AG49: =E21 -> 0 | AH49: =F21 -> 0 | AM49: =AM51/5.2 -> 0
A50: 3/4" | D50: =AG15 -> 0 | F50: =IF(D50="","",ROUND(AI15,1)) ->  | H50: N | N50: Remarks: | P50: =C85 -> 0 | AA50: BIN#1 | AB50: BIN#2 | AC50: BIN#3 | AD50: BIN#4 | AE50: =J23 -> RAP* | AF50: =IF($K$23="HydLim","Hyd.Lime",IF($K$23="MinFill","Min.Filler","")) -> Hyd.Lime | AG50: FIBERS | AH50: ASPH. | AI50: TOTAL
A51: 1/2" | D51: =AG17 -> 0 | F51: =IF(D51="","",ROUND(AI17,1)) ->  | N51: =A86 -> 0 | Z51: Plant % | AA51: =ROUND(IF($E$11="",(AA9/100)*$E$10,IF($C$44="",AA9/($AA$9+$AF$9+$J$44)*((100-$F$44)-(100-$F$44)*$E$9/100),AA9/100*(100-$AI$46-$J$44))),1) -> 0 | AB51: =ROUND(IF($E$11="",(AB9/100)*$E$10,IF($C$44="",0,AB9/100*(100-$AI$46-$J$44))),1) -> 0 | AC51: =ROUND(IF($E$11="",(AC9/100)*$E$10,IF($C$44="",0,AC9/100*(100-$AI$46-$J$44))),1) -> 0 | AD51: =ROUND(IF($E$11="",(AD9/100)*$E$10,IF($C$44="",0,AD9/100*(100-$AI$46-$J$44))),1) -> 0 | AE51: =ROUND(IF($E$11="",(AE9/100)*$E$10,IF($C$44="",(100*(100-(100-$F$44))/(100-$E$11))-((100-(100-$F$44))*$E$9/(100-$E$11)),0)),1) -> 0 | AF51: =ROUND(IF($E$11="",(AF9/100)*$E$10,IF($C$44="",AF9/($AA$9+$AF$9+$J$44)*((100-$F$44)-(100-$F$44)*$E$9/100),AF9/100*(100-$AI$46-$J$44))),1) -> 0 | AG51: =J44 -> 0 | AH51: =IF(E11="",E9,AI46) -> 0 | AI51: =SUM(AA51:AH51) -> 0
A52: 3/8" | D52: =AG19 -> 0 | F52: =IF(D52="","",ROUND(AI19,1)) ->  | H52: Deleterious Material | N52: =A87 -> 0 | AI52: Tons
A53: #4 | D53: =AG21 -> 0 | F53: =IF(D53="","",ROUND(AI21,1)) ->  | H53: Original Dry Weight | N53: =A88 -> 0 | Z53: 1 T Batch | AA53: =(AA51*20) -> 0 | AB53: 0 | AC53: 0 | AD53: 0 | AE53: 0 | AF53: 0 | AG53: =(AG51*20) -> 0 | AH53: =(AH51*20) -> 0 | AI53: =SUM(AA53:AH53)/2000 -> 0
A54: #8 | D54: =AG23 -> 0 | F54: =IF(D54="","",ROUND(AI23,1)) ->  | H54: Del. Rock | K54: =IF(J54="","",ROUND(J54/$J$53*100,1)) ->  | N54: =A89 -> 0 | Z54: BATCH | AA54: =(AA51*($Z$41/100)) -> 0 | AB54: 0 | AC54: 0 | AD54: 0 | AE54: 0 | AF54: 0 | AG54: =(AG51*($Z$41/100)) -> 0 | AH54: =(AH51*($Z$41/100)) -> 0 | AI54: =SUM(AA54:AH54)/2000 -> 0
A55: #16 | D55: =AG25 -> 0 | F55: =IF(D55="","",ROUND(AI25,1)) ->  | H55: =IF(ISERR(LEFT(Menu!$B$9)),"",IF(OR(LEFT(Menu!$B$9,2)="SL",LEFT(Menu!$B$9,2)="BP",LEFT(Menu!$B$9,2)="BB"),"Shale & Mud Balls","Shale")) ->  | K55: =IF(J55="","",ROUND(J55/$J$53*100,1)) ->  | O55: =IF(Menu!N11="",IF(Menu!K11="","","Additional Project: "&Menu!K11&", "&Menu!K12),"Additional Projects: "&Menu!K11&", "&Menu!K12&"; "&Menu!N11&", "&Menu!N12) ->  | AA55: =E3 -> 0 | AH55: INSPECTOR
A56: #30 | D56: =AG27 -> 0 | F56: =IF(D56="","",ROUND(AI27,1)) ->  | H56: =IF(ISERR(LEFT(Menu!$B$9)),"",IF(OR(LEFT(Menu!$B$9,2)="SL",LEFT(Menu!$B$9,2)="BP",LEFT(Menu!$B$9,2)="BB"),"Clay,Disp.","")) ->  | K56: =IF(J56="","",ROUND(J56/$J$53*100,1)) -> 
A57: #50 | D57: =AG29 -> 0 | F57: =IF(D57="","",ROUND(AI29,1)) ->  | H57: OFM | K57: =IF(J57="","",ROUND(J57/$J$53*100,1)) -> 
A58: #100 | D58: =AG31 -> 0 | F58: =IF(D58="","",ROUND(AI31,1)) ->  | H58: Total Del. | J58: =SUM(J54:J57) -> 0 | K58: =IF(J53="","",ROUND(J58/$J$53*100,1)) -> 
A59: #200 | D59: =AG33 -> 0 | F59: =IF(D59="","",ROUND(AI33,1)) -> 
H60: Chert | K60: =IF(J60="","",ROUND(J60/$J$53*100,1)) -> 
B61: Start typing at the far left of each box only.
D62: ASPHALT DELIVERY INVOICES | I62: FIBER INVOICES
A63: Date Rec'd. | C63: Quantity(Tons) | G63: Invoice No. | I63: Date Rec'd | K63: Quantity (lbs.) | M63: Invoice No.
C72: Temperatures | G72: Asphalt Content
A73: Time | F73: Count | G73: % A.C. | H73: BKG
A74: A.C.
A75: Mix
A76: Air | B76: min | D76: max
A77: % Moisture of Mixture | E77: % Moisture of Comb. Aggregates | I77: =IF(F44>0,ROUND(((B40*B44)+(D40*C44)+(F40*D44)+(H40*E44)+(J40*F44))/100,1),IF(E44>0,ROUND(((B40*B44)+(D40*C44)+(F40*D44)+(H40*E44))/100,1),IF(D44>0,ROUND(((B40*B44)+(D40*C44)+(F40*D44))/100,1),IF(C44>0,ROUND(((B40*B44)+(D40*C44))/100,1),IF(B40="","",ROUND(B40*B44/100,1)))))) -> 
A79: Start Typing at the far left of each line only.
A80: Sample Location:
A81: Density Sample Locations | C81: Core #1
C82: Core #2
C83: Core #3
C84: Core #4
A85: Remarks:
A92: Tonnage of Mixture
A93: Previous | E93: Today | F93: =Summary!B7 -> 0 | H93: Total | I93: =C93+F93 -> 0
H109: Macro for erasing retained weights
B110: {D} {D} {D} {D} {D} {D} {R 2} {U} {U}
B111: {U} {U} {U} {U} {U} {U} {U} {U} {U} {U}
B112: {U} {R 2} {D} {D} {D} {D} {D} {D} {D}
B113: {D} {D} {D} {D} {D} {D} {R 2} {U} {U}
B114: {U} {U} {U} {U} {U} {U} {U} {U} {U} {U}
B115: {U} {R 2} {D} {D} {D} {D} {D} {D} {D}
B116: {D} {D} {D} {D} {D} {D} ~
H124: Macro for saving files to a job directory

Sheet Loose Mix
E1: LOOSE MIX
A2: No. Tons | B2: 3000 | S2: =ROUND(RAND(),4) -> 0.633 | T2: =ROUND(RAND(),4) -> 0.1024
A3: Tons per Sublot | E3: JOB | F3: =Menu!B12 -> 0 | H3: ROUTE | I3: =Menu!B13 -> 0 | J3: MIX NO. | K3: =UPPER(Menu!B9) ->  | M3: LOT NO. | N3: =Menu!B10 -> 0
A4: =Menu!L10 -> A | B4: 750
A5: =Menu!M10 -> B | B5: 750 | E5: NO. TONS | F5: =IF(B2="","",B2) -> 3000 | H5: QA SAMPLE | J5: TONS "T" | M5: =B2 -> 3000
A6: =Menu!N10 -> C | B6: 750 | J6: BEGINNING TONS "BT" | M6: 0
A7: =Menu!O10 -> D | B7: 750 | E7: TECHNICIAN | F7: mrm | J7: ENDING TONS "ET" | M7: =M5+M6 -> 3000
A8: =Menu!P10 -> 0 | J8: WIDTH | M8: 12
A9: =Menu!Q10 -> 0
A10: =Menu!R10 -> 0 | E10: RANDOM NO. | H10: T | I10: A | J10: X=T x A | K10: TONS = BT + X
B11: =SUM(B4:B10) -> 3000 | E11: A | F11: B | H11: =M5 -> 3000 | I11: =E12 -> 0 | J11: =H11*I11 -> 0 | K11: =IF(F5="","",M6+J11) -> 0 | M11: QA SAMPLE
A12: Unconfined Edge | B12: Beginning and Ending Stations/Log Miles
A13: Enter 0, 1, or 2 | C13: =Menu!D10 -> 0 | H13: WIDTH | I13: B | J13: W = WIDTH - 2' | L13: W x B | M13: OFFSET = 1+W x B
A14: 0 | B14: 200 | C14: to | D14: 300 | H14: =M8 -> 12 | I14: =F12 -> 0 | K14: =H14-2 -> 10 | L14: =K14*I14 -> 0 | N14: =IF(F5="","",L14+1) -> 1
C15: to | M15: To Center of Sample
C16: to | E16: SUBLOT | F16: =IF(Menu!L10="","",Menu!L10) -> A | J16: TONS IN SUBLOT "T" | M16: =B4 -> 750
C17: to | J17: BEGINNING TONS "BT" | M17: =M6 -> 0
C18: to | E18: TECHNICIAN | J18: ENDING TONS "ET" | M18: =M16+M17 -> 750
C19: to | J19: WIDTH | M19: 12
C20: =Menu!E10 -> 0
A21: 0 | B21: =IF(ISBLANK(D15),D14,IF(ISBLANK(D16),D15,IF(ISBLANK(D17),D16,IF(ISBLANK(D18),D17,IF(ISBLANK(D19),D18,D19))))) -> 300 | C21: to | D21: 400 | E21: RANDOM NO. | H21: T | I21: A | J21: X=T x A | K21: TONS = BT + X
C22: to | E22: A | F22: B | H22: =M16 -> 750 | I22: =E23 -> 0 | J22: =H22*I22 -> 0 | K22: =IF(F16="","",M17+J22) -> 0
C23: to
C24: to | H24: WIDTH | I24: B | J24: W = WIDTH - 2' | L24: W x B | M24: OFFSET = 1+W x B
C25: to | H25: =M19 -> 12 | I25: =F23 -> 0 | K25: =H25-2 -> 10 | L25: =K25*I25 -> 0 | N25: =IF(F16="","",L25+1) -> 1
C26: to | M26: To Center of Sample
C27: =Menu!F10 -> 0
A28: 0 | B28: =IF(ISBLANK(D22),D21,IF(ISBLANK(D23),D22,IF(ISBLANK(D24),D23,IF(ISBLANK(D25),D24,IF(ISBLANK(D26),D25,D26))))) -> 400 | C28: to | D28: 500 | E28: SUBLOT | F28: =IF(Menu!M10="","",Menu!M10) -> B | J28: TONS IN SUBLOT "T" | M28: =B5 -> 750
C29: to | J29: BEGINNING TONS "BT" | M29: =M18 -> 750
C30: to | E30: TECHNICIAN | F30: =IF($F$18="","",$F$18) ->  | J30: ENDING TONS "ET" | M30: =M28+M29 -> 1500
C31: to | J31: WIDTH | M31: =IF($M$19="","",$M$19) -> 12
C32: to
C33: to | E33: RANDOM NO. | H33: T | I33: A | J33: X=T x A | K33: TONS = BT + X
C34: =Menu!G10 -> Sublot Designations: | E34: A | F34: B | H34: =M28 -> 750 | I34: =E35 -> 0 | J34: =H34*I34 -> 0 | K34: =IF(F28="","",M29+J34) -> 750
A35: 0 | B35: =IF(ISBLANK(D29),D28,IF(ISBLANK(D30),D29,IF(ISBLANK(D31),D30,IF(ISBLANK(D32),D31,IF(ISBLANK(D33),D32,D33))))) -> 500 | C35: to | D35: 610
C36: to | H36: WIDTH | I36: B | J36: W = WIDTH - 2' | L36: W x B | M36: OFFSET = 1+W x B
C37: to | H37: =M31 -> 12 | I37: =F35 -> 0 | K37: =H37-2 -> 10 | L37: =K37*I37 -> 0 | N37: =IF(F28="","",L37+1) -> 1
C38: to | M38: To Center of Sample
C39: to
C40: to | E40: SUBLOT | F40: =IF(Menu!N10="","",Menu!N10) -> C | J40: TONS IN SUBLOT "T" | M40: =B6 -> 750
C41: =Menu!H10 -> 0 | J41: BEGINNING TONS "BT" | M41: =M30 -> 1500
A42: 0 | B42: =IF(ISBLANK(D36),D35,IF(ISBLANK(D37),D36,IF(ISBLANK(D38),D37,IF(ISBLANK(D39),D38,IF(ISBLANK(D40),D39,D40))))) -> 610 | C42: to | E42: TECHNICIAN | F42: =IF($F$18="","",$F$18) ->  | J42: ENDING TONS "ET" | M42: =M40+M41 -> 2250
C43: to | J43: WIDTH | M43: =IF($M$19="","",$M$19) -> 12
C44: to
C45: to | E45: RANDOM NO. | H45: T | I45: A | J45: X=T x A | K45: TONS = BT + X
C46: to | E46: A | F46: B | H46: =M40 -> 750 | I46: =E47 -> 0 | J46: =H46*I46 -> 0 | K46: =IF(F40="","",M41+J46) -> 1500
C47: to
C48: =Menu!I10 -> 0 | H48: WIDTH | I48: B | J48: W = WIDTH - 2' | L48: W x B | M48: OFFSET = 1+W x B
A49: 0 | B49: =IF(ISBLANK(D43),D42,IF(ISBLANK(D44),D43,IF(ISBLANK(D45),D44,IF(ISBLANK(D46),D45,IF(ISBLANK(D47),D46,D47))))) -> 0 | C49: to | H49: =M43 -> 12 | I49: =F47 -> 0 | K49: =H49-2 -> 10 | L49: =K49*I49 -> 0 | N49: =IF(F40="","",L49+1) -> 1
C50: to | M50: To Center of Sample
C51: to
C52: to | E52: SUBLOT | F52: =IF(Menu!O10="","",Menu!O10) -> D | J52: TONS IN SUBLOT "T" | M52: =B7 -> 750
C53: to | J53: BEGINNING TONS "BT" | M53: =M42 -> 2250
C54: to | E54: TECHNICIAN | F54: =IF($F$18="","",$F$18) ->  | J54: ENDING TONS "ET" | M54: =M52+M53 -> 3000
C55: =Menu!J10 -> 0 | J55: WIDTH | M55: =IF($M$19="","",$M$19) -> 12
A56: 0 | B56: =IF(ISBLANK(D50),D49,IF(ISBLANK(D51),D50,IF(ISBLANK(D52),D51,IF(ISBLANK(D53),D52,IF(ISBLANK(D54),D53,D54))))) -> 0 | C56: to
C57: to | E57: RANDOM NO. | H57: T | I57: A | J57: X=T x A | K57: TONS = BT + X
C58: to | E58: A | F58: B | H58: =M52 -> 750 | I58: =E59 -> 0 | J58: =H58*I58 -> 0 | K58: =IF(F52="","",M53+J58) -> 2250
C59: to
C60: to | H60: WIDTH | I60: B | J60: W = WIDTH - 2' | L60: W x B | M60: OFFSET = 1+W x B
C61: to | H61: =M55 -> 12 | I61: =F59 -> 0 | K61: =H61-2 -> 10 | L61: =K61*I61 -> 0 | N61: =IF(F52="","",L61+1) -> 1
M62: To Center of Sample
E64: SUBLOT | F64: =IF(Menu!P10="","",Menu!P10) ->  | J64: TONS IN SUBLOT "T" | M64: =B8 -> 0
J65: BEGINNING TONS "BT" | M65: =M54 -> 3000
E66: TECHNICIAN | F66: =IF($F$18="","",$F$18) ->  | J66: ENDING TONS "ET" | M66: =M64+M65 -> 3000
J67: WIDTH | M67: =IF($M$19="","",$M$19) -> 12
E69: RANDOM NO. | H69: T | I69: A | J69: X=T x A | K69: TONS = BT + X
E70: A | F70: B | H70: =M64 -> 0 | I70: =E71 -> 0 | J70: =H70*I70 -> 0 | K70: =IF(F64="","",M65+J70) -> 
H72: WIDTH | I72: B | J72: W = WIDTH - 2' | L72: W x B | M72: OFFSET = 1+W x B
H73: =M67 -> 12 | I73: =F71 -> 0 | K73: =H73-2 -> 10 | L73: =K73*I73 -> 0 | N73: =IF(F64="","",L73+1) -> 
M74: To Center of Sample
E76: SUBLOT | F76: =IF(Menu!Q10="","",Menu!Q10) ->  | J76: TONS IN SUBLOT "T" | M76: =B9 -> 0
J77: BEGINNING TONS "BT" | M77: =M66 -> 3000
E78: TECHNICIAN | F78: =IF($F$18="","",$F$18) ->  | J78: ENDING TONS "ET" | M78: =M76+M77 -> 3000
J79: WIDTH | M79: =IF($M$19="","",$M$19) -> 12
E81: RANDOM NO. | H81: T | I81: A | J81: X=T x A | K81: TONS = BT + X
E82: A | F82: B | H82: =M76 -> 0 | I82: =E83 -> 0 | J82: =H82*I82 -> 0 | K82: =IF(F76="","",M77+J82) -> 
H84: WIDTH | I84: B | J84: W = WIDTH - 2' | L84: W x B | M84: OFFSET = 1+W x B
H85: =M79 -> 12 | I85: =F83 -> 0 | K85: =H85-2 -> 10 | L85: =K85*I85 -> 0 | N85: =IF(F76="","",L85+1) -> 
M86: To Center of Sample
E88: SUBLOT | F88: =IF(Menu!R10="","",Menu!R10) ->  | J88: TONS IN SUBLOT "T" | M88: =B10 -> 0
J89: BEGINNING TONS "BT" | M89: =M78 -> 3000
E90: TECHNICIAN | F90: =IF($F$18="","",$F$18) ->  | J90: ENDING TONS "ET" | M90: =M88+M89 -> 3000
J91: WIDTH | M91: =IF($M$19="","",$M$19) -> 12
E93: RANDOM NO. | H93: T | I93: A | J93: X=T x A | K93: TONS = BT + X
E94: A | F94: B | H94: =M88 -> 0 | I94: =E95 -> 0 | J94: =H94*I94 -> 0 | K94: =IF(F88="","",M89+J94) -> 
H96: WIDTH | I96: B | J96: W = WIDTH - 2' | L96: W x B | M96: OFFSET = 1+W x B
H97: =M91 -> 12 | I97: =F95 -> 0 | K97: =H97-2 -> 10 | L97: =K97*I97 -> 0 | N97: =IF(F88="","",L97+1) -> 
M98: To Center of Sample

Sheet Density
A1: MAT COMPACTION
U2: =ROUND(RAND(),4) -> 0.0571 | V2: =ROUND(RAND(),4) -> 0.6904
A3: JOB | B3: =Properties!B3 -> 0 | D3: ROUTE | E3: =Properties!E3 -> 0 | F3: MIX NO. | G3: =UPPER(Properties!G3) ->  | I3: LOT NO. | J3: =Properties!J3 -> 0
A5: SUBLOT | B5: =IF(+'Loose Mix'!F16=" "," ",+'Loose Mix'!F16) -> A | G5: A | H5: B | I5: EDGE | M5: A | N5: B | O5: EDGE | V5: 1
A6: TONS IN SUBLOT | D6: ='Loose Mix'!M16 -> 750 | F6: RANDOM NO. | I6: =W8 -> 0 | L6: RANDOM NO. | O6: =X8 -> 0 | V6: =ROUND(H9-IF(AND(0<=H9,H9<=V9),V8,IF(AND(V9<H9,H9<=V10),V9,IF(AND(V10<H9,H9<=V11),V10,IF(AND(V11<H9,H9<=V12),V11,IF(AND(V12<H9,H9<=V13),V12,V13))))),0) -> 0 | W6: =ROUND(N9-IF(AND(0<=N9,N9<=V9),V8,IF(AND(V9<N9,N9<=V10),V9,IF(AND(V10<N9,N9<=V11),V10,IF(AND(V11<N9,N9<=V12),V11,IF(AND(V12<N9,N9<=V13),V12,V13))))),0) -> 0
A7: BEGIN STA./LM | D7: ='Loose Mix'!B14 -> 200 | V7: =V6+IF(AND(V8<=H9,H9<=V9),'Loose Mix'!B14,IF(AND(V9<H9,H9<=V10),'Loose Mix'!B15,IF(AND(V10<H9,H9<=V11),'Loose Mix'!B16,IF(AND(V11<H9,H9<=V12),'Loose Mix'!B17,IF(AND(V12<H9,H9<=V13),'Loose Mix'!B18,'Loose Mix'!B19))))) -> 200 | W7: =W6+IF(AND(V8<=N9,N9<=V9),'Loose Mix'!B14,IF(AND(V9<N9,N9<=V10),'Loose Mix'!B15,IF(AND(V10<N9,N9<=V11),'Loose Mix'!B16,IF(AND(V11<N9,N9<=V12),'Loose Mix'!B17,IF(AND(V12<N9,N9<=V13),'Loose Mix'!B18,'Loose Mix'!B19))))) -> 200
A8: ENDING STA./LM | D8: =INDEX('Loose Mix'!D14:'Loose Mix'!D19,COUNT('Loose Mix'!D14:'Loose Mix'!D19),1) -> 300 | F8: L | G8: A | H8: X=L x A | I8: STA + X | L8: L2 | M8: A | N8: X=L+L2xA | O8: STA + X | V8: 0 | W8: =IF(AND(V8<=H9,H9<=V9),S9,IF(AND(V9<H9,H9<=V10),S10,IF(AND(V10<H9,H9<=V11),S11,IF(AND(V11<H9,H9<=V12),S12,IF(AND(V12<H9,H9<=V13),S13,S14))))) -> 0 | X8: =IF(AND(V8<=N9+F9,N9+F9<=V9),S9,IF(AND(V9<N9+F9,N9+F9<=V10),S10,IF(AND(V10<F9,F9<=V11),S11,IF(AND(V11<F9,F9<=V12),S12,IF(AND(V12<F9,F9<=V13),S13,S14))))) -> 0
A9: LENGTH "L" | D9: =V14 -> 100 | F9: =IF($V$5=2,ROUND(D9/2,0),ROUND(D9,0)) -> 100 | G9: =G6 -> 0 | H9: =F9*G9 -> 0 | I9: =IF(B5="","",V7) -> 200 | L9: =IF($V$5=2,ROUND(D9/2,0),0) -> 0 | M9: =M6 -> 0 | N9: =IF($V$5=2,F9+L9*M9,0) -> 0 | O9: =IF(AND($V$5=2,B5<>""),W7,"") ->  | S9: ='Loose Mix'!A14 -> 0 | U9: ='Loose Mix'!D14-'Loose Mix'!B14 -> 100 | V9: =U9 -> 100
A10: WIDTH "W" | D10: ='Loose Mix'!M19 -> 12 | F10: W2 | G10: B | H10: ="OFFSET="&TEXT(IF(I6>0,0.5,0),"0.0")&"+W2XB" -> OFFSET=0.0+W2XB | L10: W2 | M10: B | N10: ="OFFSET="&TEXT(IF(O6>0,0.5,0),"0.0")&"+W2XB" -> OFFSET=0.0+W2XB | S10: ='Loose Mix'!A15 -> 0 | U10: ='Loose Mix'!D15-'Loose Mix'!B15 -> 0 | V10: =U10+V9 -> 100
F11: =D10-I6*0.5 -> 12 | G11: =H6 -> 0 | I11: =F11*G11+IF(I6>0,0.5,0) -> 0 | L11: =IF($V$5=2,D10-O6*0.5,0) -> 0 | M11: =N6 -> 0 | O11: =L11*M11+IF(O6>0,0.5,0) -> 0 | S11: ='Loose Mix'!A16 -> 0 | U11: ='Loose Mix'!D16-'Loose Mix'!B16 -> 0 | V11: =U11+V10 -> 100
F12: =IF(I6>0,"Measure from unconfined edge.","") ->  | L12: =IF(O6>0,"Measure from unconfined edge.","") ->  | S12: ='Loose Mix'!A17 -> 0 | U12: ='Loose Mix'!D17-'Loose Mix'!B17 -> 0 | V12: =U12+V11 -> 100
S13: ='Loose Mix'!A18 -> 0 | U13: ='Loose Mix'!D18-'Loose Mix'!B18 -> 0 | V13: =U13+V12 -> 100
A14: SUBLOT | B14: =IF(+'Loose Mix'!F28=" "," ",+'Loose Mix'!F28) -> B | G14: A | H14: B | I14: EDGE | M14: A | N14: B | O14: EDGE | S14: ='Loose Mix'!A19 -> 0 | U14: ='Loose Mix'!D19-'Loose Mix'!B19 -> 0 | V14: =U14+V13 -> 100
A15: TONS IN SUBLOT | D15: ='Loose Mix'!M28 -> 750 | F15: RANDOM NO. | I15: =W17 -> 0 | L15: RANDOM NO. | O15: =X17 -> 0 | V15: =ROUND(H18-IF(AND(0<=H18,H18<=V18),V17,IF(AND(V18<H18,H18<=V19),V18,IF(AND(V19<H18,H18<=V20),V19,IF(AND(V20<H18,H18<=V21),V20,IF(AND(V21<H18,H18<=V22),V21,V22))))),0) -> 0 | W15: =ROUND(N18-IF(AND(0<=N18,N18<=V18),V17,IF(AND(V18<N18,N18<=V19),V18,IF(AND(V19<N18,N18<=V20),V19,IF(AND(V20<N18,N18<=V21),V20,IF(AND(V21<N18,N18<=V22),V21,V22))))),0) -> 0
A16: BEGIN STA./LM | D16: ='Loose Mix'!B21 -> 300 | V16: =V15+IF(AND(V17<=H18,H18<=V18),'Loose Mix'!B21,IF(AND(V18<H18,H18<=V19),'Loose Mix'!B22,IF(AND(V19<H18,H18<=V20),'Loose Mix'!B23,IF(AND(V20<H18,H18<=V21),'Loose Mix'!B24,IF(AND(V21<H18,H18<=V22),'Loose Mix'!B25,'Loose Mix'!B26))))) -> 300 | W16: =W15+IF(AND(V17<=N18,N18<=V18),'Loose Mix'!B21,IF(AND(V18<N18,N18<=V19),'Loose Mix'!B22,IF(AND(V19<N18,N18<=V20),'Loose Mix'!B23,IF(AND(V20<N18,N18<=V21),'Loose Mix'!B24,IF(AND(V21<N18,N18<=V22),'Loose Mix'!B25,'Loose Mix'!B26))))) -> 300
A17: ENDING STA./LM | D17: =INDEX('Loose Mix'!D21:'Loose Mix'!D26,COUNT('Loose Mix'!D21:'Loose Mix'!D26),1) -> 400 | F17: L | G17: A | H17: X=L x A | I17: STA + X | L17: L2 | M17: A | N17: X=L+L2xA | O17: STA + X | V17: 0 | W17: =IF(AND(V17<=H18,H18<=V18),S18,IF(AND(V18<H18,H18<=V19),S19,IF(AND(V19<H18,H18<=V20),S20,IF(AND(V20<H18,H18<=V21),S21,IF(AND(V21<H18,H18<=V22),S22,S23))))) -> 0 | X17: =IF(AND(V17<=N18+F18,N18+F18<=V18),S18,IF(AND(V18<N18+F18,N18+F18<=V19),S19,IF(AND(V19<F18,F18<=V20),S20,IF(AND(V20<F18,F18<=V21),S21,IF(AND(V21<F18,F18<=V22),S22,S23))))) -> 0
A18: LENGTH "L" | D18: =V23 -> 100 | F18: =IF($V$5=2,ROUND(D18/2,0),ROUND(D18,0)) -> 100 | G18: =G15 -> 0 | H18: =F18*G18 -> 0 | I18: =IF(B14="","",V16) -> 300 | L18: =IF($V$5=2,ROUND(D18/2,0),0) -> 0 | M18: =M15 -> 0 | N18: =IF($V$5=2,F18+L18*M18,0) -> 0 | O18: =IF(AND($V$5=2,B14<>""),W16,"") ->  | S18: ='Loose Mix'!A21 -> 0 | U18: ='Loose Mix'!D21-'Loose Mix'!B21 -> 100 | V18: =U18 -> 100
A19: WIDTH "W" | D19: ='Loose Mix'!M31 -> 12 | F19: W2 | G19: B | H19: ="OFFSET="&TEXT(IF(I15>0,0.5,0),"0.0")&"+W2XB" -> OFFSET=0.0+W2XB | L19: W2 | M19: B | N19: ="OFFSET="&TEXT(IF(O15>0,0.5,0),"0.0")&"+W2XB" -> OFFSET=0.0+W2XB | S19: ='Loose Mix'!A22 -> 0 | U19: ='Loose Mix'!D22-'Loose Mix'!B22 -> 0 | V19: =U19+V18 -> 100
F20: =D19-I15*0.5 -> 12 | G20: =H15 -> 0 | I20: =F20*G20+IF(I15>0,0.5,0) -> 0 | L20: =IF($V$5=2,D19-O15*0.5,0) -> 0 | M20: =N15 -> 0 | O20: =L20*M20+IF(O15>0,0.5,0) -> 0 | S20: ='Loose Mix'!A23 -> 0 | U20: ='Loose Mix'!D23-'Loose Mix'!B23 -> 0 | V20: =U20+V19 -> 100
F21: =IF(I15>0,"Measure from unconfined edge.","") ->  | L21: =IF(O15>0,"Measure from unconfined edge.","") ->  | S21: ='Loose Mix'!A24 -> 0 | U21: ='Loose Mix'!D24-'Loose Mix'!B24 -> 0 | V21: =U21+V20 -> 100
S22: ='Loose Mix'!A25 -> 0 | U22: ='Loose Mix'!D25-'Loose Mix'!B25 -> 0 | V22: =U22+V21 -> 100
A23: SUBLOT | B23: =IF(+'Loose Mix'!F40=" "," ",+'Loose Mix'!F40) -> C | G23: A | H23: B | I23: EDGE | M23: A | N23: B | O23: EDGE | S23: ='Loose Mix'!A26 -> 0 | U23: ='Loose Mix'!D26-'Loose Mix'!B26 -> 0 | V23: =U23+V22 -> 100
A24: TONS IN SUBLOT | D24: ='Loose Mix'!M40 -> 750 | F24: RANDOM NO. | I24: =W26 -> 0 | L24: RANDOM NO. | O24: =X26 -> 0 | V24: =ROUND(H27-IF(AND(0<=H27,H27<=V27),V26,IF(AND(V27<H27,H27<=V28),V27,IF(AND(V28<H27,H27<=V29),V28,IF(AND(V29<H27,H27<=V30),V29,IF(AND(V30<H27,H27<=V31),V30,V31))))),0) -> 0 | W24: =ROUND(N27-IF(AND(0<=N27,N27<=V27),V26,IF(AND(V27<N27,N27<=V28),V27,IF(AND(V28<N27,N27<=V29),V28,IF(AND(V29<N27,N27<=V30),V29,IF(AND(V30<N27,N27<=V31),V30,V31))))),0) -> 0
A25: BEGIN STA./LM | D25: ='Loose Mix'!B28 -> 400 | V25: =V24+IF(AND(V26<=H27,H27<=V27),'Loose Mix'!B28,IF(AND(V27<H27,H27<=V28),'Loose Mix'!B29,IF(AND(V28<H27,H27<=V29),'Loose Mix'!B30,IF(AND(V29<H27,H27<=V30),'Loose Mix'!B31,IF(AND(V30<H27,H27<=V31),'Loose Mix'!B32,'Loose Mix'!B33))))) -> 400 | W25: =W24+IF(AND(V26<=N27,N27<=V27),'Loose Mix'!B28,IF(AND(V27<N27,N27<=V28),'Loose Mix'!B29,IF(AND(V28<N27,N27<=V29),'Loose Mix'!B30,IF(AND(V29<N27,N27<=V30),'Loose Mix'!B31,IF(AND(V30<N27,N27<=V31),'Loose Mix'!B32,'Loose Mix'!B33))))) -> 400
A26: ENDING STA./LM | D26: =INDEX('Loose Mix'!D28:'Loose Mix'!D33,COUNT('Loose Mix'!D28:'Loose Mix'!D33),1) -> 500 | F26: L | G26: A | H26: X=L x A | I26: STA + X | L26: L2 | M26: A | N26: X=L+L2xA | O26: STA + X | V26: 0 | W26: =IF(AND(V26<=H27,H27<=V27),S27,IF(AND(V27<H27,H27<=V28),S28,IF(AND(V28<H27,H27<=V29),S29,IF(AND(V29<H27,H27<=V30),S30,IF(AND(V30<H27,H27<=V31),S31,S32))))) -> 0 | X26: =IF(AND(V26<=N27+F27,N27+F27<=V27),S27,IF(AND(V27<N27+F27,N27+F27<=V28),S28,IF(AND(V28<F27,F27<=V29),S29,IF(AND(V29<F27,F27<=V30),S30,IF(AND(V30<F27,F27<=V31),S31,S32))))) -> 0
A27: LENGTH "L" | D27: =V32 -> 100 | F27: =IF($V$5=2,ROUND(D27/2,0),ROUND(D27,0)) -> 100 | G27: =G24 -> 0 | H27: =F27*G27 -> 0 | I27: =IF(B23="","",V25) -> 400 | L27: =IF($V$5=2,ROUND(D27/2,0),0) -> 0 | M27: =M24 -> 0 | N27: =IF($V$5=2,F27+L27*M27,0) -> 0 | O27: =IF(AND($V$5=2,B23<>""),W25,"") ->  | S27: ='Loose Mix'!A28 -> 0 | U27: ='Loose Mix'!D28-'Loose Mix'!B28 -> 100 | V27: =U27 -> 100
A28: WIDTH "W" | D28: ='Loose Mix'!M43 -> 12 | F28: W2 | G28: B | H28: ="OFFSET="&TEXT(IF(I24>0,0.5,0),"0.0")&"+W2XB" -> OFFSET=0.0+W2XB | L28: W2 | M28: B | N28: ="OFFSET="&TEXT(IF(O24>0,0.5,0),"0.0")&"+W2XB" -> OFFSET=0.0+W2XB | S28: ='Loose Mix'!A29 -> 0 | U28: ='Loose Mix'!D29-'Loose Mix'!B29 -> 0 | V28: =U28+V27 -> 100
F29: =D28-I24*0.5 -> 12 | G29: =H24 -> 0 | I29: =F29*G29+IF(I24>0,0.5,0) -> 0 | L29: =IF($V$5=2,D28-O24*0.5,0) -> 0 | M29: =N24 -> 0 | O29: =L29*M29+IF(O24>0,0.5,0) -> 0 | S29: ='Loose Mix'!A30 -> 0 | U29: ='Loose Mix'!D30-'Loose Mix'!B30 -> 0 | V29: =U29+V28 -> 100
F30: =IF(I24>0,"Measure from unconfined edge.","") ->  | L30: =IF(O24>0,"Measure from unconfined edge.","") ->  | S30: ='Loose Mix'!A31 -> 0 | U30: ='Loose Mix'!D31-'Loose Mix'!B31 -> 0 | V30: =U30+V29 -> 100
S31: ='Loose Mix'!A32 -> 0 | U31: ='Loose Mix'!D32-'Loose Mix'!B32 -> 0 | V31: =U31+V30 -> 100
A32: SUBLOT | B32: =IF(+'Loose Mix'!F52=" "," ",+'Loose Mix'!F52) -> D | G32: A | H32: B | I32: EDGE | M32: A | N32: B | O32: EDGE | S32: ='Loose Mix'!A33 -> 0 | U32: ='Loose Mix'!D33-'Loose Mix'!B33 -> 0 | V32: =U32+V31 -> 100
A33: TONS IN SUBLOT | D33: ='Loose Mix'!M52 -> 750 | F33: RANDOM NO. | I33: =W35 -> 0 | L33: RANDOM NO. | O33: =X35 -> 0 | V33: =ROUND(H36-IF(AND(0<=H36,H36<=V36),V35,IF(AND(V36<H36,H36<=V37),V36,IF(AND(V37<H36,H36<=V38),V37,IF(AND(V38<H36,H36<=V39),V38,IF(AND(V39<H36,H36<=V40),V39,V40))))),0) -> 0 | W33: =ROUND(N36-IF(AND(0<=N36,N36<=V36),V35,IF(AND(V36<N36,N36<=V37),V36,IF(AND(V37<N36,N36<=V38),V37,IF(AND(V38<N36,N36<=V39),V38,IF(AND(V39<N36,N36<=V40),V39,V40))))),0) -> 0
A34: BEGIN STA./LM | D34: ='Loose Mix'!B35 -> 500 | V34: =V33+IF(AND(V35<=H36,H36<=V36),'Loose Mix'!B35,IF(AND(V36<H36,H36<=V37),'Loose Mix'!B36,IF(AND(V37<H36,H36<=V38),'Loose Mix'!B37,IF(AND(V38<H36,H36<=V39),'Loose Mix'!B38,IF(AND(V39<H36,H36<=V40),'Loose Mix'!B39,'Loose Mix'!B40))))) -> 500 | W34: =W33+IF(AND(V35<=N36,N36<=V36),'Loose Mix'!B35,IF(AND(V36<N36,N36<=V37),'Loose Mix'!B36,IF(AND(V37<N36,N36<=V38),'Loose Mix'!B37,IF(AND(V38<N36,N36<=V39),'Loose Mix'!B38,IF(AND(V39<N36,N36<=V40),'Loose Mix'!B39,'Loose Mix'!B40))))) -> 500
A35: ENDING STA./LM | D35: =INDEX('Loose Mix'!D35:'Loose Mix'!D40,COUNT('Loose Mix'!D35:'Loose Mix'!D40),1) -> 610 | F35: L | G35: A | H35: X=L x A | I35: STA + X | L35: L2 | M35: A | N35: X=L+L2xA | O35: STA + X | V35: 0 | W35: =IF(AND(V35<=H36,H36<=V36),S36,IF(AND(V36<H36,H36<=V37),S37,IF(AND(V37<H36,H36<=V38),S38,IF(AND(V38<H36,H36<=V39),S39,IF(AND(V39<H36,H36<=V40),S40,S41))))) -> 0 | X35: =IF(AND(V35<=N36+F36,N36+F36<=V36),S36,IF(AND(V36<N36+F36,N36+F36<=V37),S37,IF(AND(V37<F36,F36<=V38),S38,IF(AND(V38<F36,F36<=V39),S39,IF(AND(V39<F36,F36<=V40),S40,S41))))) -> 0
A36: LENGTH "L" | D36: =V41 -> 110 | F36: =IF($V$5=2,ROUND(D36/2,0),ROUND(D36,0)) -> 110 | G36: =G33 -> 0 | I36: =IF(B32="","",V34) -> 500 | L36: =IF($V$5=2,ROUND(D36/2,0),0) -> 0 | M36: =M33 -> 0 | N36: =IF($V$5=2,F36+L36*M36,0) -> 0 | O36: =IF(AND($V$5=2,B32<>""),W34,"") ->  | S36: ='Loose Mix'!A35 -> 0 | U36: ='Loose Mix'!D35-'Loose Mix'!B35 -> 110 | V36: =U36 -> 110
A37: WIDTH "W" | D37: ='Loose Mix'!M55 -> 12 | F37: W2 | G37: B | H37: ="OFFSET="&TEXT(IF(I33>0,0.5,0),"0.0")&"+W2XB" -> OFFSET=0.0+W2XB | L37: W2 | M37: B | N37: ="OFFSET="&TEXT(IF(O33>0,0.5,0),"0.0")&"+W2XB" -> OFFSET=0.0+W2XB | S37: ='Loose Mix'!A36 -> 0 | U37: ='Loose Mix'!D36-'Loose Mix'!B36 -> 0 | V37: =U37+V36 -> 110
F38: =D37-I33*0.5 -> 12 | G38: =H33 -> 0 | I38: =F38*G38+IF(I33>0,0.5,0) -> 0 | L38: =IF($V$5=2,D37-O33*0.5,0) -> 0 | M38: =N33 -> 0 | O38: =L38*M38+IF(O33>0,0.5,0) -> 0 | S38: ='Loose Mix'!A37 -> 0 | U38: ='Loose Mix'!D37-'Loose Mix'!B37 -> 0 | V38: =U38+V37 -> 110
F39: =IF(I33>0,"Measure from unconfined edge.","") ->  | L39: =IF(O33>0,"Measure from unconfined edge.","") ->  | S39: ='Loose Mix'!A38 -> 0 | U39: ='Loose Mix'!D38-'Loose Mix'!B38 -> 0 | V39: =U39+V38 -> 110
S40: ='Loose Mix'!A39 -> 0 | U40: ='Loose Mix'!D39-'Loose Mix'!B39 -> 0 | V40: =U40+V39 -> 110
A41: SUBLOT | B41: =IF(+'Loose Mix'!F64=" "," ",+'Loose Mix'!F64) ->  | G41: A | H41: B | I41: EDGE | M41: A | N41: B | O41: EDGE | S41: ='Loose Mix'!A40 -> 0 | U41: ='Loose Mix'!D40-'Loose Mix'!B40 -> 0 | V41: =U41+V40 -> 110
A42: TONS IN SUBLOT | D42: ='Loose Mix'!M64 -> 0 | F42: RANDOM NO. | I42: =W44 -> 0 | L42: RANDOM NO. | O42: =X44 -> 0 | V42: =ROUND(H45-IF(AND(0<=H45,H45<=V45),V44,IF(AND(V45<H45,H45<=V46),V45,IF(AND(V46<H45,H45<=V47),V46,IF(AND(V47<H45,H45<=V48),V47,IF(AND(V48<H45,H45<=V49),V48,V49))))),0) -> 610 | W42: =ROUND(N45-IF(AND(0<=N45,N45<=V45),V44,IF(AND(V45<N45,N45<=V46),V45,IF(AND(V46<N45,N45<=V47),V46,IF(AND(V47<N45,N45<=V48),V47,IF(AND(V48<N45,N45<=V49),V48,V49))))),0) -> 610
A43: BEGIN STA./LM | D43: ='Loose Mix'!B42 -> 610 | V43: =V42+IF(AND(V44<=H45,H45<=V45),'Loose Mix'!B42,IF(AND(V45<H45,H45<=V46),'Loose Mix'!B43,IF(AND(V46<H45,H45<=V47),'Loose Mix'!B44,IF(AND(V47<H45,H45<=V48),'Loose Mix'!B45,IF(AND(V48<H45,H45<=V49),'Loose Mix'!B46,'Loose Mix'!B47))))) -> 610 | W43: =W42+IF(AND(V44<=N45,N45<=V45),'Loose Mix'!B42,IF(AND(V45<N45,N45<=V46),'Loose Mix'!B43,IF(AND(V46<N45,N45<=V47),'Loose Mix'!B44,IF(AND(V47<N45,N45<=V48),'Loose Mix'!B45,IF(AND(V48<N45,N45<=V49),'Loose Mix'!B46,'Loose Mix'!B47))))) -> 610
A44: ENDING STA./LM | D44: =INDEX('Loose Mix'!D42:'Loose Mix'!D47,COUNT('Loose Mix'!D42:'Loose Mix'!D47),1) -> 0 | F44: L | G44: A | H44: X=L x A | I44: STA + X | L44: L2 | M44: A | N44: X=L+L2xA | O44: STA + X | V44: 0 | W44: =IF(AND(V44<=H45,H45<=V45),S45,IF(AND(V45<H45,H45<=V46),S46,IF(AND(V46<H45,H45<=V47),S47,IF(AND(V47<H45,H45<=V48),S48,IF(AND(V48<H45,H45<=V49),S49,S50))))) -> 0 | X44: =IF(AND(V44<=N45+F45,N45+F45<=V45),S45,IF(AND(V45<N45+F45,N45+F45<=V46),S46,IF(AND(V46<F45,F45<=V47),S47,IF(AND(V47<F45,F45<=V48),S48,IF(AND(V48<F45,F45<=V49),S49,S50))))) -> 0
A45: LENGTH "L" | D45: =V50 -> -610 | F45: =IF($V$5=2,ROUND(D45/2,0),ROUND(D45,0)) -> -610 | G45: =G42 -> 0 | H45: =F45*G45 -> 0 | I45: =IF(B41="","",V43) ->  | L45: =IF($V$5=2,ROUND(D45/2,0),0) -> 0 | M45: =M42 -> 0 | N45: =IF($V$5=2,F45+L45*M45,0) -> 0 | O45: =IF(AND($V$5=2,B41<>""),W43,"") ->  | S45: ='Loose Mix'!A42 -> 0 | U45: ='Loose Mix'!D42-'Loose Mix'!B42 -> -610 | V45: =U45 -> -610
A46: WIDTH "W" | D46: ='Loose Mix'!M67 -> 12 | F46: W2 | G46: B | H46: ="OFFSET="&TEXT(IF(I42>0,0.5,0),"0.0")&"+W2XB" -> OFFSET=0.0+W2XB | L46: W2 | M46: B | N46: ="OFFSET="&TEXT(IF(O42>0,0.5,0),"0.0")&"+W2XB" -> OFFSET=0.0+W2XB | S46: ='Loose Mix'!A43 -> 0 | U46: ='Loose Mix'!D43-'Loose Mix'!B43 -> 0 | V46: =U46+V45 -> -610
F47: =D46-I42*0.5 -> 12 | G47: =H42 -> 0 | I47: =F47*G47+IF(I42>0,0.5,0) -> 0 | L47: =IF($V$5=2,D46-O42*0.5,0) -> 0 | M47: =N42 -> 0 | O47: =L47*M47+IF(O42>0,0.5,0) -> 0 | S47: ='Loose Mix'!A44 -> 0 | U47: ='Loose Mix'!D44-'Loose Mix'!B44 -> 0 | V47: =U47+V46 -> -610
F48: =IF(I42>0,"Measure from unconfined edge.","") ->  | L48: =IF(O42>0,"Measure from unconfined edge.","") ->  | S48: ='Loose Mix'!A45 -> 0 | U48: ='Loose Mix'!D45-'Loose Mix'!B45 -> 0 | V48: =U48+V47 -> -610
S49: ='Loose Mix'!A46 -> 0 | U49: ='Loose Mix'!D46-'Loose Mix'!B46 -> 0 | V49: =U49+V48 -> -610
A50: SUBLOT | B50: =IF(+'Loose Mix'!F76=" "," ",+'Loose Mix'!F76) ->  | G50: A | H50: B | I50: EDGE | M50: A | N50: B | O50: EDGE | S50: ='Loose Mix'!A47 -> 0 | U50: ='Loose Mix'!D47-'Loose Mix'!B47 -> 0 | V50: =U50+V49 -> -610
A51: TONS IN SUBLOT | D51: ='Loose Mix'!M76 -> 0 | F51: RANDOM NO. | I51: =W53 -> 0 | L51: RANDOM NO. | O51: =X53 -> 0 | V51: =ROUND(H54-IF(AND(0<=H54,H54<=V54),V53,IF(AND(V54<H54,H54<=V55),V54,IF(AND(V55<H54,H54<=V56),V55,IF(AND(V56<H54,H54<=V57),V56,IF(AND(V57<H54,H54<=V58),V57,V58))))),0) -> 0 | W51: =ROUND(N54-IF(AND(0<=N54,N54<=V54),V53,IF(AND(V54<N54,N54<=V55),V54,IF(AND(V55<N54,N54<=V56),V55,IF(AND(V56<N54,N54<=V57),V56,IF(AND(V57<N54,N54<=V58),V57,V58))))),0) -> 0
A52: BEGIN STA./LM | D52: ='Loose Mix'!B49 -> 0 | V52: =V51+IF(AND(V53<=H54,H54<=V54),'Loose Mix'!B49,IF(AND(V54<H54,H54<=V55),'Loose Mix'!B50,IF(AND(V55<H54,H54<=V56),'Loose Mix'!B51,IF(AND(V56<H54,H54<=V57),'Loose Mix'!B52,IF(AND(V57<H54,H54<=V58),'Loose Mix'!B53,'Loose Mix'!B54))))) -> 0 | W52: =W51+IF(AND(V53<=N54,N54<=V54),'Loose Mix'!B49,IF(AND(V54<N54,N54<=V55),'Loose Mix'!B50,IF(AND(V55<N54,N54<=V56),'Loose Mix'!B51,IF(AND(V56<N54,N54<=V57),'Loose Mix'!B52,IF(AND(V57<N54,N54<=V58),'Loose Mix'!B53,'Loose Mix'!B54))))) -> 0
A53: ENDING STA./LM | D53: =INDEX('Loose Mix'!D49:'Loose Mix'!D54,COUNT('Loose Mix'!D49:'Loose Mix'!D54),1) -> 0 | F53: L | G53: A | H53: X=L x A | I53: STA + X | L53: L2 | M53: A | N53: X=L+L2xA | O53: STA + X | V53: 0 | W53: =IF(AND(V53<=H54,H54<=V54),S54,IF(AND(V54<H54,H54<=V55),S55,IF(AND(V55<H54,H54<=V56),S56,IF(AND(V56<H54,H54<=V57),S57,IF(AND(V57<H54,H54<=V58),S58,S59))))) -> 0 | X53: =IF(AND(V53<=N54+F54,N54+F54<=V54),S54,IF(AND(V54<N54+F54,N54+F54<=V55),S55,IF(AND(V55<F54,F54<=V56),S56,IF(AND(V56<F54,F54<=V57),S57,IF(AND(V57<F54,F54<=V58),S58,S59))))) -> 0
A54: LENGTH "L" | D54: =V59 -> 0 | F54: =IF($V$5=2,ROUND(D54/2,0),ROUND(D54,0)) -> 0 | G54: =G51 -> 0 | H54: =F54*G54 -> 0 | I54: =IF(B50="","",V52) ->  | L54: =IF($V$5=2,ROUND(D54/2,0),0) -> 0 | M54: =M51 -> 0 | N54: =IF($V$5=2,F54+L54*M54,0) -> 0 | O54: =IF(AND($V$5=2,B50<>""),W52,"") ->  | S54: ='Loose Mix'!A49 -> 0 | U54: ='Loose Mix'!D49-'Loose Mix'!B49 -> 0 | V54: =U54 -> 0
A55: WIDTH "W" | D55: ='Loose Mix'!M79 -> 12 | F55: W2 | G55: B | H55: ="OFFSET="&TEXT(IF(I51>0,0.5,0),"0.0")&"+W2XB" -> OFFSET=0.0+W2XB | L55: W2 | M55: B | N55: ="OFFSET="&TEXT(IF(O51>0,0.5,0),"0.0")&"+W2XB" -> OFFSET=0.0+W2XB | S55: ='Loose Mix'!A50 -> 0 | U55: ='Loose Mix'!D50-'Loose Mix'!B50 -> 0 | V55: =U55+V54 -> 0
F56: =D55-I51*0.5 -> 12 | G56: =H51 -> 0 | I56: =F56*G56+IF(I51>0,0.5,0) -> 0 | L56: =IF($V$5=2,D55-O51*0.5,0) -> 0 | M56: =N51 -> 0 | O56: =L56*M56+IF(O51>0,0.5,0) -> 0 | S56: ='Loose Mix'!A51 -> 0 | U56: ='Loose Mix'!D51-'Loose Mix'!B51 -> 0 | V56: =U56+V55 -> 0
F57: =IF(I51>0,"Measure from unconfined edge.","") ->  | L57: =IF(O51>0,"Measure from unconfined edge.","") ->  | S57: ='Loose Mix'!A52 -> 0 | U57: ='Loose Mix'!D52-'Loose Mix'!B52 -> 0 | V57: =U57+V56 -> 0
S58: ='Loose Mix'!A53 -> 0 | U58: ='Loose Mix'!D53-'Loose Mix'!B53 -> 0 | V58: =U58+V57 -> 0
A59: SUBLOT | B59: =IF(+'Loose Mix'!F88=" "," ",+'Loose Mix'!F88) ->  | G59: A | H59: B | I59: EDGE | M59: A | N59: B | O59: EDGE | S59: ='Loose Mix'!A54 -> 0 | U59: ='Loose Mix'!D54-'Loose Mix'!B54 -> 0 | V59: =U59+V58 -> 0
A60: TONS IN SUBLOT | D60: ='Loose Mix'!M88 -> 0 | F60: RANDOM NO. | I60: =W62 -> 0 | L60: RANDOM NO. | O60: =X62 -> 0 | V60: =ROUND(H63-IF(AND(0<=H63,H63<=V63),V62,IF(AND(V63<H63,H63<=V64),V63,IF(AND(V64<H63,H63<=V65),V64,IF(AND(V65<H63,H63<=V66),V65,IF(AND(V66<H63,H63<=V67),V66,V67))))),0) -> 0 | W60: =ROUND(N63-IF(AND(0<=N63,N63<=V63),V62,IF(AND(V63<N63,N63<=V64),V63,IF(AND(V64<N63,N63<=V65),V64,IF(AND(V65<N63,N63<=V66),V65,IF(AND(V66<N63,N63<=V67),V66,V67))))),0) -> 0
A61: BEGIN STA./LM | D61: ='Loose Mix'!B56 -> 0 | V61: =V60+IF(AND(V62<=H63,H63<=V63),'Loose Mix'!B56,IF(AND(V63<H63,H63<=V64),'Loose Mix'!B57,IF(AND(V64<H63,H63<=V65),'Loose Mix'!B58,IF(AND(V65<H63,H63<=V66),'Loose Mix'!B59,IF(AND(V66<H63,H63<=V67),'Loose Mix'!B60,'Loose Mix'!B61))))) -> 0 | W61: =W60+IF(AND(V62<=N63,N63<=V63),'Loose Mix'!B56,IF(AND(V63<N63,N63<=V64),'Loose Mix'!B57,IF(AND(V64<N63,N63<=V65),'Loose Mix'!B58,IF(AND(V65<N63,N63<=V66),'Loose Mix'!B59,IF(AND(V66<N63,N63<=V67),'Loose Mix'!B60,'Loose Mix'!B61))))) -> 0
A62: ENDING STA./LM | D62: =INDEX('Loose Mix'!D56:'Loose Mix'!D61,COUNT('Loose Mix'!D56:'Loose Mix'!D61),1) ->  | F62: L | G62: A | H62: X=L x A | I62: STA + X | L62: L2 | M62: A | N62: X=L+L2xA | O62: STA + X | V62: 0 | W62: =IF(AND(V62<=H63,H63<=V63),S63,IF(AND(V63<H63,H63<=V64),S64,IF(AND(V64<H63,H63<=V65),S65,IF(AND(V65<H63,H63<=V66),S66,IF(AND(V66<H63,H63<=V67),S67,S68))))) -> 0 | X62: =IF(AND(V62<=N63+F63,N63+F63<=V63),S63,IF(AND(V63<N63+F63,N63+F63<=V64),S64,IF(AND(V64<F63,F63<=V65),S65,IF(AND(V65<F63,F63<=V66),S66,IF(AND(V66<F63,F63<=V67),S67,S68))))) -> 0
A63: LENGTH "L" | D63: =V68 -> 0 | F63: =IF($V$5=2,ROUND(D63/2,0),ROUND(D63,0)) -> 0 | G63: =G60 -> 0 | H63: =F63*G63 -> 0 | I63: =IF(B59="","",V61) ->  | L63: =IF($V$5=2,ROUND(D63/2,0),0) -> 0 | M63: =M60 -> 0 | N63: =IF($V$5=2,F63+L63*M63,0) -> 0 | O63: =IF(AND($V$5=2,B59<>""),W61,"") ->  | S63: ='Loose Mix'!A56 -> 0 | U63: ='Loose Mix'!D56-'Loose Mix'!B56 -> 0 | V63: =U63 -> 0
A64: WIDTH "W" | D64: ='Loose Mix'!M91 -> 12 | F64: W2 | G64: B | H64: ="OFFSET="&TEXT(IF(I60>0,0.5,0),"0.0")&"+W2XB" -> OFFSET=0.0+W2XB | L64: W2 | M64: B | N64: ="OFFSET="&TEXT(IF(O60>0,0.5,0),"0.0")&"+W2XB" -> OFFSET=0.0+W2XB | S64: ='Loose Mix'!A57 -> 0 | U64: ='Loose Mix'!D57-'Loose Mix'!B57 -> 0 | V64: =U64+V63 -> 0
F65: =D64-I60*0.5 -> 12 | G65: =H60 -> 0 | I65: =F65*G65+IF(I60>0,0.5,0) -> 0 | L65: =IF($V$5=2,D64-O60*0.5,0) -> 0 | M65: =N60 -> 0 | O65: =L65*M65+IF(O60>0,0.5,0) -> 0 | S65: ='Loose Mix'!A58 -> 0 | U65: ='Loose Mix'!D58-'Loose Mix'!B58 -> 0 | V65: =U65+V64 -> 0
A66: ALWAYS MEASURE OFFSET FROM SAME EDGE | F66: =IF(I60>0,"Measure from unconfined edge.","") ->  | L66: =IF(O60>0,"Measure from unconfined edge.","") ->  | S66: ='Loose Mix'!A59 -> 0 | U66: ='Loose Mix'!D59-'Loose Mix'!B59 -> 0 | V66: =U66+V65 -> 0
S67: ='Loose Mix'!A60 -> 0 | U67: ='Loose Mix'!D60-'Loose Mix'!B60 -> 0 | V67: =U67+V66 -> 0
S68: ='Loose Mix'!A61 -> 0 | U68: ='Loose Mix'!D61-'Loose Mix'!B61 -> 0 | V68: =U68+V67 -> 0

Sheet LongDensity
A1: LONGITUDINAL JOINT DENSITY
U2: =ROUND(RAND(),4) -> 0.7258 | V2: =ROUND(RAND(),4) -> 0.8478
A3: JOB | B3: =Properties!B3 -> 0 | D3: ROUTE | E3: =Properties!E3 -> 0 | F3: MIX NO. | G3: =UPPER(Properties!G3) ->  | I3: LOT NO. | J3: =Properties!J3 -> 0
A5: SUBLOT | B5: =IF(+'Loose Mix'!F16=" "," ",+'Loose Mix'!F16) -> A | G5: A | H5: B | I5: EDGE | M5: A | N5: B | O5: EDGE
A6: TONS IN SUBLOT | D6: ='Loose Mix'!M16 -> 750 | F6: RANDOM NO. | I6: =W8 -> 0 | L6: RANDOM NO. | O6: =X8 -> 0 | V6: =ROUND(H9-IF(AND(0<=H9,H9<=V9),V8,IF(AND(V9<H9,H9<=V10),V9,IF(AND(V10<H9,H9<=V11),V10,IF(AND(V11<H9,H9<=V12),V11,IF(AND(V12<H9,H9<=V13),V12,V13))))),0) -> 0 | W6: =ROUND(N9-IF(AND(0<=N9,N9<=V9),V8,IF(AND(V9<N9,N9<=V10),V9,IF(AND(V10<N9,N9<=V11),V10,IF(AND(V11<N9,N9<=V12),V11,IF(AND(V12<N9,N9<=V13),V12,V13))))),0) -> 0
A7: BEGIN STA./LM | D7: ='Loose Mix'!B14 -> 200 | V7: =V6+IF(AND(V8<=H9,H9<=V9),'Loose Mix'!B14,IF(AND(V9<H9,H9<=V10),'Loose Mix'!B15,IF(AND(V10<H9,H9<=V11),'Loose Mix'!B16,IF(AND(V11<H9,H9<=V12),'Loose Mix'!B17,IF(AND(V12<H9,H9<=V13),'Loose Mix'!B18,'Loose Mix'!B19))))) -> 200 | W7: =W6+IF(AND(V8<=N9,N9<=V9),'Loose Mix'!B14,IF(AND(V9<N9,N9<=V10),'Loose Mix'!B15,IF(AND(V10<N9,N9<=V11),'Loose Mix'!B16,IF(AND(V11<N9,N9<=V12),'Loose Mix'!B17,IF(AND(V12<N9,N9<=V13),'Loose Mix'!B18,'Loose Mix'!B19))))) -> 200
A8: ENDING STA./LM | D8: =INDEX('Loose Mix'!D14:'Loose Mix'!D19,COUNT('Loose Mix'!D14:'Loose Mix'!D19),1) -> 300 | F8: L | G8: A | H8: X=L x A | I8: STA + X | L8: L2 | M8: A | N8: X=L+L2xA | O8: STA + X | V8: 0 | W8: =IF(AND(V8<=H9,H9<=V9),S9,IF(AND(V9<H9,H9<=V10),S10,IF(AND(V10<H9,H9<=V11),S11,IF(AND(V11<H9,H9<=V12),S12,IF(AND(V12<H9,H9<=V13),S13,S14))))) -> 0 | X8: =IF(AND(V8<=N9+F9,N9+F9<=V9),S9,IF(AND(V9<N9+F9,N9+F9<=V10),S10,IF(AND(V10<F9,F9<=V11),S11,IF(AND(V11<F9,F9<=V12),S12,IF(AND(V12<F9,F9<=V13),S13,S14))))) -> 0
A9: LENGTH "L" | D9: =V14 -> 0 | F9: =IF($V$5=2,ROUND(D9/2,0),ROUND(D9,0)) -> 0 | G9: =G6 -> 0 | H9: =F9*G9 -> 0 | I9: =IF(I6>0,V7,"") ->  | L9: =IF($V$5=2,ROUND(D9/2,0),0) -> 0 | M9: =M6 -> 0 | N9: =IF($V$5=2,F9+L9*M9,0) -> 0 | O9: =IF($V$5=2,W7,0) -> 0 | S9: ='Loose Mix'!A14 -> 0 | U9: =IF(S9>0,'Loose Mix'!D14-'Loose Mix'!B14,0) -> 0 | V9: =U9 -> 0
I10: =IF(AND(I6=2,H6>=0.5),"OPPOSITE SIDE","") ->  | L10: W2 | M10: B | N10: ="OFFSET="&TEXT(IF(O6>0,0.5,0),"0.0")&"+W2XB" -> OFFSET=0.0+W2XB | S10: ='Loose Mix'!A15 -> 0 | U10: =IF(S10>0,'Loose Mix'!D15-'Loose Mix'!B15,0) -> 0 | V10: =U10+V9 -> 0
L11: =IF($V$5=2,D10-O6*0.5,0) -> 0 | M11: =N6 -> 0 | O11: =L11*M11+IF(O6>0,0.5,0) -> 0 | S11: ='Loose Mix'!A16 -> 0 | U11: =IF(S11>0,'Loose Mix'!D16-'Loose Mix'!B16,0) -> 0 | V11: =U11+V10 -> 0
F12: =IF(I6>0,"Measure from unconfined edge.","") ->  | L12: =IF(O6>0,"Measure from unconfined edge.","") ->  | S12: ='Loose Mix'!A17 -> 0 | U12: =IF(S12>0,'Loose Mix'!D17-'Loose Mix'!B17,0) -> 0 | V12: =U12+V11 -> 0
S13: ='Loose Mix'!A18 -> 0 | U13: =IF(S13>0,'Loose Mix'!D18-'Loose Mix'!B18,0) -> 0 | V13: =U13+V12 -> 0
A14: SUBLOT | B14: =IF(+'Loose Mix'!F28=" "," ",+'Loose Mix'!F28) -> B | G14: A | H14: B | I14: EDGE | M14: A | N14: B | O14: EDGE | S14: ='Loose Mix'!A19 -> 0 | U14: =IF(S14>0,'Loose Mix'!D19-'Loose Mix'!B19,0) -> 0 | V14: =U14+V13 -> 0
A15: TONS IN SUBLOT | D15: ='Loose Mix'!M28 -> 750 | F15: RANDOM NO. | I15: =W17 -> 0 | L15: RANDOM NO. | O15: =X17 -> 0 | V15: =ROUND(H18-IF(AND(0<=H18,H18<=V18),V17,IF(AND(V18<H18,H18<=V19),V18,IF(AND(V19<H18,H18<=V20),V19,IF(AND(V20<H18,H18<=V21),V20,IF(AND(V21<H18,H18<=V22),V21,V22))))),0) -> 0 | W15: =ROUND(N18-IF(AND(0<=N18,N18<=V18),V17,IF(AND(V18<N18,N18<=V19),V18,IF(AND(V19<N18,N18<=V20),V19,IF(AND(V20<N18,N18<=V21),V20,IF(AND(V21<N18,N18<=V22),V21,V22))))),0) -> 0
A16: BEGIN STA./LM | D16: ='Loose Mix'!B21 -> 300 | V16: =V15+IF(AND(V17<=H18,H18<=V18),'Loose Mix'!B21,IF(AND(V18<H18,H18<=V19),'Loose Mix'!B22,IF(AND(V19<H18,H18<=V20),'Loose Mix'!B23,IF(AND(V20<H18,H18<=V21),'Loose Mix'!B24,IF(AND(V21<H18,H18<=V22),'Loose Mix'!B25,'Loose Mix'!B26))))) -> 300 | W16: =W15+IF(AND(V17<=N18,N18<=V18),'Loose Mix'!B21,IF(AND(V18<N18,N18<=V19),'Loose Mix'!B22,IF(AND(V19<N18,N18<=V20),'Loose Mix'!B23,IF(AND(V20<N18,N18<=V21),'Loose Mix'!B24,IF(AND(V21<N18,N18<=V22),'Loose Mix'!B25,'Loose Mix'!B26))))) -> 300
A17: ENDING STA./LM | D17: =INDEX('Loose Mix'!D21:'Loose Mix'!D26,COUNT('Loose Mix'!D21:'Loose Mix'!D26),1) -> 400 | F17: L | G17: A | H17: X=L x A | I17: STA + X | L17: L2 | M17: A | N17: X=L+L2xA | O17: STA + X | V17: 0 | W17: =IF(AND(V17<=H18,H18<=V18),S18,IF(AND(V18<H18,H18<=V19),S19,IF(AND(V19<H18,H18<=V20),S20,IF(AND(V20<H18,H18<=V21),S21,IF(AND(V21<H18,H18<=V22),S22,S23))))) -> 0 | X17: =IF(AND(V17<=N18+F18,N18+F18<=V18),S18,IF(AND(V18<N18+F18,N18+F18<=V19),S19,IF(AND(V19<F18,F18<=V20),S20,IF(AND(V20<F18,F18<=V21),S21,IF(AND(V21<F18,F18<=V22),S22,S23))))) -> 0
A18: LENGTH "L" | D18: =V23 -> 0 | F18: =IF($V$5=2,ROUND(D18/2,0),ROUND(D18,0)) -> 0 | G18: =G15 -> 0 | H18: =F18*G18 -> 0 | I18: =IF(I15>0,V16,"") ->  | L18: =IF($V$5=2,ROUND(D18/2,0),0) -> 0 | M18: =M15 -> 0 | N18: =IF($V$5=2,F18+L18*M18,0) -> 0 | O18: =IF($V$5=2,W16,0) -> 0 | S18: ='Loose Mix'!A21 -> 0 | U18: =IF(S18>0,'Loose Mix'!D21-'Loose Mix'!B21,0) -> 0 | V18: =U18 -> 0
I19: =IF(AND(I15=2,H15>=0.5),"OPPOSITE SIDE","") ->  | L19: W2 | M19: B | N19: ="OFFSET="&TEXT(IF(O15>0,0.5,0),"0.0")&"+W2XB" -> OFFSET=0.0+W2XB | S19: ='Loose Mix'!A22 -> 0 | U19: =IF(S19>0,'Loose Mix'!D22-'Loose Mix'!B22,0) -> 0 | V19: =U19+V18 -> 0
L20: =IF($V$5=2,D19-O15*0.5,0) -> 0 | M20: =N15 -> 0 | O20: =L20*M20+IF(O15>0,0.5,0) -> 0 | S20: ='Loose Mix'!A23 -> 0 | U20: =IF(S20>0,'Loose Mix'!D23-'Loose Mix'!B23,0) -> 0 | V20: =U20+V19 -> 0
F21: =IF(I15>0,"Measure from unconfined edge.","") ->  | L21: =IF(O15>0,"Measure from unconfined edge.","") ->  | S21: ='Loose Mix'!A24 -> 0 | U21: =IF(S21>0,'Loose Mix'!D24-'Loose Mix'!B24,0) -> 0 | V21: =U21+V20 -> 0
S22: ='Loose Mix'!A25 -> 0 | U22: =IF(S22>0,'Loose Mix'!D25-'Loose Mix'!B25,0) -> 0 | V22: =U22+V21 -> 0
A23: SUBLOT | B23: =IF(+'Loose Mix'!F40=" "," ",+'Loose Mix'!F40) -> C | G23: A | H23: B | I23: EDGE | M23: A | N23: B | O23: EDGE | S23: ='Loose Mix'!A26 -> 0 | U23: =IF(S23>0,'Loose Mix'!D26-'Loose Mix'!B26,0) -> 0 | V23: =U23+V22 -> 0
A24: TONS IN SUBLOT | D24: ='Loose Mix'!M40 -> 750 | F24: RANDOM NO. | I24: =W26 -> 0 | L24: RANDOM NO. | O24: =X26 -> 0 | V24: =ROUND(H27-IF(AND(0<=H27,H27<=V27),V26,IF(AND(V27<H27,H27<=V28),V27,IF(AND(V28<H27,H27<=V29),V28,IF(AND(V29<H27,H27<=V30),V29,IF(AND(V30<H27,H27<=V31),V30,V31))))),0) -> 0 | W24: =ROUND(N27-IF(AND(0<=N27,N27<=V27),V26,IF(AND(V27<N27,N27<=V28),V27,IF(AND(V28<N27,N27<=V29),V28,IF(AND(V29<N27,N27<=V30),V29,IF(AND(V30<N27,N27<=V31),V30,V31))))),0) -> 0
A25: BEGIN STA./LM | D25: ='Loose Mix'!B28 -> 400 | V25: =V24+IF(AND(V26<=H27,H27<=V27),'Loose Mix'!B28,IF(AND(V27<H27,H27<=V28),'Loose Mix'!B29,IF(AND(V28<H27,H27<=V29),'Loose Mix'!B30,IF(AND(V29<H27,H27<=V30),'Loose Mix'!B31,IF(AND(V30<H27,H27<=V31),'Loose Mix'!B32,'Loose Mix'!B33))))) -> 400 | W25: =W24+IF(AND(V26<=N27,N27<=V27),'Loose Mix'!B28,IF(AND(V27<N27,N27<=V28),'Loose Mix'!B29,IF(AND(V28<N27,N27<=V29),'Loose Mix'!B30,IF(AND(V29<N27,N27<=V30),'Loose Mix'!B31,IF(AND(V30<N27,N27<=V31),'Loose Mix'!B32,'Loose Mix'!B33))))) -> 400
A26: ENDING STA./LM | D26: =INDEX('Loose Mix'!D28:'Loose Mix'!D33,COUNT('Loose Mix'!D28:'Loose Mix'!D33),1) -> 500 | F26: L | G26: A | H26: X=L x A | I26: STA + X | L26: L2 | M26: A | N26: X=L+L2xA | O26: STA + X | V26: 0 | W26: =IF(AND(V26<=H27,H27<=V27),S27,IF(AND(V27<H27,H27<=V28),S28,IF(AND(V28<H27,H27<=V29),S29,IF(AND(V29<H27,H27<=V30),S30,IF(AND(V30<H27,H27<=V31),S31,S32))))) -> 0 | X26: =IF(AND(V26<=N27+F27,N27+F27<=V27),S27,IF(AND(V27<N27+F27,N27+F27<=V28),S28,IF(AND(V28<F27,F27<=V29),S29,IF(AND(V29<F27,F27<=V30),S30,IF(AND(V30<F27,F27<=V31),S31,S32))))) -> 0
A27: LENGTH "L" | D27: =V32 -> 0 | F27: =IF($V$5=2,ROUND(D27/2,0),ROUND(D27,0)) -> 0 | G27: =G24 -> 0 | H27: =F27*G27 -> 0 | I27: =IF(I24>0,V25,"") ->  | L27: =IF($V$5=2,ROUND(D27/2,0),0) -> 0 | M27: =M24 -> 0 | N27: =IF($V$5=2,F27+L27*M27,0) -> 0 | O27: =IF($V$5=2,W25,0) -> 0 | S27: ='Loose Mix'!A28 -> 0 | U27: =IF(S27>0,'Loose Mix'!D28-'Loose Mix'!B28,0) -> 0 | V27: =U27 -> 0
I28: =IF(AND(I24=2,H24>=0.5),"OPPOSITE SIDE","") ->  | L28: W2 | M28: B | N28: ="OFFSET="&TEXT(IF(O24>0,0.5,0),"0.0")&"+W2XB" -> OFFSET=0.0+W2XB | S28: ='Loose Mix'!A29 -> 0 | U28: =IF(S28>0,'Loose Mix'!D29-'Loose Mix'!B29,0) -> 0 | V28: =U28+V27 -> 0
L29: =IF($V$5=2,D28-O24*0.5,0) -> 0 | M29: =N24 -> 0 | O29: =L29*M29+IF(O24>0,0.5,0) -> 0 | S29: ='Loose Mix'!A30 -> 0 | U29: =IF(S29>0,'Loose Mix'!D30-'Loose Mix'!B30,0) -> 0 | V29: =U29+V28 -> 0
F30: =IF(I24>0,"Measure from unconfined edge.","") ->  | L30: =IF(O24>0,"Measure from unconfined edge.","") ->  | S30: ='Loose Mix'!A31 -> 0 | U30: =IF(S30>0,'Loose Mix'!D31-'Loose Mix'!B31,0) -> 0 | V30: =U30+V29 -> 0
S31: ='Loose Mix'!A32 -> 0 | U31: =IF(S31>0,'Loose Mix'!D32-'Loose Mix'!B32,0) -> 0 | V31: =U31+V30 -> 0
A32: SUBLOT | B32: =IF(+'Loose Mix'!F52=" "," ",+'Loose Mix'!F52) -> D | G32: A | H32: B | I32: EDGE | M32: A | N32: B | O32: EDGE | S32: ='Loose Mix'!A33 -> 0 | U32: =IF(S32>0,'Loose Mix'!D33-'Loose Mix'!B33,0) -> 0 | V32: =U32+V31 -> 0
A33: TONS IN SUBLOT | D33: ='Loose Mix'!M52 -> 750 | F33: RANDOM NO. | I33: =W35 -> 0 | L33: RANDOM NO. | O33: =X35 -> 0 | V33: =ROUND(H36-IF(AND(0<=H36,H36<=V36),V35,IF(AND(V36<H36,H36<=V37),V36,IF(AND(V37<H36,H36<=V38),V37,IF(AND(V38<H36,H36<=V39),V38,IF(AND(V39<H36,H36<=V40),V39,V40))))),0) -> 0 | W33: =ROUND(N36-IF(AND(0<=N36,N36<=V36),V35,IF(AND(V36<N36,N36<=V37),V36,IF(AND(V37<N36,N36<=V38),V37,IF(AND(V38<N36,N36<=V39),V38,IF(AND(V39<N36,N36<=V40),V39,V40))))),0) -> 0
A34: BEGIN STA./LM | D34: ='Loose Mix'!B35 -> 500 | V34: =V33+IF(AND(V35<=H36,H36<=V36),'Loose Mix'!B35,IF(AND(V36<H36,H36<=V37),'Loose Mix'!B36,IF(AND(V37<H36,H36<=V38),'Loose Mix'!B37,IF(AND(V38<H36,H36<=V39),'Loose Mix'!B38,IF(AND(V39<H36,H36<=V40),'Loose Mix'!B39,'Loose Mix'!B40))))) -> 500 | W34: =W33+IF(AND(V35<=N36,N36<=V36),'Loose Mix'!B35,IF(AND(V36<N36,N36<=V37),'Loose Mix'!B36,IF(AND(V37<N36,N36<=V38),'Loose Mix'!B37,IF(AND(V38<N36,N36<=V39),'Loose Mix'!B38,IF(AND(V39<N36,N36<=V40),'Loose Mix'!B39,'Loose Mix'!B40))))) -> 500
A35: ENDING STA./LM | D35: =INDEX('Loose Mix'!D35:'Loose Mix'!D40,COUNT('Loose Mix'!D35:'Loose Mix'!D40),1) -> 610 | F35: L | G35: A | H35: X=L x A | I35: STA + X | L35: L2 | M35: A | N35: X=L+L2xA | O35: STA + X | V35: 0 | W35: =IF(AND(V35<=H36,H36<=V36),S36,IF(AND(V36<H36,H36<=V37),S37,IF(AND(V37<H36,H36<=V38),S38,IF(AND(V38<H36,H36<=V39),S39,IF(AND(V39<H36,H36<=V40),S40,S41))))) -> 0 | X35: =IF(AND(V35<=N36+F36,N36+F36<=V36),S36,IF(AND(V36<N36+F36,N36+F36<=V37),S37,IF(AND(V37<F36,F36<=V38),S38,IF(AND(V38<F36,F36<=V39),S39,IF(AND(V39<F36,F36<=V40),S40,S41))))) -> 0
A36: LENGTH "L" | D36: =V41 -> 0 | F36: =IF($V$5=2,ROUND(D36/2,0),ROUND(D36,0)) -> 0 | G36: =G33 -> 0 | H36: =F36*G36 -> 0 | I36: =IF(I33>0,V34,"") ->  | L36: =IF($V$5=2,ROUND(D36/2,0),0) -> 0 | M36: =M33 -> 0 | N36: =IF($V$5=2,F36+L36*M36,0) -> 0 | O36: =IF($V$5=2,W34,0) -> 0 | S36: ='Loose Mix'!A35 -> 0 | U36: =IF(S36>0,'Loose Mix'!D35-'Loose Mix'!B35,0) -> 0 | V36: =U36 -> 0
I37: =IF(AND(I33=2,H33>=0.5),"OPPOSITE SIDE","") ->  | L37: W2 | M37: B | N37: ="OFFSET="&TEXT(IF(O33>0,0.5,0),"0.0")&"+W2XB" -> OFFSET=0.0+W2XB | S37: ='Loose Mix'!A36 -> 0 | U37: =IF(S37>0,'Loose Mix'!D36-'Loose Mix'!B36,0) -> 0 | V37: =U37+V36 -> 0
L38: =IF($V$5=2,D37-O33*0.5,0) -> 0 | M38: =N33 -> 0 | O38: =L38*M38+IF(O33>0,0.5,0) -> 0 | S38: ='Loose Mix'!A37 -> 0 | U38: =IF(S38>0,'Loose Mix'!D37-'Loose Mix'!B37,0) -> 0 | V38: =U38+V37 -> 0
F39: =IF(I33>0,"Measure from unconfined edge.","") ->  | L39: =IF(O33>0,"Measure from unconfined edge.","") ->  | S39: ='Loose Mix'!A38 -> 0 | U39: =IF(S39>0,'Loose Mix'!D38-'Loose Mix'!B38,0) -> 0 | V39: =U39+V38 -> 0
S40: ='Loose Mix'!A39 -> 0 | U40: =IF(S40>0,'Loose Mix'!D39-'Loose Mix'!B39,0) -> 0 | V40: =U40+V39 -> 0
A41: SUBLOT | B41: =IF(+'Loose Mix'!F64=" "," ",+'Loose Mix'!F64) ->  | G41: A | H41: B | I41: EDGE | M41: A | N41: B | O41: EDGE | S41: ='Loose Mix'!A40 -> 0 | U41: =IF(S41>0,'Loose Mix'!D40-'Loose Mix'!B40,0) -> 0 | V41: =U41+V40 -> 0
A42: TONS IN SUBLOT | D42: ='Loose Mix'!M64 -> 0 | F42: RANDOM NO. | I42: =W44 -> 0 | L42: RANDOM NO. | O42: =X44 -> 0 | V42: =ROUND(H45-IF(AND(0<=H45,H45<=V45),V44,IF(AND(V45<H45,H45<=V46),V45,IF(AND(V46<H45,H45<=V47),V46,IF(AND(V47<H45,H45<=V48),V47,IF(AND(V48<H45,H45<=V49),V48,V49))))),0) -> 0 | W42: =ROUND(N45-IF(AND(0<=N45,N45<=V45),V44,IF(AND(V45<N45,N45<=V46),V45,IF(AND(V46<N45,N45<=V47),V46,IF(AND(V47<N45,N45<=V48),V47,IF(AND(V48<N45,N45<=V49),V48,V49))))),0) -> 0
A43: BEGIN STA./LM | D43: ='Loose Mix'!B42 -> 610 | V43: =V42+IF(AND(V44<=H45,H45<=V45),'Loose Mix'!B42,IF(AND(V45<H45,H45<=V46),'Loose Mix'!B43,IF(AND(V46<H45,H45<=V47),'Loose Mix'!B44,IF(AND(V47<H45,H45<=V48),'Loose Mix'!B45,IF(AND(V48<H45,H45<=V49),'Loose Mix'!B46,'Loose Mix'!B47))))) -> 610 | W43: =W42+IF(AND(V44<=N45,N45<=V45),'Loose Mix'!B42,IF(AND(V45<N45,N45<=V46),'Loose Mix'!B43,IF(AND(V46<N45,N45<=V47),'Loose Mix'!B44,IF(AND(V47<N45,N45<=V48),'Loose Mix'!B45,IF(AND(V48<N45,N45<=V49),'Loose Mix'!B46,'Loose Mix'!B47))))) -> 610
A44: ENDING STA./LM | D44: =INDEX('Loose Mix'!D42:'Loose Mix'!D47,COUNT('Loose Mix'!D42:'Loose Mix'!D47),1) -> 0 | F44: L | G44: A | H44: X=L x A | I44: STA + X | L44: L2 | M44: A | N44: X=L+L2xA | O44: STA + X | V44: 0 | W44: =IF(AND(V44<=H45,H45<=V45),S45,IF(AND(V45<H45,H45<=V46),S46,IF(AND(V46<H45,H45<=V47),S47,IF(AND(V47<H45,H45<=V48),S48,IF(AND(V48<H45,H45<=V49),S49,S50))))) -> 0 | X44: =IF(AND(V44<=N45+F45,N45+F45<=V45),S45,IF(AND(V45<N45+F45,N45+F45<=V46),S46,IF(AND(V46<F45,F45<=V47),S47,IF(AND(V47<F45,F45<=V48),S48,IF(AND(V48<F45,F45<=V49),S49,S50))))) -> 0
A45: LENGTH "L" | D45: =V50 -> 0 | F45: =IF($V$5=2,ROUND(D45/2,0),ROUND(D45,0)) -> 0 | G45: =G42 -> 0 | H45: =F45*G45 -> 0 | I45: =IF(I42>0,V43,"") ->  | L45: =IF($V$5=2,ROUND(D45/2,0),0) -> 0 | M45: =M42 -> 0 | N45: =IF($V$5=2,F45+L45*M45,0) -> 0 | O45: =IF($V$5=2,W43,0) -> 0 | S45: ='Loose Mix'!A42 -> 0 | U45: =IF(S45>0,'Loose Mix'!D42-'Loose Mix'!B42,0) -> 0 | V45: =U45 -> 0
I46: =IF(AND(I42=2,H42>=0.5),"OPPOSITE SIDE","") ->  | L46: W2 | M46: B | N46: ="OFFSET="&TEXT(IF(O42>0,0.5,0),"0.0")&"+W2XB" -> OFFSET=0.0+W2XB | S46: ='Loose Mix'!A43 -> 0 | U46: =IF(S46>0,'Loose Mix'!D43-'Loose Mix'!B43,0) -> 0 | V46: =U46+V45 -> 0
L47: =IF($V$5=2,D46-O42*0.5,0) -> 0 | M47: =N42 -> 0 | O47: =L47*M47+IF(O42>0,0.5,0) -> 0 | S47: ='Loose Mix'!A44 -> 0 | U47: =IF(S47>0,'Loose Mix'!D44-'Loose Mix'!B44,0) -> 0 | V47: =U47+V46 -> 0
F48: =IF(I42>0,"Measure from unconfined edge.","") ->  | L48: =IF(O42>0,"Measure from unconfined edge.","") ->  | S48: ='Loose Mix'!A45 -> 0 | U48: =IF(S48>0,'Loose Mix'!D45-'Loose Mix'!B45,0) -> 0 | V48: =U48+V47 -> 0
S49: ='Loose Mix'!A46 -> 0 | U49: =IF(S49>0,'Loose Mix'!D46-'Loose Mix'!B46,0) -> 0 | V49: =U49+V48 -> 0
A50: SUBLOT | B50: =IF(+'Loose Mix'!F76=" "," ",+'Loose Mix'!F76) ->  | G50: A | H50: B | I50: EDGE | M50: A | N50: B | O50: EDGE | S50: ='Loose Mix'!A47 -> 0 | U50: =IF(S50>0,'Loose Mix'!D47-'Loose Mix'!B47,0) -> 0 | V50: =U50+V49 -> 0
A51: TONS IN SUBLOT | D51: ='Loose Mix'!M76 -> 0 | F51: RANDOM NO. | I51: =W53 -> 0 | L51: RANDOM NO. | O51: =X53 -> 0 | V51: =ROUND(H54-IF(AND(0<=H54,H54<=V54),V53,IF(AND(V54<H54,H54<=V55),V54,IF(AND(V55<H54,H54<=V56),V55,IF(AND(V56<H54,H54<=V57),V56,IF(AND(V57<H54,H54<=V58),V57,V58))))),0) -> 0 | W51: =ROUND(N54-IF(AND(0<=N54,N54<=V54),V53,IF(AND(V54<N54,N54<=V55),V54,IF(AND(V55<N54,N54<=V56),V55,IF(AND(V56<N54,N54<=V57),V56,IF(AND(V57<N54,N54<=V58),V57,V58))))),0) -> 0
A52: BEGIN STA./LM | D52: ='Loose Mix'!B49 -> 0 | V52: =V51+IF(AND(V53<=H54,H54<=V54),'Loose Mix'!B49,IF(AND(V54<H54,H54<=V55),'Loose Mix'!B50,IF(AND(V55<H54,H54<=V56),'Loose Mix'!B51,IF(AND(V56<H54,H54<=V57),'Loose Mix'!B52,IF(AND(V57<H54,H54<=V58),'Loose Mix'!B53,'Loose Mix'!B54))))) -> 0 | W52: =W51+IF(AND(V53<=N54,N54<=V54),'Loose Mix'!B49,IF(AND(V54<N54,N54<=V55),'Loose Mix'!B50,IF(AND(V55<N54,N54<=V56),'Loose Mix'!B51,IF(AND(V56<N54,N54<=V57),'Loose Mix'!B52,IF(AND(V57<N54,N54<=V58),'Loose Mix'!B53,'Loose Mix'!B54))))) -> 0
A53: ENDING STA./LM | D53: =INDEX('Loose Mix'!D49:'Loose Mix'!D54,COUNT('Loose Mix'!D49:'Loose Mix'!D54),1) -> 0 | F53: L | G53: A | H53: X=L x A | I53: STA + X | L53: L2 | M53: A | N53: X=L+L2xA | O53: STA + X | V53: 0 | W53: =IF(AND(V53<=H54,H54<=V54),S54,IF(AND(V54<H54,H54<=V55),S55,IF(AND(V55<H54,H54<=V56),S56,IF(AND(V56<H54,H54<=V57),S57,IF(AND(V57<H54,H54<=V58),S58,S59))))) -> 0 | X53: =IF(AND(V53<=N54+F54,N54+F54<=V54),S54,IF(AND(V54<N54+F54,N54+F54<=V55),S55,IF(AND(V55<F54,F54<=V56),S56,IF(AND(V56<F54,F54<=V57),S57,IF(AND(V57<F54,F54<=V58),S58,S59))))) -> 0
A54: LENGTH "L" | D54: =V59 -> 0 | F54: =IF($V$5=2,ROUND(D54/2,0),ROUND(D54,0)) -> 0 | G54: =G51 -> 0 | H54: =F54*G54 -> 0 | I54: =IF(I51>0,V52,"") ->  | L54: =IF($V$5=2,ROUND(D54/2,0),0) -> 0 | M54: =M51 -> 0 | N54: =IF($V$5=2,F54+L54*M54,0) -> 0 | O54: =IF($V$5=2,W52,0) -> 0 | S54: ='Loose Mix'!A49 -> 0 | U54: =IF(S54>0,'Loose Mix'!D49-'Loose Mix'!B49,0) -> 0 | V54: =U54 -> 0
I55: =IF(AND(I51=2,H51>=0.5),"OPPOSITE SIDE","") ->  | L55: W2 | M55: B | N55: ="OFFSET="&TEXT(IF(O51>0,0.5,0),"0.0")&"+W2XB" -> OFFSET=0.0+W2XB | S55: ='Loose Mix'!A50 -> 0 | U55: =IF(S55>0,'Loose Mix'!D50-'Loose Mix'!B50,0) -> 0 | V55: =U55+V54 -> 0
L56: =IF($V$5=2,D55-O51*0.5,0) -> 0 | M56: =N51 -> 0 | O56: =L56*M56+IF(O51>0,0.5,0) -> 0 | S56: ='Loose Mix'!A51 -> 0 | U56: =IF(S56>0,'Loose Mix'!D51-'Loose Mix'!B51,0) -> 0 | V56: =U56+V55 -> 0
F57: =IF(I51>0,"Measure from unconfined edge.","") ->  | L57: =IF(O51>0,"Measure from unconfined edge.","") ->  | S57: ='Loose Mix'!A52 -> 0 | U57: =IF(S57>0,'Loose Mix'!D52-'Loose Mix'!B52,0) -> 0 | V57: =U57+V56 -> 0
S58: ='Loose Mix'!A53 -> 0 | U58: =IF(S58>0,'Loose Mix'!D53-'Loose Mix'!B53,0) -> 0 | V58: =U58+V57 -> 0
A59: SUBLOT | B59: =IF(+'Loose Mix'!F88=" "," ",+'Loose Mix'!F88) ->  | G59: A | H59: B | I59: EDGE | M59: A | N59: B | O59: EDGE | S59: ='Loose Mix'!A54 -> 0 | U59: =IF(S59>0,'Loose Mix'!D54-'Loose Mix'!B54,0) -> 0 | V59: =U59+V58 -> 0
A60: TONS IN SUBLOT | D60: ='Loose Mix'!M88 -> 0 | F60: RANDOM NO. | I60: =W62 -> 0 | L60: RANDOM NO. | O60: =X62 -> 0 | V60: =ROUND(H63-IF(AND(0<=H63,H63<=V63),V62,IF(AND(V63<H63,H63<=V64),V63,IF(AND(V64<H63,H63<=V65),V64,IF(AND(V65<H63,H63<=V66),V65,IF(AND(V66<H63,H63<=V67),V66,V67))))),0) -> 0 | W60: =ROUND(N63-IF(AND(0<=N63,N63<=V63),V62,IF(AND(V63<N63,N63<=V64),V63,IF(AND(V64<N63,N63<=V65),V64,IF(AND(V65<N63,N63<=V66),V65,IF(AND(V66<N63,N63<=V67),V66,V67))))),0) -> 0
A61: BEGIN STA./LM | D61: ='Loose Mix'!B56 -> 0 | V61: =V60+IF(AND(V62<=H63,H63<=V63),'Loose Mix'!B56,IF(AND(V63<H63,H63<=V64),'Loose Mix'!B57,IF(AND(V64<H63,H63<=V65),'Loose Mix'!B58,IF(AND(V65<H63,H63<=V66),'Loose Mix'!B59,IF(AND(V66<H63,H63<=V67),'Loose Mix'!B60,'Loose Mix'!B61))))) -> 0 | W61: =W60+IF(AND(V62<=N63,N63<=V63),'Loose Mix'!B56,IF(AND(V63<N63,N63<=V64),'Loose Mix'!B57,IF(AND(V64<N63,N63<=V65),'Loose Mix'!B58,IF(AND(V65<N63,N63<=V66),'Loose Mix'!B59,IF(AND(V66<N63,N63<=V67),'Loose Mix'!B60,'Loose Mix'!B61))))) -> 0
A62: ENDING STA./LM | D62: =INDEX('Loose Mix'!D56:'Loose Mix'!D61,COUNT('Loose Mix'!D56:'Loose Mix'!D61),1) ->  | F62: L | G62: A | H62: X=L x A | I62: STA + X | L62: L2 | M62: A | N62: X=L+L2xA | O62: STA + X | V62: 0 | W62: =IF(AND(V62<=H63,H63<=V63),S63,IF(AND(V63<H63,H63<=V64),S64,IF(AND(V64<H63,H63<=V65),S65,IF(AND(V65<H63,H63<=V66),S66,IF(AND(V66<H63,H63<=V67),S67,S68))))) -> 0 | X62: =IF(AND(V62<=N63+F63,N63+F63<=V63),S63,IF(AND(V63<N63+F63,N63+F63<=V64),S64,IF(AND(V64<F63,F63<=V65),S65,IF(AND(V65<F63,F63<=V66),S66,IF(AND(V66<F63,F63<=V67),S67,S68))))) -> 0
A63: LENGTH "L" | D63: =V68 -> 0 | F63: =IF($V$5=2,ROUND(D63/2,0),ROUND(D63,0)) -> 0 | G63: =G60 -> 0 | H63: =F63*G63 -> 0 | I63: =IF(I60>0,V61,"") ->  | L63: =IF($V$5=2,ROUND(D63/2,0),0) -> 0 | M63: =M60 -> 0 | N63: =IF($V$5=2,F63+L63*M63,0) -> 0 | O63: =IF($V$5=2,W61,0) -> 0 | S63: ='Loose Mix'!A56 -> 0 | U63: =IF(S63>0,'Loose Mix'!D56-'Loose Mix'!B56,0) -> 0 | V63: =U63 -> 0
I64: =IF(AND(I60=2,H60>=0.5),"OPPOSITE SIDE","") ->  | L64: W2 | M64: B | N64: ="OFFSET="&TEXT(IF(O60>0,0.5,0),"0.0")&"+W2XB" -> OFFSET=0.0+W2XB | S64: ='Loose Mix'!A57 -> 0 | U64: =IF(S64>0,'Loose Mix'!D57-'Loose Mix'!B57,0) -> 0 | V64: =U64+V63 -> 0
L65: =IF($V$5=2,D64-O60*0.5,0) -> 0 | M65: =N60 -> 0 | O65: =L65*M65+IF(O60>0,0.5,0) -> 0 | S65: ='Loose Mix'!A58 -> 0 | U65: =IF(S65>0,'Loose Mix'!D58-'Loose Mix'!B58,0) -> 0 | V65: =U65+V64 -> 0
F66: =IF(I60>0,"Measure from unconfined edge.","") ->  | L66: =IF(O60>0,"Measure from unconfined edge.","") ->  | S66: ='Loose Mix'!A59 -> 0 | U66: =IF(S66>0,'Loose Mix'!D59-'Loose Mix'!B59,0) -> 0 | V66: =U66+V65 -> 0
S67: ='Loose Mix'!A60 -> 0 | U67: =IF(S67>0,'Loose Mix'!D60-'Loose Mix'!B60,0) -> 0 | V67: =U67+V66 -> 0
S68: ='Loose Mix'!A61 -> 0 | U68: =IF(S68>0,'Loose Mix'!D61-'Loose Mix'!B61,0) -> 0 | V68: =U68+V67 -> 0

Sheet Properties
A1: SUPERPAVE MIXTURE PROPERTIES
A3: JOB | B3: ='Loose Mix'!F3 -> 0 | D3: ROUTE | E3: ='Loose Mix'!I3 -> 0 | F3: MIX NO. | G3: ='Loose Mix'!K3 ->  | I3: LOT NO. | J3: ='Loose Mix'!N3 -> 0
A5: SUBLOT | F5: =IF(+'Loose Mix'!F16=" "," ",+'Loose Mix'!F16) -> A | G5: =IF('Loose Mix'!F28=" "," ",+'Loose Mix'!F28) -> B | H5: =IF('Loose Mix'!F40=" "," ",+'Loose Mix'!F40) -> C | I5: =IF('Loose Mix'!F52=" "," ",+'Loose Mix'!F52) -> D | J5: =IF('Loose Mix'!F64=" "," ",+'Loose Mix'!F64) ->  | K5: =IF('Loose Mix'!F76=" "," ",+'Loose Mix'!F76) ->  | L5: =IF('Loose Mix'!F88=" "," ",+'Loose Mix'!F88) -> 
A6: DATE
A7: AASHTO T 209 | F7: A2 required when T85 absorption >2.0% on any aggregate fraction.
A8: TECHNICIAN
A9: A = Wt. of sample:
A10: A2=Wt. of sample (dry-back):
A11: D = Wt. of flask filled with water:
A12: X = A + D (A2 used in lieu of A for dry-back) | F12: =IF(F10="",F9,F10)+F11 -> 0 | G12: =IF(G10="",G9,G10)+G11 -> 0 | H12: 0 | I12: 0 | J12: 0 | K12: 0 | L12: 0
A13: E = Wt. of flask filled with water and sample:
A14: Y = X - E | F14: =F12-F13 -> 0 | G14: 0 | H14: 0 | I14: 0 | J14: 0 | K14: 0 | L14: 0
A15: Gmm = MAX. SPECIFIC GRAVITY = A / Y | F15: =IF(ISERR(F9/F14),0,ROUND(F9/F14,3)) -> 0 | G15: =IF(G5=" "," ",IF(G9=" ",+F15,ROUND(G9/G14,3))) -> 0 | H15: 0 | I15: 0 | J15: 0 | K15: 0 | L15: 0
A17: AASHTO T 166
A18: TECHNICIAN
A19: MOLDING TEMPERATURE
A20: A = Weight of sample in air:
A21: B = Weight of sample in water:
A22: C = Weight of surface dry sample:
A23: Gmb = BULK SP. G. = A / (C-B) | F23: =IF(ISERR(F20/(F22-F21)),0,ROUND(F20/(F22-F21),3)) -> 0 | G23: 0 | H23: 0 | I23: 0 | J23: 0 | K23: 0 | L23: 0
A24: A = Weight of sample in air:
A25: B = Weight of sample in water:
A26: C = Weight of surface dry sample:
A27: Gmb = BULK SP. G. = A / (C-B) | F27: =IF(ISERR(F24/(F26-F25)),0,ROUND(F24/(F26-F25),3)) -> 0 | G27: 0 | H27: 0 | I27: 0 | J27: 0 | K27: 0 | L27: 0
A28: AVG. Gmb | F28: =IF(F27=0,F23,ROUND(AVERAGE(F23,F27),3)) -> 0 | G28: =IF(G27=0,G23,ROUND(AVERAGE(G23,G27),3)) -> 0 | H28: 0 | I28: 0 | J28: 0 | K28: 0 | L28: 0
A31: TECHNICIAN
A32: MoDOT TM54 (NUCLEAR)
A33: SAMPLE WEIGHT | O33: =COUNTIF($F$41,">0") -> 0 | P33: =F41 ->  | Q33: =IFERROR(VLOOKUP(1,$O$33:$P$39,2,FALSE),"") -> 
A34: BACKGROUND | O34: =COUNTIF($F$41:$G$41,">0") -> 0 | P34: =G41 ->  | Q34: =IFERROR(VLOOKUP(2,$O$33:$P$39,2,FALSE),"") -> 
A35: COUNTS | O35: =COUNTIF($F$41:$H$41,">0") -> 0 | P35: =H41 ->  | Q35: =IFERROR(VLOOKUP(3,$O$33:$P$39,2,FALSE),"") -> 
A36: GAUGE % AC | O36: =COUNTIF($F$41:$I$41,">0") -> 0 | P36: =I41 ->  | Q36: =IFERROR(VLOOKUP(4,$O$33:$P$39,2,FALSE),"") -> 
A37: AASHTO T 308 (IGNITION) | O37: =COUNTIF($F$41:$J$41,">0") -> 0 | P37: =J41 ->  | Q37: =IFERROR(VLOOKUP(5,$O$33:$P$39,2,FALSE),"") -> 
A38: GAUGE %AC | O38: =COUNTIF($F$41:$K$41,">0") -> 0 | P38: =K41 ->  | Q38: =IFERROR(VLOOKUP(6,$O$33:$P$39,2,FALSE),"") -> 
A39: NUCLEAR OR IGNITION | O39: =COUNTIF($F$41:$L$41,">0") -> 0 | P39: =L41 ->  | Q39: =IFERROR(VLOOKUP(7,$O$33:$P$39,2,FALSE),"") -> 
A40: % MOISTURE
A41: % AC BY IGNITION OR NUCLEAR | F41: =IF(ISBLANK(F40),"",IF(F36=0,ROUND(F38-F40,1),ROUND(F36-F40,1))) ->  | G41: =IF(ISBLANK(G40),"",IF(G36=0,ROUND(G38-G40,1),ROUND(G36-G40,1))) -> 
A43: AASHTO R 35
A44: A = Gmm (FIELD) | F44: =F15 -> 0 | G44: 0 | H44: 0 | I44: 0 | J44: 0 | K44: 0 | L44: 0
A45: B = Gmb (FIELD) (Avg.) | F45: =F28 -> 0 | G45: 0 | H45: 0 | I45: 0 | J45: 0 | K45: 0 | L45: 0
A46: C = Gsb (Job Mix) | G46: =$F$46 -> 0 | H46: 0 | I46: 0 | J46: 0 | K46: 0 | L46: 0
A47: D = Ps = Percent Agg. in mix | F47: =100-F41 -> 100 | G47: 100 | H47: 100 | I47: 100 | J47: 100 | K47: 100 | L47: 100
A48: VMA = 100 - (B X D / C) | F48: =IF(ISERR(F47/F46),0,ROUND(100-(F45*F47/F46),1)) -> 0 | G48: 0 | H48: 0 | I48: 0 | J48: 0 | K48: 0 | L48: 0
A49: Va = 100 X ((A - B) / A) | F49: =IF(ISERR(F45/F44),0,ROUND(100*(F44-F45)/F44,1)) -> 0 | G49: 0 | H49: 0 | I49: 0 | J49: 0 | K49: 0 | L49: 0
A50: VFA = (VMA-Va) / VMA | F50: =IF(ISERR(F49/F48),0,ROUND(100*(F48-F49)/F48,1)) -> 0 | G50: 0 | H50: 0 | I50: 0 | J50: 0 | K50: 0 | L50: 0 | O50: =COUNTIF($F$59,">0") -> 0 | P50: =F59 -> 0 | Q50: =IFERROR(VLOOKUP(1,$O$50:$P$56,2,FALSE),"") ->  | S50: =IF(Q111<>"",Q111,IF(Q79<>"",Q79,IF(Q50<>"",Q50,""))) -> 
O51: =COUNTIF($F$59:$G$59,">0") -> 0 | P51: =G59 -> 0 | Q51: =IFERROR(VLOOKUP(2,$O$50:$P$56,2,FALSE),"") ->  | S51: =IF(Q112<>"",Q112,IF(Q80<>"",Q80,IF(Q51<>"",Q51,""))) -> 
A52: AASHTO T 166 | O52: =COUNTIF($F$59:$H$59,">0") -> 0 | P52: =H59 -> 0 | Q52: =IFERROR(VLOOKUP(3,$O$50:$P$56,2,FALSE),"") ->  | S52: =IF(Q113<>"",Q113,IF(Q81<>"",Q81,IF(Q52<>"",Q52,""))) -> 
A53: TECHNICIAN | O53: =COUNTIF($F$59:$I$59,">0") -> 0 | P53: =I59 -> 0 | Q53: =IFERROR(VLOOKUP(4,$O$50:$P$56,2,FALSE),"") -> 
A54: A = Mass of sample in air: | O54: =COUNTIF($F$59:$J$59,">0") -> 0 | P54: =J59 -> 0 | Q54: =IFERROR(VLOOKUP(5,$O$50:$P$56,2,FALSE),"") -> 
A55: B = Mass in water: | O55: =COUNTIF($F$59:$K$59,">0") -> 0 | P55: =K59 -> 0 | Q55: =IFERROR(VLOOKUP(6,$O$50:$P$56,2,FALSE),"") -> 
A56: C = Mass of surface dry sample: | O56: =COUNTIF($F$59:$L$59,">0") -> 0 | P56: =L59 -> 0 | Q56: =IFERROR(VLOOKUP(7,$O$50:$P$56,2,FALSE),"") -> 
A57: Gmc = CORE SPECIFIC GRAVITY = A / (C - B) | F57: =IF(ISERR(F54/(F56-F55)),0,ROUND(F54/(F56-F55),3)) -> 0 | G57: 0 | H57: 0 | I57: 0 | J57: 0 | K57: 0 | L57: 0
A58: Gmm = MAX. SPECIFIC GRAVITY (T209) | F58: =F$15 -> 0 | G58: =G$15 -> 0 | H58: 0 | I58: 0 | J58: 0 | K58: 0 | L58: 0
A59: % COMPACTION OF CORE = 100 x (Gmc / Gmm) | F59: =IF(ISERR(F57/F58),0,TRUNC(100*F57/F58,2)) -> 0 | G59: =IF(ISERR(G57/G58),0,TRUNC(100*G57/G58,2)) -> 0 | H59: 0 | I59: 0 | J59: 0 | K59: 0 | L59: 0
A60: WATER ABS. = 100 x ((C-A)/(C-B)) | F60: =IF(ISERR(F56-F54/F56-F55),0,TRUNC(100*(F56-F54)/(F56-F55),2)) -> 0 | G60: =IF(ISERR(G56-G54/G56-G55),0,TRUNC(100*(G56-G54)/(G56-G55),2)) -> 0 | H60: 0 | I60: 0 | J60: 0 | K60: 0 | L60: 0
A61: THICKNESS
A62: SUBLOT | F62: =IF(Density!$B$5=" "," ",+Density!$B$5) -> A | G62: =IF(Density!$B$14=" "," ",+Density!$B$14) -> B | H62: =IF(Density!$B$23=" "," ",+Density!$B$23) -> C | I62: =IF(Density!$B$32=" "," ",+Density!$B$32) -> D | J62: =IF(Density!$B$41=" "," ",+Density!$B$41) ->  | K62: =IF(Density!$B$50=" "," ",+Density!$B$50) ->  | L62: =IF(Density!$B$59=" "," ",+Density!$B$59) -> 
A64: FOR 2ND CORE SUBLOT WHEN DENOTED IN QC PLAN
A65: TECHNICIAN | O65: =COUNTIF($F$71,">0") -> 0 | P65: =F71 -> 0 | Q65: =IFERROR(VLOOKUP(1,$O$65:$P$71,2,FALSE),"") -> 
A66: A = Weight of sample in air: | O66: =COUNTIF($F$71:$G$71,">0") -> 0 | P66: =G71 -> 0 | Q66: =IFERROR(VLOOKUP(2,$O$65:$P$71,2,FALSE),"") -> 
A67: B = Weight in water: | O67: =COUNTIF($F$71:$H$71,">0") -> 0 | P67: =H71 -> 0 | Q67: =IFERROR(VLOOKUP(3,$O$65:$P$71,2,FALSE),"") -> 
A68: C = Weight of surface dry sample: | O68: =COUNTIF($F$71:$I$71,">0") -> 0 | P68: =I71 -> 0 | Q68: =IFERROR(VLOOKUP(4,$O$65:$P$71,2,FALSE),"") -> 
A69: Gmc = CORE SPECIFIC GRAVITY = A / (C - B) | F69: =IF(ISERR(F66/(F68-F67)),0,ROUND(F66/(F68-F67),3)) -> 0 | G69: 0 | H69: 0 | I69: 0 | J69: 0 | K69: 0 | L69: 0 | O69: =COUNTIF($F$71:$J$71,">0") -> 0 | P69: =J71 -> 0 | Q69: =IFERROR(VLOOKUP(5,$O$65:$P$71,2,FALSE),"") -> 
A70: Gmm = MAX. SPECIFIC GRAVITY (T209) | F70: =F$15 -> 0 | G70: =G$15 -> 0 | H70: 0 | I70: 0 | J70: 0 | K70: 0 | L70: 0 | O70: =COUNTIF($F$71:$K$71,">0") -> 0 | P70: =K71 -> 0 | Q70: =IFERROR(VLOOKUP(6,$O$65:$P$71,2,FALSE),"") -> 
A71: % COMPACTION OF CORE = 100 x (Gmc / Gmm) | F71: =IF(ISERR(F69/F70),0,TRUNC(100*F69/F70,2)) -> 0 | G71: 0 | H71: 0 | I71: 0 | J71: 0 | K71: 0 | L71: 0 | O71: =COUNTIF($F$71:$L$71,">0") -> 0 | P71: =L71 -> 0 | Q71: =IFERROR(VLOOKUP(7,$O$65:$P$71,2,FALSE),"") -> 
A72: WATER ABS. = 100 x ((C-A)/(C-B)) | F72: =IF(ISERR(F68-F66/F68-F67),0,TRUNC(100*(F68-F66)/(F68-F67),2)) -> 0 | G72: =IF(ISERR(G68-G66/G68-G67),0,TRUNC(100*(G68-G66)/(G68-G67),2)) -> 0 | H72: 0 | I72: 0 | J72: 0 | K72: 0 | L72: 0
A73: THICKNESS
A74: SUBLOT | F74: =IF(Density!$M$6=" "," ",+Density!$B$5) ->  | G74: =IF(Density!$M$15=" "," ",+Density!$B$14) ->  | H74: =IF(Density!$M$24=" "," ",+Density!$B$23) ->  | I74: =IF(Density!$M$33=" "," ",+Density!$B$32) ->  | J74: =IF(Density!$M$42=" "," ",+Density!$B$41) ->  | K74: =IF(Density!$M$51=" "," ",+Density!$B$50) ->  | L74: =IF(Density!$M$60=" "," ",+Density!$B$59) -> 
A76: AASHTO T 331
A77: TECHNICIAN
A78: A = Mass of sample in air:
A79: Bag Mass | O79: =COUNTIF($F$86,">0") -> 0 | P79: =F86 -> 0 | Q79: =IFERROR(VLOOKUP(1,$O$79:$P$85,2,FALSE),"") -> 
A80: B = Mass sealed sample: | F80: =F78+F79 -> 0 | G80: =G78+G79 -> 0 | H80: 0 | I80: 0 | J80: 0 | K80: 0 | L80: 0 | O80: =COUNTIF($F$86:$G$86,">0") -> 0 | P80: =G86 -> 0 | Q80: =IFERROR(VLOOKUP(2,$O$79:$P$85,2,FALSE),"") -> 
A81: C = Mass sample removed from bag: | O81: =COUNTIF($F$86:$H$86,">0") -> 0 | P81: =H86 -> 0 | Q81: =IFERROR(VLOOKUP(3,$O$79:$P$85,2,FALSE),"") -> 
A82: E = Mass of sealed sample in water: | O82: =COUNTIF($F$86:$I$86,">0") -> 0 | P82: =I86 -> 0 | Q82: =IFERROR(VLOOKUP(4,$O$79:$P$85,2,FALSE),"") -> 
A83: F = Bag specific gravity: | D83: (0.932 green InstroTek bag) | O83: =COUNTIF($F$86:$J$86,">0") -> 0 | P83: =J86 -> 0 | Q83: =IFERROR(VLOOKUP(5,$O$79:$P$85,2,FALSE),"") -> 
A84: Gmc = A / ((C + (B - A)) - E - ((B - A) / F)) | F84: =IF(ISERR(F78/(F82-F81)),0,ROUND(F78/((F81+F80-F78)-F82-((F80-F78)/F83)),3)) -> 0 | G84: =IF(ISERR(G78/(G82-G81)),0,ROUND(G78/((G81+G80-G78)-G82-((G80-G78)/G83)),3)) -> 0 | H84: 0 | I84: 0 | J84: 0 | K84: 0 | L84: 0 | O84: =COUNTIF($F$86:$K$86,">0") -> 0 | P84: =K86 -> 0 | Q84: =IFERROR(VLOOKUP(6,$O$79:$P$85,2,FALSE),"") -> 
A85: Gmm = MAX. SPECIFIC GRAVITY (T209) | F85: =F$15 -> 0 | G85: =G$15 -> 0 | H85: 0 | I85: 0 | J85: 0 | K85: 0 | L85: 0 | O85: =COUNTIF($F$86:$L$86,">0") -> 0 | P85: =L86 -> 0 | Q85: =IFERROR(VLOOKUP(7,$O$79:$P$85,2,FALSE),"") -> 
A86: % COMPACTION OF CORE = 100 x (Gmc / Gmm) | F86: =IF(ISERR(F84/F85),0,ROUND(TRUNC(100*F84/F85,2),1)) -> 0 | G86: 0 | H86: 0 | I86: 0 | J86: 0 | K86: 0 | L86: 0
A87: CHECK (%) | F87: =IF(F81="","",ROUND((F81-F78)/F78,4)*100) ->  | G87: =IF(G81="","",ROUND((G81-G78)/G78,4)*100) -> 
A88: THICKNESS
A89: SUBLOT | F89: =IF(Density!$B$5=" "," ",+Density!$B$5) -> A | G89: =IF(Density!$B$14=" "," ",+Density!$B$14) -> B | H89: =IF(Density!$B$23=" "," ",+Density!$B$23) -> C | I89: =IF(Density!$B$32=" "," ",+Density!$B$32) -> D | J89: =IF(Density!$B$41=" "," ",+Density!$B$41) ->  | K89: =IF(Density!$B$50=" "," ",+Density!$B$50) ->  | L89: =IF(Density!$B$59=" "," ",+Density!$B$59) -> 
A91: FOR 2ND CORE SUBLOT WHEN DENOTED IN QC PLAN
A92: TECHNICIAN
A93: A = Mass of sample in air:
A94: Bag Mass | O94: =COUNTIF($F$101,">0") -> 0 | P94: =F101 -> 0 | Q94: =IFERROR(VLOOKUP(1,$O$94:$P$100,2,FALSE),"") -> 
A95: B = Mass sealed sample: | F95: =F93+F94 -> 0 | G95: 0 | H95: 0 | I95: 0 | J95: 0 | K95: 0 | L95: 0 | O95: =COUNTIF($F$101:$G$101,">0") -> 0 | P95: =G101 -> 0 | Q95: =IFERROR(VLOOKUP(2,$O$94:$P$100,2,FALSE),"") -> 
A96: C = Mass sample removed from bag: | O96: =COUNTIF($F$101:$H$101,">0") -> 0 | P96: =H101 -> 0 | Q96: =IFERROR(VLOOKUP(3,$O$94:$P$100,2,FALSE),"") -> 
A97: E = Mass of sealed sample in water: | O97: =COUNTIF($F$101:$I$101,">0") -> 0 | P97: =I101 -> 0 | Q97: =IFERROR(VLOOKUP(4,$O$94:$P$100,2,FALSE),"") -> 
A98: F = Bag specific gravity: | D98: (0.932 green InstroTek bag) | F98: 0.932 | G98: =F98 -> 0.932 | H98: =F98 -> 0.932 | I98: =F98 -> 0.932 | J98: =F98 -> 0.932 | K98: =F98 -> 0.932 | L98: =F98 -> 0.932 | O98: =COUNTIF($F$101:$J$101,">0") -> 0 | P98: =J101 -> 0 | Q98: =IFERROR(VLOOKUP(5,$O$94:$P$100,2,FALSE),"") -> 
A99: Gmc = A / ((C + (B - A)) - E - ((B - A) / F)) | F99: =IF(ISERR(F93/(F97-F96)),0,ROUND(F93/((F96+F95-F93)-F97-((F95-F93)/F98)),3)) -> 0 | G99: 0 | H99: 0 | I99: 0 | J99: 0 | K99: 0 | L99: 0 | O99: =COUNTIF($F$101:$K$101,">0") -> 0 | P99: =K101 -> 0 | Q99: =IFERROR(VLOOKUP(6,$O$94:$P$100,2,FALSE),"") -> 
A100: Gmm = MAX. SPECIFIC GRAVITY (T209) | F100: =F$15 -> 0 | G100: =G$15 -> 0 | H100: 0 | I100: 0 | J100: 0 | K100: 0 | L100: 0 | O100: =COUNTIF($F$101:$L$101,">0") -> 0 | P100: =L101 -> 0 | Q100: =IFERROR(VLOOKUP(7,$O$94:$P$100,2,FALSE),"") -> 
A101: % COMPACTION OF CORE = 100 x (Gmc / Gmm) | F101: =IF(ISERR(F99/F100),0,ROUND(TRUNC(100*F99/F100,2),1)) -> 0 | G101: 0 | H101: 0 | I101: 0 | J101: 0 | K101: 0 | L101: 0
A102: CHECK (%) | F102: =IF(F96="","",ROUND((F96-F93)/F93,4)*100) ->  | G102: =IF(G96="","",ROUND((G96-G93)/G93,4)*100) -> 
A103: THICKNESS
A104: SUBLOT | F104: =IF(Density!$M$6=" "," ",+Density!$B$5) ->  | G104: =IF(Density!$M$15=" "," ",+Density!$B$14) ->  | H104: =IF(Density!$M$24=" "," ",+Density!$B$23) ->  | I104: =IF(Density!$M$33=" "," ",+Density!$B$32) ->  | J104: =IF(Density!$M$42=" "," ",+Density!$B$41) ->  | K104: =IF(Density!$M$51=" "," ",+Density!$B$50) ->  | L104: =IF(Density!$M$60=" "," ",+Density!$B$59) -> 
A106: MoDOT TM-83
F107: Tier 1 | G107: Tier 2 | H107: Tier 3 | I107: Tier 4 | J107: Test
A108: Area (cm2) | F108: 2.85 | G108: 15.52 | H108: 38.32 | I108: 167.53 | J108: 167.53
A109: TECHNICIAN
A110: THICKNESS
A111: TIER | O111: =COUNTIF($F$124,">0") -> 0 | P111: =F124 ->  | Q111: =IFERROR(VLOOKUP(1,$O$111:$P$117,2,FALSE),"") -> 
A112: STANDPIPE AREA | D112: TEST 1 | F112: =IF(F111=1,$F$108,IF(F111=2,$G$108,IF(F111=3,$H$108,IF(F111=4,$I$108,"")))) ->  | G112: =IF(G111=1,$F$108,IF(G111=2,$G$108,IF(G111=3,$H$108,IF(G111=4,$I$108,"")))) ->  | O112: =COUNTIF($F$124:$G$124,">0") -> 0 | P112: =G124 ->  | Q112: =IFERROR(VLOOKUP(2,$O$111:$P$117,2,FALSE),"") -> 
A113: H1 (cm) | O113: =COUNTIF($F$124:$H$124,">0") -> 0 | P113: =H124 ->  | Q113: =IFERROR(VLOOKUP(3,$O$111:$P$117,2,FALSE),"") -> 
A114: H2 (cm) | O114: =COUNTIF($F$124:$I$124,">0") -> 0 | P114: =I124 ->  | Q114: =IFERROR(VLOOKUP(4,$O$111:$P$117,2,FALSE),"") -> 
A115: TIME (min) = mm.ssss, e.g. 1.0039 = 1 min. 0.39 sec. | O115: =COUNTIF($F$124:$J$124,">0") -> 0 | P115: =J124 ->  | Q115: =IFERROR(VLOOKUP(5,$O$111:$P$117,2,FALSE),"") -> 
A116: TEST 1 (k X 10-5 cm/sec) | F116: =IF(F115="","",ROUND(F112*F110*2.54/$J$108/(INT(F115)*60+(F115-INT(F115))*100)*LN(F113/F114)*100000,0)) ->  | G116: =IF(G115="","",ROUND(G112*G110*2.54/$J$108/(INT(G115)*60+(G115-INT(G115))*100)*LN(G113/G114)*100000,0)) ->  | O116: =COUNTIF($F$124:$K$124,">0") -> 0 | P116: =K124 ->  | Q116: =IFERROR(VLOOKUP(6,$O$111:$P$117,2,FALSE),"") -> 
A117: TIER | O117: =COUNTIF($F$124:$L$124,">0") -> 0 | P117: =L124 ->  | Q117: =IFERROR(VLOOKUP(7,$O$111:$P$117,2,FALSE),"") -> 
A118: STANDPIPE AREA | D118: TEST 2 | F118: =IF(F117=1,$F$108,IF(F117=2,$G$108,IF(F117=3,$H$108,IF(F117=4,$I$108,"")))) -> 
A119: H1 (cm)
A120: H2 (cm)
A121: TIME (min) = mm.ssss, e.g. 1.0039 = 1 min. 0.39 sec.
A122: TEST 2 (k X 10-5 cm/sec) | F122: =IF(F121="","",ROUND(F118*F110*2.54/$J$108/(INT(F121)*60+(F121-INT(F121))*100)*LN(F119/F120)*100000,0)) ->  | G122: =IF(G121="","",ROUND(G118*G110*2.54/$J$108/(INT(G121)*60+(G121-INT(G121))*100)*LN(G119/G120)*100000,0)) -> 
A123: AVERAGE | F123: =IF(F116="","",AVERAGE(F116,F122)) ->  | G123: =IF(G116="","",AVERAGE(G116,G122)) -> 
A124: PERMEABILITY (ft/day) | F124: =IF(F123="","",ROUND(2823*F123*0.00001,1)) ->  | G124: =IF(G123="","",ROUND(2823*G123*0.00001,1)) -> 
A125: SUBLOT | F125: =IF(Density!$B$5=" "," ",+Density!$B$5) -> A | G125: =IF(Density!$B$14=" "," ",+Density!$B$14) -> B | H125: =IF(Density!$B$23=" "," ",+Density!$B$23) -> C | I125: =IF(Density!$B$32=" "," ",+Density!$B$32) -> D | J125: =IF(Density!$B$41=" "," ",+Density!$B$41) ->  | K125: =IF(Density!$B$50=" "," ",+Density!$B$50) ->  | L125: =IF(Density!$B$59=" "," ",+Density!$B$59) -> 
A127: FOR 2ND HALF SUBLOT
A128: TECHNICIAN
A129: THICKNESS
A130: TIER | O130: =COUNTIF($F$143,">0") -> 0 | P130: =F143 ->  | Q130: =IFERROR(VLOOKUP(1,$O$130:$P$136,2,FALSE),"") -> 
A131: STANDPIPE AREA | D131: TEST 1 | F131: =IF(F130=1,$F$108,IF(F130=2,$G$108,IF(F130=3,$H$108,IF(F130=4,$I$108,"")))) ->  | O131: =COUNTIF($F$143:$G$143,">0") -> 0 | P131: =G143 ->  | Q131: =IFERROR(VLOOKUP(2,$O$130:$P$136,2,FALSE),"") -> 
A132: H1 (cm) | O132: =COUNTIF($F$143:$H$143,">0") -> 0 | P132: =H143 ->  | Q132: =IFERROR(VLOOKUP(3,$O$130:$P$136,2,FALSE),"") -> 
A133: H2 (cm) | O133: =COUNTIF($F$143:$I$143,">0") -> 0 | P133: =I143 ->  | Q133: =IFERROR(VLOOKUP(4,$O$130:$P$136,2,FALSE),"") -> 
A134: TIME (min) = mm.ssss, e.g. 1.0039 = 1 min. 0.39 sec. | O134: =COUNTIF($F$143:$J$143,">0") -> 0 | P134: =J143 ->  | Q134: =IFERROR(VLOOKUP(5,$O$130:$P$136,2,FALSE),"") -> 
A135: TEST 1 (k X 10-5 cm/sec) | F135: =IF(F134="","",ROUND(F131*F129*2.54/$J$108/(INT(F134)*60+(F134-INT(F134))*100)*LN(F132/F133)*100000,0)) ->  | O135: =COUNTIF($F$143:$K$143,">0") -> 0 | P135: =K143 ->  | Q135: =IFERROR(VLOOKUP(6,$O$130:$P$136,2,FALSE),"") -> 
A136: TIER | O136: =COUNTIF($F$143:$L$143,">0") -> 0 | P136: =L143 ->  | Q136: =IFERROR(VLOOKUP(7,$O$130:$P$136,2,FALSE),"") -> 
A137: STANDPIPE AREA | D137: TEST 2 | F137: =IF(F136=1,$F$108,IF(F136=2,$G$108,IF(F136=3,$H$108,IF(F136=4,$I$108,"")))) -> 
A138: H1 (cm)
A139: H2 (cm)
A140: TIME (min) = mm.ssss, e.g. 1.0039 = 1 min. 0.39 sec.
A141: TEST 2 (k X 10-5 cm/sec) | F141: =IF(F140="","",ROUND(F137*F129*2.54/$J$108/(INT(F140)*60+(F140-INT(F140))*100)*LN(F138/F139)*100000,0)) -> 
A142: AVERAGE | F142: =IF(F135="","",AVERAGE(F135,F141)) -> 
A143: PERMEABILITY (ft/day) | F143: =IF(F142="","",ROUND(2823*F142*0.00001,1)) -> 
A144: SUBLOT | F144: =IF(Density!$M$6=" "," ",+Density!$B$5) ->  | G144: =IF(Density!$M$15=" "," ",+Density!$B$14) ->  | H144: =IF(Density!$M$24=" "," ",+Density!$B$23) ->  | I144: =IF(Density!$M$33=" "," ",+Density!$B$32) ->  | J144: =IF(Density!$M$42=" "," ",+Density!$B$41) ->  | K144: =IF(Density!$M$51=" "," ",+Density!$B$50) ->  | L144: =IF(Density!$M$60=" "," ",+Density!$B$59) -> 

Sheet Help

Sheet Summary
A1: INSPECTOR WORKSHEET SUMMARY
A2: SMPL_ID | B2: =UPPER(Menu!B7) ->  | C2: Updated | D2: No
A3: SMPLD_BY | B3: =LOWER(Menu!H7) -> 
A4: MATL_CD | B4: =IF(OR(Menu!B19="Material Short Name",ISERR(Menu!B19)),VLOOKUP(Menu!B20,'Pick Lists'!J3:K60,2,FALSE),VLOOKUP(Menu!B19,'Pick Lists'!H3:I65,2,FALSE)) -> 
A5: PRODR_SUPP_CD | B5: =VLOOKUP(Menu!B18,Producer_Supplier,4,FALSE) -> 
A6: PLANT_ID | B6: =VLOOKUP(Menu!B18,Producer_Supplier,3,FALSE) -> 
A7: REPR_QTY | B7: =SUM(B17:J17) -> 0
A8: SMPL_DT | B8: =Menu!B8 -> 0
A9: SMPL_MIX-_ID | B9: =UPPER(Menu!B9) -> 
A10: STD_RMRKS_IND | B10: =IF(Menu!$I$8=TRUE,"Y"," ") ->  | C10: (Warm Mix)
A13: SMPL_T | B13: =VLOOKUP(Menu!L7,Sample_Type,2) -> 
A14: CONT_ID | B14: =UPPER(Menu!B11) ->  | E14: =Menu!K11 -> 0 | H14: =Menu!N11 -> 0
A15: PRJ_NBR | B15: =UPPER(Menu!B12) ->  | E15: =UPPER(Menu!K12) ->  | H15: =UPPER(Menu!N12) -> 
A16: LN_ITM_NBR | B16: =Menu!B15 -> 0 | C16: =Menu!B16 -> 0 | D16: =Menu!B17 -> 0 | E16: =Menu!K15 -> 0 | F16: =Menu!K16 -> 0 | G16: =Menu!K17 -> 0 | H16: =Menu!N15 -> 0 | I16: =Menu!N16 -> 0 | J16: =Menu!N17 -> 0
A17: REPR_QTY | B17: =Menu!H15 -> 0 | C17: =Menu!H16 -> 0 | D17: =Menu!H17 -> 0 | E17: =Menu!M15 -> 0 | F17: =Menu!M16 -> 0 | G17: =Menu!M17 -> 0 | H17: =Menu!P15 -> 0 | I17: =Menu!P16 -> 0 | J17: =Menu!P17 -> 0
A22: TST_METH | B22: =IF('Plant Inspection'!B41<>0,"SAA400AB","") ->  | I22: =IF(ISERR(LEFT(Menu!$B$9)),"",IF(OR(LEFT(Menu!$B$9,2)="SL",LEFT(Menu!$B$9,2)="BP",LEFT(Menu!$B$9,2)="BB"),"SAA001CB","SAA001AB")) -> SAA001AB
A23: SMPL_TST_NBR | B23: ='Plant Inspection'!E$5 -> 1 | I23: =IF(AND(I22="SAA001AB",I29<>""),1,IF(AND(I22="SAA001CB",I30<>""),1,"")) -> 
A24: LAB_ID | B24: "Fld Lab R" | I24: "Fld Lab R"
A26: LOT NO. | B26: =Menu!B$10 -> 0 | H26: Deleterious Rock | I26: =IF(ISERR(LEFT(Menu!$B$9)),"",IF(OR(LEFT(Menu!$B$9,2)="SL",LEFT(Menu!$B$9,2)="BP",LEFT(Menu!$B$9,2)="BB"),'Plant Inspection'!K54,'Plant Inspection'!K54)) -> 
A27: GRADATION PASS | B27: =UPPER('Plant Inspection'!$H$50) -> N | H27: =IF(ISERR(LEFT(Menu!$B$9)),"",IF(OR(LEFT(Menu!$B$9,2)="SL",LEFT(Menu!$B$9,2)="BP",LEFT(Menu!$B$9,2)="BB"),"Shale & Mud Balls","Shale")) -> Shale | I27: =IF(ISERR(LEFT(Menu!$B$9)),"",IF(OR(LEFT(Menu!$B$9,2)="SL",LEFT(Menu!$B$9,2)="BP",LEFT(Menu!$B$9,2)="BB"),'Plant Inspection'!K55,'Plant Inspection'!K55)) -> 
B28: Job Mix | D28: Comb. Grad. | F28: Deviation | H28: =IF(ISERR(LEFT(Menu!$B$9)),"",IF(OR(LEFT(Menu!$B$9,2)="SL",LEFT(Menu!$B$9,2)="BP",LEFT(Menu!$B$9,2)="BB"),"Clay, Dispersed","OFM")) -> OFM | I28: =IF(ISERR(LEFT(Menu!$B$9)),"",IF(OR(LEFT(Menu!$B$9,2)="SL",LEFT(Menu!$B$9,2)="BP",LEFT(Menu!$B$9,2)="BB"),'Plant Inspection'!K56,'Plant Inspection'!K57)) -> 
A29: 1 1/2" | B29: ='Plant Inspection'!B48 -> 0 | C29: ='Plant Inspection'!C48 -> 0 | D29: ='Plant Inspection'!D48 -> 0 | E29: ='Plant Inspection'!E48 -> 0 | F29: =IF('Plant Inspection'!F48="","",ROUND(TRUNC('Plant Inspection'!F48,3),1)) ->  | H29: =IF(ISERR(LEFT(Menu!$B$9)),"",IF(OR(LEFT(Menu!$B$9,2)="SL",LEFT(Menu!$B$9,2)="BP",LEFT(Menu!$B$9,2)="BB"),"OFM","Total Deleterious")) -> Total Deleterious | I29: =IF(ISERR(LEFT(Menu!$B$9)),"",IF(OR(LEFT(Menu!$B$9,2)="SL",LEFT(Menu!$B$9,2)="BP",LEFT(Menu!$B$9,2)="BB"),'Plant Inspection'!K57,'Plant Inspection'!K58)) -> 
A30: 1" | B30: ='Plant Inspection'!B49 -> 0 | C30: ='Plant Inspection'!C49 -> 0 | D30: ='Plant Inspection'!D49 -> 0 | E30: ='Plant Inspection'!E49 -> 0 | F30: =IF('Plant Inspection'!F49="","",ROUND(TRUNC('Plant Inspection'!F49,3),1)) ->  | H30: =IF(ISERR(LEFT(Menu!$B$9)),"",IF(OR(LEFT(Menu!$B$9,2)="SL",LEFT(Menu!$B$9,2)="BP",LEFT(Menu!$B$9,2)="BB"),"Total Deleterious","")) ->  | I30: =IF(ISERR(LEFT(Menu!$B$9)),"",IF(OR(LEFT(Menu!$B$9,2)="SL",LEFT(Menu!$B$9,2)="BP",LEFT(Menu!$B$9,2)="BB"),'Plant Inspection'!K58,"")) -> 
A31: 3/4" | B31: ='Plant Inspection'!B50 -> 0 | C31: ='Plant Inspection'!C50 -> 0 | D31: ='Plant Inspection'!D50 -> 0 | E31: ='Plant Inspection'!E50 -> 0 | F31: =IF('Plant Inspection'!F50="","",ROUND(TRUNC('Plant Inspection'!F50,3),1)) -> 
A32: 1/2" | B32: ='Plant Inspection'!B51 -> 0 | C32: ='Plant Inspection'!C51 -> 0 | D32: ='Plant Inspection'!D51 -> 0 | E32: ='Plant Inspection'!E51 -> 0 | F32: =IF('Plant Inspection'!F51="","",ROUND(TRUNC('Plant Inspection'!F51,3),1)) ->  | H32: Chert | I32: ='Plant Inspection'!$K$60 -> 
A33: 3/8" | B33: ='Plant Inspection'!B52 -> 0 | C33: ='Plant Inspection'!C52 -> 0 | D33: ='Plant Inspection'!D52 -> 0 | E33: ='Plant Inspection'!E52 -> 0 | F33: =IF('Plant Inspection'!F52="","",ROUND(TRUNC('Plant Inspection'!F52,3),1)) ->  | I33: =Menu!I$10 -> 0
A34: #4 | B34: ='Plant Inspection'!B53 -> 0 | C34: ='Plant Inspection'!C53 -> 0 | D34: ='Plant Inspection'!D53 -> 0 | E34: ='Plant Inspection'!E53 -> 0 | F34: =IF('Plant Inspection'!F53="","",ROUND(TRUNC('Plant Inspection'!F53,3),1)) ->  | I34: =Menu!I$10 -> 0
A35: #8 | B35: ='Plant Inspection'!B54 -> 0 | C35: ='Plant Inspection'!C54 -> 0 | D35: ='Plant Inspection'!D54 -> 0 | E35: ='Plant Inspection'!E54 -> 0 | F35: =IF('Plant Inspection'!F54="","",ROUND(TRUNC('Plant Inspection'!F54,3),1)) ->  | I35: =Menu!I$10 -> 0
A36: #16 | B36: ='Plant Inspection'!B55 -> 0 | C36: ='Plant Inspection'!C55 -> 0 | D36: ='Plant Inspection'!D55 -> 0 | E36: ='Plant Inspection'!E55 -> 0 | F36: =IF('Plant Inspection'!F55="","",ROUND(TRUNC('Plant Inspection'!F55,3),1)) ->  | I36: =Menu!I$10 -> 0
A37: #30 | B37: ='Plant Inspection'!B56 -> 0 | C37: ='Plant Inspection'!C56 -> 0 | D37: ='Plant Inspection'!D56 -> 0 | E37: ='Plant Inspection'!E56 -> 0 | F37: =IF('Plant Inspection'!F56="","",ROUND(TRUNC('Plant Inspection'!F56,3),1)) ->  | I37: =Menu!I$10 -> 0
A38: #50 | B38: ='Plant Inspection'!B57 -> 0 | C38: ='Plant Inspection'!C57 -> 0 | D38: ='Plant Inspection'!D57 -> 0 | E38: ='Plant Inspection'!E57 -> 0 | F38: =IF('Plant Inspection'!F57="","",ROUND(TRUNC('Plant Inspection'!F57,3),1)) ->  | I38: =Menu!I$10 -> 0
A39: #100 | B39: ='Plant Inspection'!B58 -> 0 | C39: ='Plant Inspection'!C58 -> 0 | D39: ='Plant Inspection'!D58 -> 0 | E39: ='Plant Inspection'!E58 -> 0 | F39: =IF('Plant Inspection'!F58="","",ROUND(TRUNC('Plant Inspection'!F58,3),1)) ->  | I39: =Menu!I$10 -> 0
A40: #200 | B40: ='Plant Inspection'!B59 -> 0 | C40: ='Plant Inspection'!C59 -> 0 | D40: ='Plant Inspection'!D59 -> 0 | E40: ='Plant Inspection'!E59 -> 0 | F40: =IF('Plant Inspection'!F59="","",ROUND(TRUNC('Plant Inspection'!F59,3),1)) ->  | I40: =Menu!I$10 -> 0
A42: ASPHALT CONTENT | B42: =IF('Plant Inspection'!G$74>0,'Plant Inspection'!G$74,IF(Properties!O$33=1,Properties!F$41,IF(Properties!O$34=1,Properties!G$41,IF(Properties!O$35=1,Properties!H$41,IF(Properties!O$36=1,Properties!I$41,IF(Properties!O$37=1,Properties!J$41,IF(Properties!O$38=1,Properties!K$41,IF(Properties!O$39=1,Properties!L$41,"")))))))) -> 
B43: =IF('Plant Inspection'!G$75>0,'Plant Inspection'!G$75,IF(Properties!O$34=2,Properties!G$41,IF(Properties!O$35=2,Properties!H$41,IF(Properties!O$36=2,Properties!I$41,IF(Properties!O$37=2,Properties!J$41,IF(Properties!O$38=2,Properties!K$41,IF(Properties!O$39=2,Properties!L$41,""))))))) -> 
B44: =IF('Plant Inspection'!G$76>0,'Plant Inspection'!G$76,IF(Properties!O$35=3,Properties!H$41,IF(Properties!O$36=3,Properties!I$41,IF(Properties!O$37=3,Properties!J$41,IF(Properties!O$38=3,Properties!K$41,IF(Properties!O$39=3,Properties!L$41,"")))))) -> 
A46: DENSITY | B46: =IF('Plant Inspection'!T$44>0,'Plant Inspection'!T$44,IF(Properties!S$50>0,Properties!S$50,"")) -> 
B47: =IF(Properties!S$51>0,Properties!S$51,"") -> 
B48: =IF(Properties!S$52>0,Properties!S$52,"") -> 
A50: REMARKS | B50: =IF('Plant Inspection'!C$85="","",'Plant Inspection'!C$85) -> 
B51: =IF('Plant Inspection'!A$86="","",'Plant Inspection'!A$86) -> 
B52: =IF('Plant Inspection'!A$87="","",'Plant Inspection'!A$87) -> 
B53: =IF('Plant Inspection'!A$88="","",'Plant Inspection'!A$88) -> 
B54: =IF('Plant Inspection'!A$89="","",'Plant Inspection'!A$89) -> 
A56: TST_METH | B56: SAA400AB | I56: =IF(ISERR(LEFT(Menu!$B$9)),"",IF(OR(LEFT(Menu!$B$9,2)="SL",LEFT(Menu!$B$9,2)="BP",LEFT(Menu!$B$9,2)="BB"),"SAA001CB","SAA001AB")) -> SAA001AB
A57: SMPL_TST_NBR | I57: =IF(AND(I56="SAA001AB",I63<>""),2,IF(AND(I56="SAA001CB",I64<>""),2,"")) -> 
A58: LAB_ID | B58: "Fld Lab R" | I58: "Fld Lab R"
A60: LOT NO. | H60: Deleterious Rock
A61: GRADATION PASS | H61: =IF(ISERR(LEFT(Menu!$B$9)),"",IF(OR(LEFT(Menu!$B$9,2)="SL",LEFT(Menu!$B$9,2)="BP",LEFT(Menu!$B$9,2)="BB"),"Shale & Mud Balls","Shale")) -> Shale
B62: Job Mix | D62: Comb. Grad. | F62: Deviation | H62: =IF(ISERR(LEFT(Menu!$B$9)),"",IF(OR(LEFT(Menu!$B$9,2)="SL",LEFT(Menu!$B$9,2)="BP",LEFT(Menu!$B$9,2)="BB"),"Clay, Dispersed","OFM")) -> OFM
A63: 1 1/2" | H63: =IF(ISERR(LEFT(Menu!$B$9)),"",IF(OR(LEFT(Menu!$B$9,2)="SL",LEFT(Menu!$B$9,2)="BP",LEFT(Menu!$B$9,2)="BB"),"OFM","Total Deleterious")) -> Total Deleterious
A64: 1" | H64: =IF(ISERR(LEFT(Menu!$B$9)),"",IF(OR(LEFT(Menu!$B$9,2)="SL",LEFT(Menu!$B$9,2)="BP",LEFT(Menu!$B$9,2)="BB"),"Total Deleterious","")) -> 
A65: 3/4"
A66: 1/2" | H66: Chert
A67: 3/8"
A68: #4
A69: #8
A70: #16
A71: #30
A72: #50
A73: #100
A74: #200
A76: ASPHALT CONTENT
A80: DENSITY
A84: REMARKS
A90: TST_METH | B90: SAA400AB | I90: =IF(ISERR(LEFT(Menu!$B$9)),"",IF(OR(LEFT(Menu!$B$9,2)="SL",LEFT(Menu!$B$9,2)="BP",LEFT(Menu!$B$9,2)="BB"),"SAA001CB","SAA001AB")) -> SAA001AB
A91: SMPL_TST_NBR | I91: =IF(AND(I90="SAA001AB",I97<>""),3,IF(AND(I90="SAA001CB",I98<>""),3,"")) -> 
A92: LAB_ID | B92: "Fld Lab R" | I92: "Fld Lab R"
A94: LOT NO. | H94: Deleterious Rock
A95: GRADATION PASS | H95: =IF(ISERR(LEFT(Menu!$B$9)),"",IF(OR(LEFT(Menu!$B$9,2)="SL",LEFT(Menu!$B$9,2)="BP",LEFT(Menu!$B$9,2)="BB"),"Shale & Mud Balls","Shale")) -> Shale
B96: Job Mix | D96: Comb. Grad. | F96: Deviation | H96: =IF(ISERR(LEFT(Menu!$B$9)),"",IF(OR(LEFT(Menu!$B$9,2)="SL",LEFT(Menu!$B$9,2)="BP",LEFT(Menu!$B$9,2)="BB"),"Clay, Dispersed","OFM")) -> OFM
A97: 1 1/2" | H97: =IF(ISERR(LEFT(Menu!$B$9)),"",IF(OR(LEFT(Menu!$B$9,2)="SL",LEFT(Menu!$B$9,2)="BP",LEFT(Menu!$B$9,2)="BB"),"OFM","Total Deleterious")) -> Total Deleterious
A98: 1" | H98: =IF(ISERR(LEFT(Menu!$B$9)),"",IF(OR(LEFT(Menu!$B$9,2)="SL",LEFT(Menu!$B$9,2)="BP",LEFT(Menu!$B$9,2)="BB"),"Total Deleterious","")) -> 
A99: 3/4"
A100: 1/2" | H100: Chert
A101: 3/8"
A102: #4
A103: #8
A104: #16
A105: #30
A106: #50
A107: #100
A108: #200
A110: ASPHALT CONTENT
A114: DENSITY
A118: REMARKS
A124: TST_METH | B124: SAA400AB | I124: =IF(ISERR(LEFT(Menu!$B$9)),"",IF(OR(LEFT(Menu!$B$9,2)="SL",LEFT(Menu!$B$9,2)="BP",LEFT(Menu!$B$9,2)="BB"),"SAA001CB","SAA001AB")) -> SAA001AB
A125: SMPL_TST_NBR | I125: =IF(AND(I124="SAA001AB",I131<>""),4,IF(AND(I124="SAA001CB",I132<>""),4,"")) -> 
A126: LAB_ID | B126: "Fld Lab R" | I126: "Fld Lab R"
A128: LOT NO. | H128: Deleterious Rock
A129: GRADATION PASS | H129: =IF(ISERR(LEFT(Menu!$B$9)),"",IF(OR(LEFT(Menu!$B$9,2)="SL",LEFT(Menu!$B$9,2)="BP",LEFT(Menu!$B$9,2)="BB"),"Shale & Mud Balls","Shale")) -> Shale
B130: Job Mix | D130: Comb. Grad. | F130: Deviation | H130: =IF(ISERR(LEFT(Menu!$B$9)),"",IF(OR(LEFT(Menu!$B$9,2)="SL",LEFT(Menu!$B$9,2)="BP",LEFT(Menu!$B$9,2)="BB"),"Clay, Dispersed","OFM")) -> OFM
A131: 1 1/2" | H131: =IF(ISERR(LEFT(Menu!$B$9)),"",IF(OR(LEFT(Menu!$B$9,2)="SL",LEFT(Menu!$B$9,2)="BP",LEFT(Menu!$B$9,2)="BB"),"OFM","Total Deleterious")) -> Total Deleterious
A132: 1" | H132: =IF(ISERR(LEFT(Menu!$B$9)),"",IF(OR(LEFT(Menu!$B$9,2)="SL",LEFT(Menu!$B$9,2)="BP",LEFT(Menu!$B$9,2)="BB"),"Total Deleterious","")) -> 
A133: 3/4"
A134: 1/2" | H134: Chert
A135: 3/8"
A136: #4
A137: #8
A138: #16
A139: #30
A140: #50
A141: #100
A142: #200
A144: ASPHALT CONTENT
A148: DENSITY
A152: REMARKS
